Organisation ,Directorate ,Pay Date ,Amount SUM,Supplier name ,Type of Expenditure ,Category Name
Leeds City Council,Adult Social Care,07/04/2017,120.00,Airedale Community Trading (Act) Ltd,Training Costs,Supplies & Services
Leeds City Council,Adult Social Care,13/04/2017,127.84,Affinity Trust,Home Care,Supplies & Services
Leeds City Council,Adult Social Care,07/04/2017,1338.40,Sense,Day Centre,Supplies & Services
Leeds City Council,Adult Social Care,13/04/2017,836.50,Sense,Day Centre,Supplies & Services
Leeds City Council,Adult Social Care,07/04/2017,220.00,Second Chance Headway Centre,Payments To Voluntary Organisations,Supplies & Services
Leeds City Council,Adult Social Care,07/04/2017,140.00,Second Chance Headway Centre,Payments To Voluntary Organisations,Supplies & Services
Leeds City Council,Adult Social Care,13/04/2017,380.65,Specialist Autism Services,Day Centre,Supplies & Services
Leeds City Council,Adult Social Care,26/04/2017,160.00,Specialist Autism Services,Day Centre,Supplies & Services
Leeds City Council,Adult Social Care,21/04/2017,304.52,Specialist Autism Services,Day Centre,Supplies & Services
Leeds City Council,Adult Social Care,26/04/2017,609.04,Specialist Autism Services,Day Centre,Supplies & Services
Leeds City Council,Adult Social Care,21/04/2017,609.04,Specialist Autism Services,Day Centre,Supplies & Services
Leeds City Council,Adult Social Care,13/04/2017,228.39,Specialist Autism Services,Day Centre,Supplies & Services
Leeds City Council,Adult Social Care,13/04/2017,304.52,Specialist Autism Services,Day Centre,Supplies & Services
Leeds City Council,Adult Social Care,18/04/2017,380.65,Specialist Autism Services,Day Centre,Supplies & Services
Leeds City Council,Adult Social Care,21/04/2017,304.52,Specialist Autism Services,Day Centre,Supplies & Services
Leeds City Council,Adult Social Care,05/04/2017,1471.40,Larchfield Residential Home,Residential,Supplies & Services
Leeds City Council,Adult Social Care,12/04/2017,1708.07,Phoenix House,Residential - Drugs & Alcohol,Supplies & Services
Leeds City Council,Adult Social Care,12/04/2017,2302.18,Phoenix House,Residential - Drugs & Alcohol,Supplies & Services
Leeds City Council,Adult Social Care,07/04/2017,1633.81,Phoenix House,Residential - Drugs & Alcohol,Supplies & Services
Leeds City Council,Adult Social Care,26/04/2017,3610.73,Touchstone - Leeds,Other Hired And Contracted Services,Supplies & Services
Leeds City Council,Adult Social Care,28/04/2017,285.00,Bahar Afg Womens Association,Other Hired And Contracted Services,Supplies & Services
Leeds City Council,Adult Social Care,20/04/2017,65.00,Syrian Community Of Leeds,Other Hired And Contracted Services,Supplies & Services
Leeds City Council,Adult Social Care,07/04/2017,7434.00,Leeds Community Foundation,Payments To Voluntary Organisations,Supplies & Services
Leeds City Council,Adult Social Care,03/04/2017,42500.00,Leeds Community Foundation,Payments To Voluntary Organisations,Supplies & Services
Leeds City Council,Adult Social Care,21/04/2017,93600.00,Touchstone - Leeds,Payments To Voluntary Organisations,Supplies & Services
Leeds City Council,Adult Social Care,28/04/2017,4050.00,Carers Uk,Recurring & Major Grants Projects,Supplies & Services
Leeds City Council,Adult Social Care,20/04/2017,100.00,Bramley Elderly Action,Publication And Promotion,Supplies & Services
Leeds City Council,Adult Social Care,27/04/2017,254524.00,Carers Leeds,Payments To Voluntary Organisations,Supplies & Services
Leeds City Council,Adult Social Care,11/04/2017,14258.75,Chapeltown Cab,Day Centre,Supplies & Services
Leeds City Council,Adult Social Care,20/04/2017,3638.00,Purple Patch Arts,Commissioned Services,Supplies & Services
Leeds City Council,Adult Social Care,03/04/2017,19119.15,Connect In The North,Grant Related Expenditure,Supplies & Services
Leeds City Council,Adult Social Care,13/04/2017,37747.00,Hamara (Hlc),Payments To Voluntary Organisations,Supplies & Services
Leeds City Council,Adult Social Care,06/04/2017,43750.00,Health For All (Leeds) Ltd,Payments To Voluntary Organisations,Supplies & Services
Leeds City Council,Adult Social Care,13/04/2017,1500.00,Better Action For Families,Day Centre,Supplies & Services
Leeds City Council,Adult Social Care,20/04/2017,2500.00,Better Action For Families,Day Centre,Supplies & Services
Leeds City Council,Adult Social Care,28/04/2017,13677.75,Leep1,Day Centre,Supplies & Services
Leeds City Council,Adult Social Care,10/04/2017,8884.99,Advonet,Payments To Voluntary Organisations,Supplies & Services
Leeds City Council,Adult Social Care,10/04/2017,8459.06,Advonet,Payments To Voluntary Organisations,Supplies & Services
Leeds City Council,Adult Social Care,10/04/2017,781.96,Advonet,Payments To Voluntary Organisations,Supplies & Services
Leeds City Council,Adult Social Care,12/04/2017,4961.21,Advonet,Payments To Voluntary Organisations,Supplies & Services
Leeds City Council,Adult Social Care,12/04/2017,10534.97,Advonet,Payments To Voluntary Organisations,Supplies & Services
Leeds City Council,Adult Social Care,12/04/2017,631.91,Advonet,Payments To Voluntary Organisations,Supplies & Services
Leeds City Council,Adult Social Care,12/04/2017,10101.23,Advonet,Payments To Voluntary Organisations,Supplies & Services
Leeds City Council,Adult Social Care,07/04/2017,403.48,Rani Care Cic,Home Care,Supplies & Services
Leeds City Council,Adult Social Care,05/04/2017,340.80,Scope,Home Care,Supplies & Services
Leeds City Council,Adult Social Care,06/04/2017,605.00,Second Chance Headway Centre,Home Care,Supplies & Services
Leeds City Council,Adult Social Care,19/04/2017,1676.76,Specialist Autism Services,Home Care,Supplies & Services
Leeds City Council,Adult Social Care,19/04/2017,304.52,Specialist Autism Services,Home Care,Supplies & Services
Leeds City Council,Adult Social Care,19/04/2017,291.40,Specialist Autism Services,Home Care,Supplies & Services
Leeds City Council,Adult Social Care,19/04/2017,609.04,Specialist Autism Services,Home Care,Supplies & Services
Leeds City Council,Adult Social Care,06/04/2017,1408.54,The Disabilities Trust,Home Care,Supplies & Services
Leeds City Council,Adult Social Care,06/04/2017,1358.64,The Disabilities Trust,Home Care,Supplies & Services
Leeds City Council,Adult Social Care,12/04/2017,775.00,Touchstone - Leeds,Home Care,Supplies & Services
Leeds City Council,Adult Social Care,12/04/2017,920.00,Touchstone - Leeds,Home Care,Supplies & Services
Leeds City Council,Adult Social Care,12/04/2017,100.00,Touchstone - Leeds,Home Care,Supplies & Services
Leeds City Council,Adult Social Care,12/04/2017,540.00,Touchstone - Leeds,Home Care,Supplies & Services
Leeds City Council,Adult Social Care,12/04/2017,54.00,Touchstone - Leeds,Home Care,Supplies & Services
Leeds City Council,Adult Social Care,12/04/2017,33.74,Touchstone - Leeds,Home Care,Supplies & Services
Leeds City Council,Adult Social Care,12/04/2017,370.00,Touchstone - Leeds,Home Care,Supplies & Services
Leeds City Council,Adult Social Care,12/04/2017,202.44,Touchstone - Leeds,Home Care,Supplies & Services
Leeds City Council,Adult Social Care,12/04/2017,590.00,Touchstone - Leeds,Home Care,Supplies & Services
Leeds City Council,Adult Social Care,12/04/2017,72.00,Touchstone - Leeds,Home Care,Supplies & Services
Leeds City Council,Adult Social Care,12/04/2017,404.88,Touchstone - Leeds,Home Care,Supplies & Services
Leeds City Council,Adult Social Care,12/04/2017,200.00,Touchstone - Leeds,Home Care,Supplies & Services
Leeds City Council,Adult Social Care,12/04/2017,354.27,Touchstone - Leeds,Home Care,Supplies & Services
Leeds City Council,Adult Social Care,12/04/2017,590.00,Touchstone - Leeds,Home Care,Supplies & Services
Leeds City Council,Adult Social Care,12/04/2017,635.00,Touchstone - Leeds,Home Care,Supplies & Services
Leeds City Council,Adult Social Care,12/04/2017,90.00,Touchstone - Leeds,Home Care,Supplies & Services
Leeds City Council,Adult Social Care,12/04/2017,151.83,Touchstone - Leeds,Home Care,Supplies & Services
Leeds City Council,Adult Social Care,12/04/2017,400.00,Touchstone - Leeds,Home Care,Supplies & Services
Leeds City Council,Adult Social Care,12/04/2017,506.10,Touchstone - Leeds,Home Care,Supplies & Services
Leeds City Council,Adult Social Care,28/04/2017,87988.50,Leeds Mind,Payments To Voluntary Organisations,Supplies & Services
Leeds City Council,Adult Social Care,21/04/2017,609.04,Specialist Autism Services,Day Centre,Supplies & Services
Leeds City Council,Adult Social Care,21/04/2017,1218.08,Specialist Autism Services,Day Centre,Supplies & Services
Leeds City Council,Adult Social Care,21/04/2017,304.52,Specialist Autism Services,Day Centre,Supplies & Services
Leeds City Council,Adult Social Care,21/04/2017,609.04,Specialist Autism Services,Day Centre,Supplies & Services
Leeds City Council,Adult Social Care,21/04/2017,1308.64,Specialist Autism Services,Day Centre,Supplies & Services
Leeds City Council,Adult Social Care,21/04/2017,304.52,Specialist Autism Services,Day Centre,Supplies & Services
Leeds City Council,Adult Social Care,24/04/2017,3113.60,Real Life Options,Home Care,Supplies & Services
Leeds City Council,Adult Social Care,24/04/2017,720.00,Touchstone - Leeds,Home Care,Supplies & Services
Leeds City Council,Adult Social Care,24/04/2017,360.00,Touchstone - Leeds,Home Care,Supplies & Services
Leeds City Council,Adult Social Care,20/04/2017,240.00,Touchstone - Leeds,Home Care,Supplies & Services
Leeds City Council,Adult Social Care,20/04/2017,300.00,Touchstone - Leeds,Home Care,Supplies & Services
Leeds City Council,Adult Social Care,20/04/2017,480.00,Touchstone - Leeds,Home Care,Supplies & Services
Leeds City Council,Adult Social Care,24/04/2017,900.00,Touchstone - Leeds,Home Care,Supplies & Services
Leeds City Council,Adult Social Care,24/04/2017,480.00,Touchstone - Leeds,Home Care,Supplies & Services
Leeds City Council,Adult Social Care,20/04/2017,300.00,Touchstone - Leeds,Home Care,Supplies & Services
Leeds City Council,Adult Social Care,20/04/2017,325.00,Touchstone - Leeds,Home Care,Supplies & Services
Leeds City Council,Adult Social Care,20/04/2017,600.00,Touchstone - Leeds,Home Care,Supplies & Services
Leeds City Council,Adult Social Care,24/04/2017,700.00,Touchstone - Leeds,Home Care,Supplies & Services
Leeds City Council,Adult Social Care,24/04/2017,220.00,Touchstone - Leeds,Home Care,Supplies & Services
Leeds City Council,Adult Social Care,20/04/2017,240.00,Touchstone - Leeds,Home Care,Supplies & Services
Leeds City Council,Adult Social Care,20/04/2017,300.00,Touchstone - Leeds,Home Care,Supplies & Services
Leeds City Council,Adult Social Care,20/04/2017,320.00,Touchstone - Leeds,Home Care,Supplies & Services
Leeds City Council,Adult Social Care,20/04/2017,480.00,Touchstone - Leeds,Home Care,Supplies & Services
Leeds City Council,Adult Social Care,05/04/2017,33668.23,St Annes Residential Care,Sheltered Accommodation,Supplies & Services
Leeds City Council,Adult Social Care,05/04/2017,1924.00,Donisthorpe Hall,Residential Care Dementia,Supplies & Services
Leeds City Council,Adult Social Care,05/04/2017,1872.00,Larchfield Residential Home,Residential Care Dementia,Supplies & Services
Leeds City Council,Adult Social Care,05/04/2017,5748.00,Chatterton Hey,Residential,Supplies & Services
Leeds City Council,Adult Social Care,05/04/2017,2864.80,Henshaw Yokshire,Residential,Supplies & Services
Leeds City Council,Adult Social Care,05/04/2017,10461.72,Larchfield Residential Home,Residential,Supplies & Services
Leeds City Council,Adult Social Care,05/04/2017,3180.00,Lily Thompson House,Residential,Supplies & Services
Leeds City Council,Adult Social Care,05/04/2017,2782.88,Saint John Of God Hospitaller Services,Residential,Supplies & Services
Leeds City Council,Adult Social Care,05/04/2017,2280.00,Sign Health,Residential,Supplies & Services
Leeds City Council,Adult Social Care,05/04/2017,5843.88,Signhealth,Residential,Supplies & Services
Leeds City Council,Adult Social Care,05/04/2017,13456.18,St Annes Residential Care,Residential,Supplies & Services
Leeds City Council,Adult Social Care,21/04/2017,18529.71,Anchor Trust,Home Care,Supplies & Services
Leeds City Council,Adult Social Care,21/04/2017,18837.36,Anchor Trust,Home Care,Supplies & Services
Leeds City Council,Adult Social Care,21/04/2017,7479.62,Anchor Trust,Home Care,Supplies & Services
Leeds City Council,Adult Social Care,13/04/2017,822.50,Anchor Trust,Home Care,Supplies & Services
Leeds City Council,Adult Social Care,05/04/2017,9167.48,Anchor Trust,Payments To Voluntary Organisations,Supplies & Services
Leeds City Council,Adult Social Care,05/04/2017,9167.48,Anchor Trust,Payments To Voluntary Organisations,Supplies & Services
Leeds City Council,Adult Social Care,04/04/2017,319.60,Affinity Trust,Home Care,Supplies & Services
Leeds City Council,Adult Social Care,04/04/2017,1076.48,Affinity Trust,Home Care,Supplies & Services
Leeds City Council,Adult Social Care,13/04/2017,43.50,Casa Leeds,Home Care,Supplies & Services
Leeds City Council,Adult Social Care,13/04/2017,36.04,Casa Leeds,Home Care,Supplies & Services
Leeds City Council,Adult Social Care,13/04/2017,60662.15,Casa Leeds,Home Care,Supplies & Services
Leeds City Council,Adult Social Care,07/04/2017,201.76,Casa Leeds,Home Care,Supplies & Services
Leeds City Council,Adult Social Care,07/04/2017,19173.66,Casa Leeds,Home Care,Supplies & Services
Leeds City Council,Adult Social Care,04/04/2017,2485.87,Casa Leeds,Home Care,Supplies & Services
Leeds City Council,Adult Social Care,13/04/2017,99586.60,Casa Leeds,Home Care,Supplies & Services
Leeds City Council,Adult Social Care,04/04/2017,2476.90,Casa Leeds,Home Care,Supplies & Services
Leeds City Council,Adult Social Care,07/04/2017,17577.35,Methodist Homes,Payments To Voluntary Organisations,Supplies & Services
Leeds City Council,Adult Social Care,07/04/2017,31647.40,Methodist Homes,Payments To Voluntary Organisations,Supplies & Services
Leeds City Council,Adult Social Care,07/04/2017,12678.00,Methodist Homes,Payments To Voluntary Organisations,Supplies & Services
Leeds City Council,Adult Social Care,07/04/2017,9148.85,Methodist Homes,Payments To Voluntary Organisations,Supplies & Services
Leeds City Council,Adult Social Care,28/04/2017,92.25,New Leaf Gardeners,Grounds Maintenance Work,Supplies & Services
Leeds City Council,Adult Social Care,13/04/2017,134.55,People In Action Leeds Uk,Home Care,Supplies & Services
Leeds City Council,Adult Social Care,07/04/2017,1873.30,Rani Care Cic,Home Care,Supplies & Services
Leeds City Council,Adult Social Care,26/04/2017,29.40,Reflections Community Support,Home Care,Supplies & Services
Leeds City Council,Adult Social Care,26/04/2017,223.56,Reflections Community Support,Home Care,Supplies & Services
Leeds City Council,Adult Social Care,26/04/2017,236.26,Reflections Community Support,Home Care,Supplies & Services
Leeds City Council,Adult Social Care,26/04/2017,476.98,Reflections Community Support,Home Care,Supplies & Services
Leeds City Council,Adult Social Care,26/04/2017,1464.12,Reflections Community Support,Home Care,Supplies & Services
Leeds City Council,Adult Social Care,26/04/2017,672.44,Reflections Community Support,Home Care,Supplies & Services
Leeds City Council,Adult Social Care,13/04/2017,79.90,Reflections Community Support,Home Care,Supplies & Services
Leeds City Council,Adult Social Care,19/04/2017,191.10,Reflections Community Support,Home Care,Supplies & Services
Leeds City Council,Adult Social Care,13/04/2017,229.50,Reflections Community Support,Home Care,Supplies & Services
Leeds City Council,Adult Social Care,13/04/2017,479.50,Reflections Community Support,Home Care,Supplies & Services
Leeds City Council,Adult Social Care,13/04/2017,703.09,Reflections Community Support,Home Care,Supplies & Services
Leeds City Council,Adult Social Care,13/04/2017,1466.50,Reflections Community Support,Home Care,Supplies & Services
Leeds City Council,Adult Social Care,19/04/2017,700.94,Reflections Community Support,Home Care,Supplies & Services
Leeds City Council,Adult Social Care,13/04/2017,645.75,Reflections Community Support,Home Care,Supplies & Services
Leeds City Council,Adult Social Care,13/04/2017,14.00,Reflections Community Support,Home Care,Supplies & Services
Leeds City Council,Adult Social Care,13/04/2017,447.44,Reflections Community Support,Home Care,Supplies & Services
Leeds City Council,Adult Social Care,13/04/2017,344.85,Reflections Community Support,Home Care,Supplies & Services
Leeds City Council,Adult Social Care,05/04/2017,173.06,Reflections Community Support,Home Care,Supplies & Services
Leeds City Council,Adult Social Care,05/04/2017,1514.24,Reflections Community Support,Home Care,Supplies & Services
Leeds City Council,Adult Social Care,05/04/2017,629.77,Reflections Community Support,Home Care,Supplies & Services
Leeds City Council,Adult Social Care,13/04/2017,541.20,St Annes Community Services,Home Care,Supplies & Services
Leeds City Council,Adult Social Care,07/04/2017,622.52,Specialist Autism Services,Home Care,Supplies & Services
Leeds City Council,Adult Social Care,07/04/2017,622.52,Specialist Autism Services,Home Care,Supplies & Services
Leeds City Council,Adult Social Care,19/04/2017,609.04,Specialist Autism Services,Home Care,Supplies & Services
Leeds City Council,Adult Social Care,19/04/2017,2080.00,The Disabilities Trust,Home Care,Supplies & Services
Leeds City Council,Adult Social Care,12/04/2017,400.00,Touchstone - Leeds,Home Care,Supplies & Services
Leeds City Council,Adult Social Care,12/04/2017,200.00,Touchstone - Leeds,Home Care,Supplies & Services
Leeds City Council,Adult Social Care,12/04/2017,200.00,Touchstone - Leeds,Home Care,Supplies & Services
Leeds City Council,Adult Social Care,12/04/2017,320.00,Touchstone - Leeds,Home Care,Supplies & Services
Leeds City Council,Adult Social Care,12/04/2017,760.00,Touchstone - Leeds,Home Care,Supplies & Services
Leeds City Council,Adult Social Care,12/04/2017,160.00,Touchstone - Leeds,Home Care,Supplies & Services
Leeds City Council,Adult Social Care,10/04/2017,207.00,Touchstone - Leeds,Residential Care Dementia,Supplies & Services
Leeds City Council,Adult Social Care,10/04/2017,690.00,Touchstone - Leeds,Residential Care Dementia,Supplies & Services
Leeds City Council,Adult Social Care,10/04/2017,483.00,Touchstone - Leeds,Residential Care Dementia,Supplies & Services
Leeds City Council,Adult Social Care,12/04/2017,200.00,Touchstone - Leeds,Home Care,Supplies & Services
Leeds City Council,Adult Social Care,12/04/2017,320.00,Touchstone - Leeds,Home Care,Supplies & Services
Leeds City Council,Adult Social Care,12/04/2017,800.00,Touchstone - Leeds,Home Care,Supplies & Services
Leeds City Council,Adult Social Care,12/04/2017,160.00,Touchstone - Leeds,Home Care,Supplies & Services
Leeds City Council,Adult Social Care,12/04/2017,250.00,Touchstone - Leeds,Home Care,Supplies & Services
Leeds City Council,Adult Social Care,05/04/2017,24.00,West Yorkshire Playhouse Enterprise,Conference Meetings,Supplies & Services
Leeds City Council,Adult Social Care,13/04/2017,384.00,West Yorkshire Playhouse Enterprise,Conference Meetings,Supplies & Services
Leeds City Council,Adult Social Care,12/04/2017,24.00,West Yorkshire Playhouse Enterprise,Conference Meetings,Supplies & Services
Leeds City Council,Adult Social Care,19/04/2017,24.00,West Yorkshire Playhouse Enterprise,Conference Meetings,Supplies & Services
Leeds City Council,Adult Social Care,26/04/2017,24.00,West Yorkshire Playhouse Enterprise,Conference Meetings,Supplies & Services
Leeds City Council,Adult Social Care,03/04/2017,11666.25,Leeds Involving People,Recurring & Major Grants Projects,Supplies & Services
Leeds City Council,Adult Social Care,12/04/2017,3036.00,Bupa Park Avenue,Services Provided By Other NHS Bodies,Supplies & Services
Leeds City Council,Adult Social Care,03/04/2017,34505.50,Action For Gipton Elderly,Payments To Voluntary Organisations,Supplies & Services
Leeds City Council,Adult Social Care,03/04/2017,8024.75,Age Uk Leeds Enterprises,Payments To Voluntary Organisations,Supplies & Services
Leeds City Council,Adult Social Care,03/04/2017,3000.00,Al Khidmat Centre,Payments To Voluntary Organisations,Supplies & Services
Leeds City Council,Adult Social Care,03/04/2017,22646.00,Armley Helping Hands,Payments To Voluntary Organisations,Supplies & Services
Leeds City Council,Adult Social Care,03/04/2017,18560.00,Avsed,Payments To Voluntary Organisations,Supplies & Services
Leeds City Council,Adult Social Care,03/04/2017,26054.75,Belle Isle Elderly Winter Aid,Payments To Voluntary Organisations,Supplies & Services
Leeds City Council,Adult Social Care,03/04/2017,35049.00,Bramley Elderly Action,Payments To Voluntary Organisations,Supplies & Services
Leeds City Council,Adult Social Care,03/04/2017,9625.00,Bramley Eldery Action - Bramley Lawn,Payments To Voluntary Organisations,Supplies & Services
Leeds City Council,Adult Social Care,03/04/2017,10397.25,Burmantofts Senior Action,Payments To Voluntary Organisations,Supplies & Services
Leeds City Council,Adult Social Care,03/04/2017,6327.50,Caring Together In Woodhouse And Little,Payments To Voluntary Organisations,Supplies & Services
Leeds City Council,Adult Social Care,03/04/2017,19298.00,Crossgates And District Good Neighbours,Payments To Voluntary Organisations,Supplies & Services
Leeds City Council,Adult Social Care,03/04/2017,8209.25,Farsley Live At Home Scheme,Payments To Voluntary Organisations,Supplies & Services
Leeds City Council,Adult Social Care,03/04/2017,6500.00,Farsley Live At Home Scheme,Payments To Voluntary Organisations,Supplies & Services
Leeds City Council,Adult Social Care,03/04/2017,7517.25,Hamwattan Elderly Centre,Payments To Voluntary Organisations,Supplies & Services
Leeds City Council,Adult Social Care,03/04/2017,14572.50,Hawksworth Older People Support,Payments To Voluntary Organisations,Supplies & Services
Leeds City Council,Adult Social Care,03/04/2017,8915.00,Holbeck Elderly Aid,Payments To Voluntary Organisations,Supplies & Services
Leeds City Council,Adult Social Care,03/04/2017,5415.00,Hope,Payments To Voluntary Organisations,Supplies & Services
Leeds City Council,Adult Social Care,03/04/2017,19524.75,Horsforth Live At Home,Payments To Voluntary Organisations,Supplies & Services
Leeds City Council,Adult Social Care,03/04/2017,15437.50,Leeds Black Elders Association,Payments To Voluntary Organisations,Supplies & Services
Leeds City Council,Adult Social Care,03/04/2017,19863.75,Middleton Elderly Aid,Payments To Voluntary Organisations,Supplies & Services
Leeds City Council,Adult Social Care,03/04/2017,17033.50,Moor Allerton Elderly Care,Payments To Voluntary Organisations,Supplies & Services
Leeds City Council,Adult Social Care,03/04/2017,22826.25,Morley Elderly Action,Payments To Voluntary Organisations,Supplies & Services
Leeds City Council,Adult Social Care,03/04/2017,7186.00,Neighbourhood Action In Farnley,Payments To Voluntary Organisations,Supplies & Services
Leeds City Council,Adult Social Care,03/04/2017,19661.50,Neighbourhood Elders Team,Payments To Voluntary Organisations,Supplies & Services
Leeds City Council,Adult Social Care,03/04/2017,10561.25,North Seacroft Good Neighbours,Payments To Voluntary Organisations,Supplies & Services
Leeds City Council,Adult Social Care,03/04/2017,16774.00,Older Peoples Action In The Locality,Payments To Voluntary Organisations,Supplies & Services
Leeds City Council,Adult Social Care,03/04/2017,14367.50,Otley Action For Older People,Payments To Voluntary Organisations,Supplies & Services
Leeds City Council,Adult Social Care,03/04/2017,17327.50,Owls At Heart,Payments To Voluntary Organisations,Supplies & Services
Leeds City Council,Adult Social Care,03/04/2017,15796.50,Pudsey Live At Home Scheme,Payments To Voluntary Organisations,Supplies & Services
Leeds City Council,Adult Social Care,03/04/2017,16374.25,Richmond Hill Elderly Action,Payments To Voluntary Organisations,Supplies & Services
Leeds City Council,Adult Social Care,03/04/2017,8941.00,Richmond Hill Elderly Action,Payments To Voluntary Organisations,Supplies & Services
Leeds City Council,Adult Social Care,03/04/2017,15236.50,Rothwell & District Live At Home Scheme,Payments To Voluntary Organisations,Supplies & Services
Leeds City Council,Adult Social Care,03/04/2017,11580.50,Royal Voluntary Service,Payments To Voluntary Organisations,Supplies & Services
Leeds City Council,Adult Social Care,03/04/2017,23147.75,Royal Voluntary Service,Payments To Voluntary Organisations,Supplies & Services
Leeds City Council,Adult Social Care,03/04/2017,10910.00,South Leeds Elderly Group,Payments To Voluntary Organisations,Supplies & Services
Leeds City Council,Adult Social Care,03/04/2017,20078.75,South Leeds Live At Home Scheme,Payments To Voluntary Organisations,Supplies & Services
Leeds City Council,Adult Social Care,03/04/2017,21749.00,South Leeds Team Ministry,Payments To Voluntary Organisations,Supplies & Services
Leeds City Council,Adult Social Care,03/04/2017,11195.25,South Seacroft Friends & Neighbours,Payments To Voluntary Organisations,Supplies & Services
Leeds City Council,Adult Social Care,03/04/2017,26717.75,Step,Payments To Voluntary Organisations,Supplies & Services
Leeds City Council,Adult Social Care,03/04/2017,9595.00,Swarcliffe Good Neighbours Scheme,Payments To Voluntary Organisations,Supplies & Services
Leeds City Council,Adult Social Care,03/04/2017,14961.88,Touchstone - Leeds,Payments To Voluntary Organisations,Supplies & Services
Leeds City Council,Adult Social Care,03/04/2017,18946.25,Wetherby In Support Of The Elderly,Payments To Voluntary Organisations,Supplies & Services
Leeds City Council,Adult Social Care,03/04/2017,12601.00,Wetherby In Support Of The Elderly,Payments To Voluntary Organisations,Supplies & Services
Leeds City Council,Adult Social Care,03/04/2017,2762.50,Woodsley Kashmiri Elders,Payments To Voluntary Organisations,Supplies & Services
Leeds City Council,Adult Social Care,19/04/2017,2075.04,Rani Care Cic,Home Care,Supplies & Services
Leeds City Council,Adult Social Care,21/04/2017,622.52,Specialist Autism Services,Home Care,Supplies & Services
Leeds City Council,Adult Social Care,05/04/2017,1386.44,St Annes Residential Care,Sheltered Accommodation,Supplies & Services
Leeds City Council,Adult Social Care,05/04/2017,1414.68,Anchor Trust,Nursing Home,Supplies & Services
Leeds City Council,Adult Social Care,05/04/2017,1489.95,Bupa Park Avenue,Nursing Home,Supplies & Services
Leeds City Council,Adult Social Care,05/04/2017,15019.34,Bupa Sabourn Court Nursing Home,Nursing Home,Supplies & Services
Leeds City Council,Adult Social Care,05/04/2017,68.61,Donisthorpe Hall,Nursing Home,Supplies & Services
Leeds City Council,Adult Social Care,05/04/2017,18669.40,Elmwood Nursing Home,Nursing Home,Supplies & Services
Leeds City Council,Adult Social Care,05/04/2017,12263.65,Gledhow Christian Care Home,Nursing Home,Supplies & Services
Leeds City Council,Adult Social Care,05/04/2017,9689.56,Leonard Cheshire Disability,Nursing Home,Supplies & Services
Leeds City Council,Adult Social Care,05/04/2017,14647.52,Little Sisters Of The Poor,Nursing Home,Supplies & Services
Leeds City Council,Adult Social Care,05/04/2017,1491.32,Sir Gabriel Wood'S Mariners' Home,Nursing Home,Supplies & Services
Leeds City Council,Adult Social Care,05/04/2017,1528.31,The Red House,Nursing Home,Supplies & Services
Leeds City Council,Adult Social Care,05/04/2017,6020.96,Airedale (Goldsborough),Residential Care Dementia,Supplies & Services
Leeds City Council,Adult Social Care,05/04/2017,17428.05,Anchor Trust,Residential Care Dementia,Supplies & Services
Leeds City Council,Adult Social Care,05/04/2017,1094.43,Anchor Trust,Residential Care Dementia,Supplies & Services
Leeds City Council,Adult Social Care,05/04/2017,19451.18,Anchor Trust Simon Marks Court,Residential Care Dementia,Supplies & Services
Leeds City Council,Adult Social Care,05/04/2017,14881.19,Donisthorpe Hall,Residential Care Dementia,Supplies & Services
Leeds City Council,Adult Social Care,05/04/2017,266.98,Dyneley House,Residential Care Dementia,Supplies & Services
Leeds City Council,Adult Social Care,05/04/2017,937.90,Glenrosa,Residential Care Dementia,Supplies & Services
Leeds City Council,Adult Social Care,05/04/2017,5081.95,Larchfield Residential Home,Residential Care Dementia,Supplies & Services
Leeds City Council,Adult Social Care,05/04/2017,40691.73,Bupa Park Avenue,Nursing Care Dementia,Supplies & Services
Leeds City Council,Adult Social Care,05/04/2017,22741.25,Donisthorpe Hall,Nursing Care Dementia,Supplies & Services
Leeds City Council,Adult Social Care,05/04/2017,629.06,Gledhow Christian Care Home,Nursing Care Dementia,Supplies & Services
Leeds City Council,Adult Social Care,05/04/2017,1961.12,Methodist Homes For The Aged,Nursing Care Dementia,Supplies & Services
Leeds City Council,Adult Social Care,05/04/2017,15373.04,Airedale (Goldsborough),Residential,Supplies & Services
Leeds City Council,Adult Social Care,05/04/2017,22652.16,Anchor Trust,Residential,Supplies & Services
Leeds City Council,Adult Social Care,05/04/2017,4969.86,Anchor Trust,Residential,Supplies & Services
Leeds City Council,Adult Social Care,05/04/2017,7267.21,Anchor Trust,Residential,Supplies & Services
Leeds City Council,Adult Social Care,05/04/2017,11805.76,Anchor Trust Simon Marks Court,Residential,Supplies & Services
Leeds City Council,Adult Social Care,05/04/2017,1464.87,Borrage House,Residential,Supplies & Services
Leeds City Council,Adult Social Care,05/04/2017,1288.80,Bupa Park Avenue,Residential,Supplies & Services
Leeds City Council,Adult Social Care,05/04/2017,26005.95,Donisthorpe Hall,Residential,Supplies & Services
Leeds City Council,Adult Social Care,05/04/2017,1078.40,Dyneley House,Residential,Supplies & Services
Leeds City Council,Adult Social Care,05/04/2017,17222.22,Gledhow Christian Care Home,Residential,Supplies & Services
Leeds City Council,Adult Social Care,05/04/2017,1464.87,Heath Lodge Residential Home,Residential,Supplies & Services
Leeds City Council,Adult Social Care,05/04/2017,2982.28,Joseph Rowntree Foundation,Residential,Supplies & Services
Leeds City Council,Adult Social Care,05/04/2017,28342.11,Larchfield Residential Home,Residential,Supplies & Services
Leeds City Council,Adult Social Care,05/04/2017,3433.91,Leeds Jewish Welfare Board,Residential,Supplies & Services
Leeds City Council,Adult Social Care,05/04/2017,2218.40,Leonard Cheshire,Residential,Supplies & Services
Leeds City Council,Adult Social Care,05/04/2017,3653.78,Leonard Cheshire Disability,Residential,Supplies & Services
Leeds City Council,Adult Social Care,05/04/2017,9556.70,Little Sisters Of The Poor,Residential,Supplies & Services
Leeds City Council,Adult Social Care,05/04/2017,1350.22,Orders Of St John Care Trust,Residential,Supplies & Services
Leeds City Council,Adult Social Care,05/04/2017,4624.16,St Annes Residential Care,Residential,Supplies & Services
Leeds City Council,Adult Social Care,05/04/2017,3340.96,The Borrins,Residential,Supplies & Services
Leeds City Council,Adult Social Care,04/04/2017,803.99,Affinity Trust,Home Care,Supplies & Services
Leeds City Council,Adult Social Care,07/04/2017,576.42,Casa Leeds,Home Care,Supplies & Services
Leeds City Council,Adult Social Care,07/04/2017,480.00,Leep1,Home Care,Supplies & Services
Leeds City Council,Adult Social Care,07/04/2017,480.00,Leep1,Home Care,Supplies & Services
Leeds City Council,Adult Social Care,07/04/2017,168.00,Leep1,Home Care,Supplies & Services
Leeds City Council,Adult Social Care,07/04/2017,378.00,Leep1,Home Care,Supplies & Services
Leeds City Council,Adult Social Care,03/04/2017,602.28,People Matters (Leeds) Ltd,Home Care,Supplies & Services
Leeds City Council,Adult Social Care,13/04/2017,535.36,People Matters (Leeds) Ltd,Home Care,Supplies & Services
Leeds City Council,Adult Social Care,13/04/2017,259.20,People In Action Leeds Uk,Home Care,Supplies & Services
Leeds City Council,Adult Social Care,05/04/2017,256.00,Scope,Home Care,Supplies & Services
Leeds City Council,Adult Social Care,05/04/2017,714.24,St Annes Community Services,Sheltered Accommodation,Supplies & Services
Leeds City Council,Adult Social Care,06/04/2017,162.36,St Annes Community Services,Home Care,Supplies & Services
Leeds City Council,Adult Social Care,03/04/2017,105.00,Saint John Of God Hospitaller Services,Payments To Voluntary Organisations,Supplies & Services
Leeds City Council,Adult Social Care,06/04/2017,140.00,Second Chance Headway Centre,Home Care,Supplies & Services
Leeds City Council,Adult Social Care,07/04/2017,513.18,Signhealth,Home Care,Supplies & Services
Leeds City Council,Adult Social Care,19/04/2017,769.04,Specialist Autism Services,Home Care,Supplies & Services
Leeds City Council,Adult Social Care,19/04/2017,609.04,Specialist Autism Services,Home Care,Supplies & Services
Leeds City Council,Adult Social Care,19/04/2017,609.04,Specialist Autism Services,Home Care,Supplies & Services
Leeds City Council,Adult Social Care,19/04/2017,609.04,Specialist Autism Services,Home Care,Supplies & Services
Leeds City Council,Adult Social Care,19/04/2017,913.56,Specialist Autism Services,Home Care,Supplies & Services
Leeds City Council,Adult Social Care,19/04/2017,95.40,Specialist Autism Services,Home Care,Supplies & Services
Leeds City Council,Adult Social Care,21/04/2017,477.96,The Disabilities Trust,Home Care,Supplies & Services
Leeds City Council,Adult Social Care,03/04/2017,477.96,The Disabilities Trust,Home Care,Supplies & Services
Leeds City Council,Adult Social Care,21/04/2017,1372.00,The Disabilities Trust,Home Care,Supplies & Services
Leeds City Council,Adult Social Care,19/04/2017,640.00,The Disabilities Trust,Home Care,Supplies & Services
Leeds City Council,Adult Social Care,19/04/2017,560.00,The Disabilities Trust,Home Care,Supplies & Services
Leeds City Council,Adult Social Care,19/04/2017,1024.00,The Disabilities Trust,Home Care,Supplies & Services
Leeds City Council,Adult Social Care,13/04/2017,5225.36,The Disabilities Trust,Home Care,Supplies & Services
Leeds City Council,Adult Social Care,19/04/2017,2926.40,The Disabilities Trust,Services Rendered By Voluntary Sector,Supplies & Services
Leeds City Council,Adult Social Care,13/04/2017,4714.48,The Disabilities Trust,Services Rendered By Voluntary Sector,Supplies & Services
Leeds City Council,Adult Social Care,13/04/2017,384.00,The Disabilities Trust,Services Rendered By Voluntary Sector,Supplies & Services
Leeds City Council,Adult Social Care,05/04/2017,512.00,The Disabilities Trust,Services Rendered By Voluntary Sector,Supplies & Services
Leeds City Council,Adult Social Care,12/04/2017,360.00,Touchstone - Leeds,Home Care,Supplies & Services
Leeds City Council,Adult Social Care,12/04/2017,80.00,Touchstone - Leeds,Home Care,Supplies & Services
Leeds City Council,Adult Social Care,12/04/2017,360.00,Touchstone - Leeds,Home Care,Supplies & Services
Leeds City Council,Adult Social Care,12/04/2017,460.00,Touchstone - Leeds,Home Care,Supplies & Services
Leeds City Council,Adult Social Care,12/04/2017,80.00,Touchstone - Leeds,Home Care,Supplies & Services
Leeds City Council,Adult Social Care,12/04/2017,405.00,Touchstone - Leeds,Home Care,Supplies & Services
Leeds City Council,Adult Social Care,03/04/2017,8131.00,William Merritt Disabled Living,Recurring & Major Grants Projects,Supplies & Services
Leeds City Council,Adult Social Care,18/04/2017,29887.27,Anchor Trust,Services Rendered By Voluntary Sector,Supplies & Services
Leeds City Council,Adult Social Care,13/04/2017,30000.00,Dial (Leeds) Limited,Payments To Voluntary Organisations,Supplies & Services
Leeds City Council,Adult Social Care,13/04/2017,157210.00,Leeds Centre For Integrated Living,Payments To Voluntary Organisations,Supplies & Services
Leeds City Council,Adult Social Care,24/04/2017,526.68,Affinity Trust,Home Care,Supplies & Services
Leeds City Council,Adult Social Care,28/04/2017,1086.64,Affinity Trust,Home Care,Supplies & Services
Leeds City Council,Adult Social Care,24/04/2017,134.56,Affinity Trust,Home Care,Supplies & Services
Leeds City Council,Adult Social Care,24/04/2017,540.00,Leep1,Home Care,Supplies & Services
Leeds City Council,Adult Social Care,05/04/2017,2311.00,Home Farm Trust Ltd,Sheltered Accommodation,Supplies & Services
Leeds City Council,Adult Social Care,05/04/2017,1713.56,Mencap,Sheltered Accommodation,Supplies & Services
Leeds City Council,Adult Social Care,05/04/2017,31456.92,The Disabilities Trust,Sheltered Accommodation,Supplies & Services
Leeds City Council,Adult Social Care,05/04/2017,8484.84,The Disabilities Trust,Sheltered Accommodation,Supplies & Services
Leeds City Council,Adult Social Care,05/04/2017,1661.60,Anchor Trust,Nursing Home,Supplies & Services
Leeds City Council,Adult Social Care,05/04/2017,6646.92,Leonard Cheshire Disability,Nursing Home,Supplies & Services
Leeds City Council,Adult Social Care,05/04/2017,1872.00,Anchor Trust,Residential,Supplies & Services
Leeds City Council,Adult Social Care,05/04/2017,2570.08,Henshaw Yokshire,Residential,Supplies & Services
Leeds City Council,Adult Social Care,05/04/2017,4090.76,Hollybank Trust,Residential,Supplies & Services
Leeds City Council,Adult Social Care,05/04/2017,4143.63,Larchfield Residential Home,Residential,Supplies & Services
Leeds City Council,Adult Social Care,05/04/2017,27836.29,Leonard Cheshire,Residential,Supplies & Services
Leeds City Council,Adult Social Care,05/04/2017,2511.24,Leonard Cheshire Disability,Residential,Supplies & Services
Leeds City Council,Adult Social Care,05/04/2017,3285.48,Leonard Cheshire Disability,Residential,Supplies & Services
Leeds City Council,Adult Social Care,05/04/2017,3509.92,Leonard Cheshire Of Gloucestershire,Residential,Supplies & Services
Leeds City Council,Adult Social Care,05/04/2017,6293.19,Livability,Residential,Supplies & Services
Leeds City Council,Adult Social Care,05/04/2017,4671.88,Royal National Institute For The,Residential,Supplies & Services
Leeds City Council,Adult Social Care,05/04/2017,20679.64,Saint John Of God Hospitaller Services,Residential,Supplies & Services
Leeds City Council,Adult Social Care,05/04/2017,4630.96,The Disabilities Trust,Residential,Supplies & Services
Leeds City Council,Adult Social Care,05/04/2017,300.00,Carers Leeds,Training & Development,Supplies & Services
Leeds City Council,Adult Social Care,19/04/2017,200.00,Carers Leeds,Training & Development,Supplies & Services
Leeds City Council,Adult Social Care,25/04/2017,151.05,Leeds Mind,Food & Drink,Supplies & Services
Leeds City Council,Adult Social Care,11/04/2017,15000.00,Ls14 Trust,Research Costs,Supplies & Services
Leeds City Council,Central & Corporate,05/04/2017,322.50,New Wortley Community Association Ltd,Hire of meeting rooms,Supplies & Services
Leeds City Council,Central & Corporate,28/04/2017,161.25,New Wortley Community Association Ltd,Hire of meeting rooms,Supplies & Services
Leeds City Council,Central & Corporate,12/04/2017,65.00,St Chads Parish Centre,Conference Meetings,Supplies & Services
Leeds City Council,Central & Corporate,21/04/2017,200.00,Cipfa,Training & Development,Supplies & Services
Leeds City Council,Central & Corporate,21/04/2017,200.00,Cipfa,Training & Development,Supplies & Services
Leeds City Council,Central & Corporate,21/04/2017,200.00,Cipfa,Training & Development,Supplies & Services
Leeds City Council,Central & Corporate,21/04/2017,200.00,Cipfa,Training & Development,Supplies & Services
Leeds City Council,Central & Corporate,21/04/2017,200.00,Cipfa,Training & Development,Supplies & Services
Leeds City Council,Central & Corporate,03/04/2017,12.00,Slate Cafe And Furniture Store,Hire of meeting rooms,Supplies & Services
Leeds City Council,Central & Corporate,04/04/2017,6000.00,The Apperta Foundation Cic,Other Costs,Supplies & Services
Leeds City Council,Central & Corporate,24/04/2017,5876.48,Coram Academy,Software - Expenditure,Supplies & Services
Leeds City Council,Childrens Services,03/04/2017,2752.00,Wellspring Academy Trust,Other Costs,Supplies & Services
Leeds City Council,Childrens Services,21/04/2017,374.97,Age Uk Leeds Enterprises,Digital Inclusion - ICT,Supplies & Services
Leeds City Council,Childrens Services,26/04/2017,1800.00,Armley Junk-Tion,Bought In Professional Services,Supplies & Services
Leeds City Council,Childrens Services,13/04/2017,35300.00,Aspire-Igen Ltd,Bought In Professional Services,Supplies & Services
Leeds City Council,Childrens Services,13/04/2017,16667.00,Aspire-Igen Ltd,Services Rendered By Other Organisations,Supplies & Services
Leeds City Council,Childrens Services,13/04/2017,14333.33,Aspire-Igen Ltd,Services Rendered By Other Organisations,Supplies & Services
Leeds City Council,Childrens Services,13/04/2017,40368.25,Barnardo Services Ltd,Services Rendered By Voluntary Sector,Supplies & Services
Leeds City Council,Childrens Services,07/04/2017,500.00,Bishop Wheeler Catholic Academy Trust,Other Hired And Contracted Services,Supplies & Services
Leeds City Council,Childrens Services,20/04/2017,416.89,City Of Leeds Ymca,Digital Inclusion - ICT,Supplies & Services
Leeds City Council,Childrens Services,27/04/2017,200.00,Dj School Leeds Cic,Other Hired And Contracted Services,Supplies & Services
Leeds City Council,Childrens Services,07/04/2017,1800.00,Dj School Leeds Cic,Services Rendered By Other Organisations,Supplies & Services
Leeds City Council,Childrens Services,18/04/2017,398.33,East Street Arts,Digital Inclusion - ICT,Supplies & Services
Leeds City Council,Childrens Services,27/04/2017,19194.00,East Street Arts,College Contracts,Supplies & Services
Leeds City Council,Childrens Services,04/04/2017,1650.00,Grand National Archery Society,Training & Development,Supplies & Services
Leeds City Council,Childrens Services,07/04/2017,5000.00,Heads Together Productions Ltd,Services Rendered By Other Organisations,Supplies & Services
Leeds City Council,Childrens Services,05/04/2017,17500.00,Home-Start Leeds,Home Care,Supplies & Services
Leeds City Council,Childrens Services,13/04/2017,10687.00,Hamara Hlc,Services Rendered By Other Organisations,Supplies & Services
Leeds City Council,Childrens Services,26/04/2017,360.00,Health For All (Leeds) Ltd,Other Hired And Contracted Services,Supplies & Services
Leeds City Council,Childrens Services,20/04/2017,420.00,Learning Partnerships,Digital Inclusion - ICT,Supplies & Services
Leeds City Council,Childrens Services,13/04/2017,26950.00,Learning Partnerships,College Contracts,Supplies & Services
Leeds City Council,Childrens Services,13/04/2017,85.00,Leeds Rugby Foundation Services Ltd,Other Hired And Contracted Services,Supplies & Services
Leeds City Council,Childrens Services,07/04/2017,14300.00,Leeds Schools Sport Association,Memberships,Supplies & Services
Leeds City Council,Childrens Services,13/04/2017,1500.00,Middleton Park Equestrian Centre,Bought In Professional Services,Supplies & Services
Leeds City Council,Childrens Services,21/04/2017,149.82,Northern College,Digital Inclusion - ICT,Supplies & Services
Leeds City Council,Childrens Services,19/04/2017,28736.50,Northern College,College Contracts,Supplies & Services
Leeds City Council,Childrens Services,28/04/2017,1440.00,National Childbirth Trust,Services Rendered By Voluntary Sector,Supplies & Services
Leeds City Council,Childrens Services,28/04/2017,43250.00,Northpoint Wellbeing Limited,Services Rendered By Voluntary Sector,Supplies & Services
Leeds City Council,Childrens Services,13/04/2017,1032.50,Open College Network Yhr,Memberships,Supplies & Services
Leeds City Council,Childrens Services,13/04/2017,252.50,Open College Network Yhr,Memberships,Supplies & Services
Leeds City Council,Childrens Services,07/04/2017,250.00,Opera North Ltd,Teaching Furniture & Equipment,Supplies & Services
Leeds City Council,Childrens Services,07/04/2017,1150.00,Opera North Ltd,Teaching Furniture & Equipment,Supplies & Services
Leeds City Council,Childrens Services,13/04/2017,500.00,Opera North Ltd,Teaching Furniture & Equipment,Supplies & Services
Leeds City Council,Childrens Services,19/04/2017,600.00,Opera North Ltd,Teaching Furniture & Equipment,Supplies & Services
Leeds City Council,Childrens Services,13/04/2017,300.00,Opera North Ltd,Services Rendered By Other Organisations,Supplies & Services
Leeds City Council,Childrens Services,03/04/2017,1007.99,Royal Mencap Society,Digital Inclusion - ICT,Supplies & Services
Leeds City Council,Childrens Services,20/04/2017,3200.00,Royal Mencap Society,Services Rendered By Other Organisations,Supplies & Services
Leeds City Council,Childrens Services,05/04/2017,4158.00,Rainbow St Peters Pre School,Services Rendered By Voluntary Sector,Supplies & Services
Leeds City Council,Childrens Services,21/04/2017,250.00,Shantona Womens Centre,Internal Charges From Corporate Governan,Supplies & Services
Leeds City Council,Childrens Services,21/04/2017,5000.00,South Asian Arts-Uk,Services Rendered By Other Organisations,Supplies & Services
Leeds City Council,Childrens Services,21/04/2017,19140.00,St Annes Community Services,College Contracts,Supplies & Services
Leeds City Council,Childrens Services,21/04/2017,1890.00,St Annes Community Services,College Contracts,Supplies & Services
Leeds City Council,Childrens Services,28/04/2017,1951.83,St Annes Community Services,Digital Inclusion - ICT,Supplies & Services
Leeds City Council,Childrens Services,19/04/2017,440.00,St Annes Community Services,Digital Inclusion - ICT,Supplies & Services
Leeds City Council,Childrens Services,19/04/2017,182.50,Swarthmore Education Centre,Rents,Supplies & Services
Leeds City Council,Childrens Services,07/04/2017,450.00,Swarthmore Education Centre,Digital Inclusion - ICT,Supplies & Services
Leeds City Council,Childrens Services,07/04/2017,1500.00,Swarthmore Education Centre,Conference Meetings,Supplies & Services
Leeds City Council,Childrens Services,07/04/2017,300.00,Swarthmore Education Centre,Conference Meetings,Supplies & Services
Leeds City Council,Childrens Services,26/04/2017,10000.00,Sing Up,Teaching Furniture & Equipment,Supplies & Services
Leeds City Council,Childrens Services,27/04/2017,816.67,Thackray Medical Museum Company Ltd,Other Hired And Contracted Services,Supplies & Services
Leeds City Council,Childrens Services,13/04/2017,200.00,The Big Hoo-Ha Company,Internal Charges From Education & School,Supplies & Services
Leeds City Council,Childrens Services,13/04/2017,4837.50,The Big Hoo-Ha Company,Services Rendered By Other Organisations,Supplies & Services
Leeds City Council,Childrens Services,07/04/2017,50.96,The Cardigan Centre,Digital Inclusion - ICT,Supplies & Services
Leeds City Council,Childrens Services,07/04/2017,398.85,The Cardigan Centre,Digital Inclusion - ICT,Supplies & Services
Leeds City Council,Childrens Services,24/04/2017,5000.00,The Cardigan Centre,College Contracts,Supplies & Services
Leeds City Council,Childrens Services,21/04/2017,1200.00,The Works Skatepark Charity,Bought In Professional Services,Supplies & Services
Leeds City Council,Childrens Services,21/04/2017,706.45,Vera Media Ltd,Digital Inclusion - ICT,Supplies & Services
Leeds City Council,Childrens Services,07/04/2017,2000.00,Yamsen,Services Rendered By Other Organisations,Supplies & Services
Leeds City Council,Childrens Services,07/04/2017,1000.00,Yamsen,Services Rendered By Other Organisations,Supplies & Services
Leeds City Council,Childrens Services,21/04/2017,60.00,Yeadon St John Pcc,Other Hired And Contracted Services,Supplies & Services
Leeds City Council,Childrens Services,07/04/2017,404.00,Ymes Cic,Services Rendered By Other Organisations,Supplies & Services
Leeds City Council,Childrens Services,06/04/2017,2040.00,Youth Sport Trust,Memberships,Supplies & Services
Leeds City Council,Childrens Services,07/04/2017,2160.00,Zest Health For Life,Services Rendered By Voluntary Sector,Supplies & Services
Leeds City Council,Childrens Services,28/04/2017,250.00,Opera North Ltd,Teaching Furniture & Equipment,Supplies & Services
Leeds City Council,Childrens Services,28/04/2017,250.00,Arts @ Trinity Ltd,Other Hired And Contracted Services,Supplies & Services
Leeds City Council,Childrens Services,25/04/2017,225.00,Drighlington Methodist Church,Other Hired And Contracted Services,Supplies & Services
Leeds City Council,Childrens Services,21/04/2017,104.00,Middleton Park Equestrian Centre,Admission Charges To Schools,Supplies & Services
Leeds City Council,Childrens Services,04/04/2017,250.00,Shantona Womens Centre,Internal Charges From Corporate Governan,Supplies & Services
Leeds City Council,Childrens Services,21/04/2017,2363.40,Adel Pre School,Services Rendered By Voluntary Sector,Supplies & Services
Leeds City Council,Childrens Services,28/04/2017,24242.40,Beechtree Headingley Kindergarten,Services Rendered By Voluntary Sector,Supplies & Services
Leeds City Council,Childrens Services,28/04/2017,18695.04,Bright Sparks Pre-School,Services Rendered By Voluntary Sector,Supplies & Services
Leeds City Council,Childrens Services,21/04/2017,6643.78,Bright Sparks Pre-School,Services Rendered By Voluntary Sector,Supplies & Services
Leeds City Council,Childrens Services,28/04/2017,25401.60,Brownberrie Lane Pre-School,Services Rendered By Voluntary Sector,Supplies & Services
Leeds City Council,Childrens Services,21/04/2017,20167.68,Chapel Street Pre-School,Services Rendered By Voluntary Sector,Supplies & Services
Leeds City Council,Childrens Services,21/04/2017,2363.40,Deepdale Community Pre-School,Services Rendered By Voluntary Sector,Supplies & Services
Leeds City Council,Childrens Services,28/04/2017,21883.68,Deepdale Community Pre-School,Services Rendered By Voluntary Sector,Supplies & Services
Leeds City Council,Childrens Services,21/04/2017,1260.48,Garforth Pre-School Playgroup,Services Rendered By Voluntary Sector,Supplies & Services
Leeds City Council,Childrens Services,28/04/2017,22495.20,Greenacre Pre-School,Services Rendered By Voluntary Sector,Supplies & Services
Leeds City Council,Childrens Services,28/04/2017,19393.92,Greenside Care Club,Services Rendered By Voluntary Sector,Supplies & Services
Leeds City Council,Childrens Services,28/04/2017,16380.00,Headingley Pre School,Services Rendered By Voluntary Sector,Supplies & Services
Leeds City Council,Childrens Services,28/04/2017,29484.00,Headingley Pre School,Services Rendered By Voluntary Sector,Supplies & Services
Leeds City Council,Childrens Services,21/04/2017,3151.20,Headingley Pre School,Services Rendered By Voluntary Sector,Supplies & Services
Leeds City Council,Childrens Services,21/04/2017,3151.20,Headingley Pre School,Services Rendered By Voluntary Sector,Supplies & Services
Leeds City Council,Childrens Services,21/04/2017,6932.64,Kirkstall St Stephens Pre School,Services Rendered By Voluntary Sector,Supplies & Services
Leeds City Council,Childrens Services,28/04/2017,17559.36,Kirkstall St Stephens Pre School,Services Rendered By Voluntary Sector,Supplies & Services
Leeds City Council,Childrens Services,21/04/2017,3151.20,Owls & The Pussycats Playgroup,Services Rendered By Voluntary Sector,Supplies & Services
Leeds City Council,Childrens Services,28/04/2017,3931.20,Owls & The Pussycats Playgroup,Services Rendered By Voluntary Sector,Supplies & Services
Leeds City Council,Childrens Services,28/04/2017,21403.20,Pool Pre-School Group,Services Rendered By Voluntary Sector,Supplies & Services
Leeds City Council,Childrens Services,21/04/2017,787.80,Pool Pre-School Group,Services Rendered By Voluntary Sector,Supplies & Services
Leeds City Council,Childrens Services,21/04/2017,1890.72,Rainbow St Peters Pre School,Services Rendered By Voluntary Sector,Supplies & Services
Leeds City Council,Childrens Services,28/04/2017,25290.72,Rainbow St Peters Pre School,Services Rendered By Voluntary Sector,Supplies & Services
Leeds City Council,Childrens Services,28/04/2017,18083.52,Roundabout Playgroup,Services Rendered By Voluntary Sector,Supplies & Services
Leeds City Council,Childrens Services,21/04/2017,787.80,Roundabout Playgroup,Services Rendered By Voluntary Sector,Supplies & Services
Leeds City Council,Childrens Services,21/04/2017,18882.30,Shantona Womens Centre,Services Rendered By Voluntary Sector,Supplies & Services
Leeds City Council,Childrens Services,28/04/2017,109.20,St Marys Playgroup,Services Rendered By Voluntary Sector,Supplies & Services
Leeds City Council,Childrens Services,28/04/2017,25116.00,Templegate Tiny Tots,Services Rendered By Voluntary Sector,Supplies & Services
Leeds City Council,Childrens Services,21/04/2017,1102.92,Templegate Tiny Tots,Services Rendered By Voluntary Sector,Supplies & Services
Leeds City Council,Childrens Services,21/04/2017,3825.88,The Play Centre,Services Rendered By Voluntary Sector,Supplies & Services
Leeds City Council,Childrens Services,28/04/2017,14343.84,The Play Centre,Services Rendered By Voluntary Sector,Supplies & Services
Leeds City Council,Childrens Services,21/04/2017,787.80,Thorner Pre-School & Toddler Group,Services Rendered By Voluntary Sector,Supplies & Services
Leeds City Council,Childrens Services,28/04/2017,23194.08,Thorner Pre-School & Toddler Group,Services Rendered By Voluntary Sector,Supplies & Services
Leeds City Council,Childrens Services,21/04/2017,3393.60,Wellington Hill Playgroup,Services Rendered By Voluntary Sector,Supplies & Services
Leeds City Council,Childrens Services,28/04/2017,7056.00,Wellington Hill Playgroup,Services Rendered By Voluntary Sector,Supplies & Services
Leeds City Council,Childrens Services,21/04/2017,2363.40,Wigton Moor Playschool Association,Services Rendered By Voluntary Sector,Supplies & Services
Leeds City Council,Childrens Services,28/04/2017,26994.24,Wigton Moor Playschool Association,Services Rendered By Voluntary Sector,Supplies & Services
Leeds City Council,Childrens Services,28/04/2017,8910.72,Woodside Methodist Pre-School,Services Rendered By Voluntary Sector,Supplies & Services
Leeds City Council,Childrens Services,21/04/2017,787.80,Woodside Methodist Pre-School,Services Rendered By Voluntary Sector,Supplies & Services
Leeds City Council,Childrens Services,28/04/2017,10634.40,Abc Daycare And Ozone Out Of School,Services Rendered By Other Organisations,Supplies & Services
Leeds City Council,Childrens Services,21/04/2017,8665.80,Abc Daycare And Ozone Out Of School,Services Rendered By Other Organisations,Supplies & Services
Leeds City Council,Childrens Services,28/04/2017,20442.24,Adel Pre School,Services Rendered By Other Organisations,Supplies & Services
Leeds City Council,Childrens Services,21/04/2017,13392.60,Amazing Grace Early Years Childcare,Services Rendered By Other Organisations,Supplies & Services
Leeds City Council,Childrens Services,28/04/2017,11793.60,Amazing Grace Early Years Childcare,Services Rendered By Other Organisations,Supplies & Services
Leeds City Council,Childrens Services,21/04/2017,2363.40,Asha Neighbourhood Project,Services Rendered By Other Organisations,Supplies & Services
Leeds City Council,Childrens Services,28/04/2017,4586.40,Asha Neighbourhood Project,Services Rendered By Other Organisations,Supplies & Services
Leeds City Council,Childrens Services,21/04/2017,1575.60,Calverley Village Day Nursery,Services Rendered By Other Organisations,Supplies & Services
Leeds City Council,Childrens Services,28/04/2017,28173.60,Calverley Village Day Nursery,Services Rendered By Other Organisations,Supplies & Services
Leeds City Council,Childrens Services,28/04/2017,21162.96,Chapel Street Pre-School,Services Rendered By Other Organisations,Supplies & Services
Leeds City Council,Childrens Services,21/04/2017,3151.20,Chapeltown Community Nursery,Services Rendered By Other Organisations,Supplies & Services
Leeds City Council,Childrens Services,28/04/2017,11256.00,Chapeltown Community Nursery,Services Rendered By Other Organisations,Supplies & Services
Leeds City Council,Childrens Services,21/04/2017,1575.60,Churwell Cic,Services Rendered By Other Organisations,Supplies & Services
Leeds City Council,Childrens Services,28/04/2017,14414.40,Churwell Cic,Services Rendered By Other Organisations,Supplies & Services
Leeds City Council,Childrens Services,21/04/2017,7090.20,Ducklings Pre-School Learning Centre,Services Rendered By Other Organisations,Supplies & Services
Leeds City Council,Childrens Services,28/04/2017,37077.60,Ducklings Pre-School Learning Centre,Services Rendered By Other Organisations,Supplies & Services
Leeds City Council,Childrens Services,28/04/2017,32760.00,Faith Together In Leeds 11,Services Rendered By Other Organisations,Supplies & Services
Leeds City Council,Childrens Services,21/04/2017,47268.00,Faith Together In Leeds 11,Services Rendered By Other Organisations,Supplies & Services
Leeds City Council,Childrens Services,28/04/2017,2489.76,Garforth Pre-School Playgroup,Services Rendered By Other Organisations,Supplies & Services
Leeds City Council,Childrens Services,21/04/2017,22434.12,Ireland Wood Childrens Centre,Services Rendered By Other Organisations,Supplies & Services
Leeds City Council,Childrens Services,28/04/2017,48864.48,Ireland Wood Childrens Centre,Services Rendered By Other Organisations,Supplies & Services
Leeds City Council,Childrens Services,21/04/2017,12604.80,Kangaroo Kids Pre-School,Services Rendered By Other Organisations,Supplies & Services
Leeds City Council,Childrens Services,28/04/2017,3276.00,Kangaroo Kids Pre-School,Services Rendered By Other Organisations,Supplies & Services
Leeds City Council,Childrens Services,21/04/2017,31512.00,Leeds Mencap Ltd,Services Rendered By Other Organisations,Supplies & Services
Leeds City Council,Childrens Services,28/04/2017,31449.60,Leeds Mencap Ltd,Services Rendered By Other Organisations,Supplies & Services
Leeds City Council,Childrens Services,21/04/2017,5423.15,New Beginnings,Services Rendered By Other Organisations,Supplies & Services
Leeds City Council,Childrens Services,28/04/2017,1724.25,New Beginnings,Services Rendered By Other Organisations,Supplies & Services
Leeds City Council,Childrens Services,21/04/2017,2888.60,North Leeds Community Nursery,Services Rendered By Other Organisations,Supplies & Services
Leeds City Council,Childrens Services,28/04/2017,14196.00,North Leeds Community Nursery,Services Rendered By Other Organisations,Supplies & Services
Leeds City Council,Childrens Services,28/04/2017,1418.04,Shadwell Pre-School Playgroup,Services Rendered By Other Organisations,Supplies & Services
Leeds City Council,Childrens Services,28/04/2017,42000.00,Shadwell Pre-School Playgroup,Services Rendered By Other Organisations,Supplies & Services
Leeds City Council,Childrens Services,28/04/2017,9172.80,Shantona Womens Centre,Services Rendered By Other Organisations,Supplies & Services
Leeds City Council,Childrens Services,21/04/2017,3151.20,South Leeds Family Childcare,Services Rendered By Other Organisations,Supplies & Services
Leeds City Council,Childrens Services,28/04/2017,10876.32,South Leeds Family Childcare,Services Rendered By Other Organisations,Supplies & Services
Leeds City Council,Childrens Services,28/04/2017,44553.60,Sunbeams Ltd,Services Rendered By Other Organisations,Supplies & Services
Leeds City Council,Childrens Services,21/04/2017,4726.80,Sunbeams Ltd,Services Rendered By Other Organisations,Supplies & Services
Leeds City Council,Childrens Services,21/04/2017,28360.80,The Salvation Army,Services Rendered By Other Organisations,Supplies & Services
Leeds City Council,Childrens Services,28/04/2017,38001.60,The Salvation Army,Services Rendered By Other Organisations,Supplies & Services
Leeds City Council,Childrens Services,10/04/2017,75.00,Hunslet Club,Catering Service,Supplies & Services
Leeds City Council,Childrens Services,13/04/2017,2000.00,Leeds Grand Theatre & Opera,Hire of meeting rooms,Supplies & Services
Leeds City Council,Childrens Services,04/04/2017,85.00,Leeds Womens Aid,Training & Development,Supplies & Services
Leeds City Council,Childrens Services,21/04/2017,549.00,Thackray Medical Museum Company Ltd,Training & Development,Supplies & Services
Leeds City Council,Childrens Services,11/04/2017,15000.00,The Dartington Hall Trust,Training & Development,Supplies & Services
Leeds City Council,Childrens Services,13/04/2017,21375.00,Voluntary Action-Leeds,Services Rendered By Voluntary Sector,Supplies & Services
Leeds City Council,Childrens Services,20/04/2017,250.00,Open College Network Yhr,Training & Development,Supplies & Services
Leeds City Council,Childrens Services,21/04/2017,1067.00,Open College Network Yhr,Training & Development,Supplies & Services
Leeds City Council,Childrens Services,18/04/2017,510.00,British Youth Council,Memberships,Supplies & Services
Leeds City Council,Childrens Services,13/04/2017,4776.48,Action For Children,Semi-Supported Independent Living,Supplies & Services
Leeds City Council,Childrens Services,13/04/2017,4776.48,Action For Children,Semi-Supported Independent Living,Supplies & Services
Leeds City Council,Childrens Services,13/04/2017,4776.48,Action For Children,Semi-Supported Independent Living,Supplies & Services
Leeds City Council,Childrens Services,13/04/2017,4776.48,Action For Children,Semi-Supported Independent Living,Supplies & Services
Leeds City Council,Childrens Services,13/04/2017,5163.67,Action For Children,Independent Fostering Agencies,Supplies & Services
Leeds City Council,Childrens Services,06/04/2017,2660.00,Adolescent And Childrens Trust,Independent Fostering Agencies,Supplies & Services
Leeds City Council,Childrens Services,06/04/2017,2660.00,Adolescent And Childrens Trust,Independent Fostering Agencies,Supplies & Services
Leeds City Council,Childrens Services,03/04/2017,2800.00,Adolescent And Childrens Trust,Independent Fostering Agencies,Supplies & Services
Leeds City Council,Childrens Services,03/04/2017,2800.00,Adolescent And Childrens Trust,Independent Fostering Agencies,Supplies & Services
Leeds City Council,Childrens Services,27/04/2017,17500.00,Barca - Leeds,Other Hired And Contracted Services,Supplies & Services
Leeds City Council,Childrens Services,06/04/2017,11142.00,Barca - Leeds,Family Intervension Grant,Supplies & Services
Leeds City Council,Childrens Services,28/04/2017,39583.33,Barca - Leeds,Services Rendered By Voluntary Sector,Supplies & Services
Leeds City Council,Childrens Services,13/04/2017,897.40,Barnardo Services Ltd,Semi-Supported Independent Living,Supplies & Services
Leeds City Council,Childrens Services,13/04/2017,544.85,Barnardo Services Ltd,Semi-Supported Independent Living,Supplies & Services
Leeds City Council,Childrens Services,13/04/2017,416.65,Barnardo Services Ltd,Semi-Supported Independent Living,Supplies & Services
Leeds City Council,Childrens Services,13/04/2017,897.40,Barnardo Services Ltd,Semi-Supported Independent Living,Supplies & Services
Leeds City Council,Childrens Services,13/04/2017,300.00,Barnardo Services Ltd,Semi-Supported Independent Living,Supplies & Services
Leeds City Council,Childrens Services,13/04/2017,79.44,Barnardo Services Ltd,Semi-Supported Independent Living,Supplies & Services
Leeds City Council,Childrens Services,13/04/2017,686.65,Barnardo Services Ltd,Semi-Supported Independent Living,Supplies & Services
Leeds City Council,Childrens Services,13/04/2017,897.40,Barnardo Services Ltd,Semi-Supported Independent Living,Supplies & Services
Leeds City Council,Childrens Services,13/04/2017,897.40,Barnardo Services Ltd,Semi-Supported Independent Living,Supplies & Services
Leeds City Council,Childrens Services,06/04/2017,45.00,Barnardo Services Ltd,Semi-Supported Independent Living,Supplies & Services
Leeds City Council,Childrens Services,13/04/2017,897.40,Barnardo Services Ltd,Semi-Supported Independent Living,Supplies & Services
Leeds City Council,Childrens Services,13/04/2017,4173.75,Barnardo Services Ltd,Services Rendered By Voluntary Sector,Supplies & Services
Leeds City Council,Childrens Services,13/04/2017,41803.50,Barnardo Services Ltd,Services Rendered By Voluntary Sector,Supplies & Services
Leeds City Council,Childrens Services,13/04/2017,79.50,Barnardos,Section 17,Supplies & Services
Leeds City Council,Childrens Services,13/04/2017,3712.25,Barnardos,Semi-Supported Independent Living,Supplies & Services
Leeds City Council,Childrens Services,13/04/2017,4134.78,Barnardos,Semi-Supported Independent Living,Supplies & Services
Leeds City Council,Childrens Services,13/04/2017,3388.30,Barnardos,Semi-Supported Independent Living,Supplies & Services
Leeds City Council,Childrens Services,13/04/2017,3472.00,Barnardos,Semi-Supported Independent Living,Supplies & Services
Leeds City Council,Childrens Services,13/04/2017,897.40,Barnardos,Semi-Supported Independent Living,Supplies & Services
Leeds City Council,Childrens Services,13/04/2017,9474.22,Barnardos,Semi-Supported Independent Living,Supplies & Services
Leeds City Council,Childrens Services,13/04/2017,897.40,Barnardos,Semi-Supported Independent Living,Supplies & Services
Leeds City Council,Childrens Services,13/04/2017,21750.00,Barnardos,Services Rendered By Voluntary Sector,Supplies & Services
Leeds City Council,Childrens Services,06/04/2017,46250.00,Barnardos,Services Rendered By Voluntary Sector,Supplies & Services
Leeds City Council,Childrens Services,12/04/2017,100.00,Barnardos,Books & Audio-Visual Materials,Supplies & Services
Leeds City Council,Childrens Services,13/04/2017,3303.67,Barnardos,Semi-Supported Independent Living,Supplies & Services
Leeds City Council,Childrens Services,04/04/2017,45.00,Bramley St Peters Pcc Halls Account,Conference Meetings,Supplies & Services
Leeds City Council,Childrens Services,07/04/2017,3965.00,Breckenbrough School Ltd,SEN Placements,Supplies & Services
Leeds City Council,Childrens Services,06/04/2017,216.00,Chapel Street Pre-School,Placement Support,Supplies & Services
Leeds City Council,Childrens Services,21/04/2017,456.40,Community Accord,Bought In Professional Services,Supplies & Services
Leeds City Council,Childrens Services,21/04/2017,69.00,Community Accord,Bought In Professional Services,Supplies & Services
Leeds City Council,Childrens Services,21/04/2017,533.70,Community Accord,Bought In Professional Services,Supplies & Services
Leeds City Council,Childrens Services,13/04/2017,525.40,Community Accord,Bought In Professional Services,Supplies & Services
Leeds City Council,Childrens Services,03/04/2017,249.00,Community Accord,Bought In Professional Services,Supplies & Services
Leeds City Council,Childrens Services,13/04/2017,45.00,Cookridge Village Association,Conference Meetings,Supplies & Services
Leeds City Council,Childrens Services,28/04/2017,2995.00,Catch22 Charity Ltd,Memberships,Supplies & Services
Leeds City Council,Childrens Services,13/04/2017,80.00,Catholic Care,Semi-Supported Independent Living,Supplies & Services
Leeds City Council,Childrens Services,13/04/2017,60.00,Catholic Care,Semi-Supported Independent Living,Supplies & Services
Leeds City Council,Childrens Services,13/04/2017,4694.29,Catholic Care,Semi-Supported Independent Living,Supplies & Services
Leeds City Council,Childrens Services,13/04/2017,4694.29,Catholic Care,Semi-Supported Independent Living,Supplies & Services
Leeds City Council,Childrens Services,13/04/2017,80.00,Catholic Care,General External Residential Placements,Supplies & Services
Leeds City Council,Childrens Services,13/04/2017,60.00,Catholic Care,General External Residential Placements,Supplies & Services
Leeds City Council,Childrens Services,13/04/2017,9742.86,Catholic Care,General External Residential Placements,Supplies & Services
Leeds City Council,Childrens Services,13/04/2017,9742.86,Catholic Care,General External Residential Placements,Supplies & Services
Leeds City Council,Childrens Services,13/04/2017,9742.86,Catholic Care,General External Residential Placements,Supplies & Services
Leeds City Council,Childrens Services,03/04/2017,3244.46,Childrens Family Trust,Independent Fostering Agencies,Supplies & Services
Leeds City Council,Childrens Services,03/04/2017,3244.46,Childrens Family Trust,Independent Fostering Agencies,Supplies & Services
Leeds City Council,Childrens Services,03/04/2017,3166.34,Childrens Family Trust,Independent Fostering Agencies,Supplies & Services
Leeds City Council,Childrens Services,07/04/2017,2349.22,Childrens Family Trust,Independent Fostering Agencies,Supplies & Services
Leeds City Council,Childrens Services,07/04/2017,788.56,Childrens Family Trust,Independent Fostering Agencies,Supplies & Services
Leeds City Council,Childrens Services,03/04/2017,3244.46,Childrens Family Trust,Independent Fostering Agencies,Supplies & Services
Leeds City Council,Childrens Services,04/04/2017,2655.64,Childrens Family Trust,Independent Fostering Agencies,Supplies & Services
Leeds City Council,Childrens Services,05/04/2017,447.77,Coram Voice,General Amenity For Clients/Residents,Supplies & Services
Leeds City Council,Childrens Services,13/04/2017,334.73,Coram Voice,General Amenity For Clients/Residents,Supplies & Services
Leeds City Council,Childrens Services,13/04/2017,395.16,Coram Voice,General Amenity For Clients/Residents,Supplies & Services
Leeds City Council,Childrens Services,21/04/2017,343.00,Coram Voice,General Amenity For Clients/Residents,Supplies & Services
Leeds City Council,Childrens Services,26/04/2017,216.00,David Young Community Academy,Food & Drink,Supplies & Services
Leeds City Council,Childrens Services,26/04/2017,52.50,David Young Community Academy,Food & Drink,Supplies & Services
Leeds City Council,Childrens Services,26/04/2017,30.00,David Young Community Academy,Conference Meetings,Supplies & Services
Leeds City Council,Childrens Services,07/04/2017,75.00,David Young Community Academy,Other Hired And Contracted Services,Supplies & Services
Leeds City Council,Childrens Services,03/04/2017,1452.00,Fostering Network,Memberships,Supplies & Services
Leeds City Council,Childrens Services,13/04/2017,730.00,Family Society,Placement Support,Supplies & Services
Leeds City Council,Childrens Services,13/04/2017,2548.00,Family Society,Placement Support,Supplies & Services
Leeds City Council,Childrens Services,13/04/2017,1071.43,Fostering Yorkshire Ltd,Independent Fostering Agencies,Supplies & Services
Leeds City Council,Childrens Services,20/04/2017,1714.24,Fostering Yorkshire Ltd,Independent Fostering Agencies,Supplies & Services
Leeds City Council,Childrens Services,26/04/2017,1138.89,Foundation,Rents (non supported),Supplies & Services
Leeds City Council,Childrens Services,13/04/2017,924.00,Gipsil,Rents (non supported),Supplies & Services
Leeds City Council,Childrens Services,13/04/2017,632.00,Gipsil,Rents (non supported),Supplies & Services
Leeds City Council,Childrens Services,13/04/2017,632.00,Gipsil,Rents (non supported),Supplies & Services
Leeds City Council,Childrens Services,13/04/2017,636.00,Gipsil,Rents (non supported),Supplies & Services
Leeds City Council,Childrens Services,07/04/2017,636.00,Gipsil,Rents (non supported),Supplies & Services
Leeds City Council,Childrens Services,13/04/2017,636.00,Gipsil,Rents (non supported),Supplies & Services
Leeds City Council,Childrens Services,13/04/2017,877.00,Gipsil,Rents (non supported),Supplies & Services
Leeds City Council,Childrens Services,13/04/2017,4385.00,Gipsil,Rents (non supported),Supplies & Services
Leeds City Council,Childrens Services,13/04/2017,384.00,Gipsil,Semi-Supported Independent Living,Supplies & Services
Leeds City Council,Childrens Services,13/04/2017,29000.00,Gipsil,Services Rendered By Voluntary Sector,Supplies & Services
Leeds City Council,Childrens Services,06/04/2017,26.00,Guiseley Methodist Church,Conference Meetings,Supplies & Services
Leeds City Council,Childrens Services,12/04/2017,27.00,Headingley St Columba United,Placement Support,Supplies & Services
Leeds City Council,Childrens Services,05/04/2017,117.00,Headingley St Columba United,Placement Support,Supplies & Services
Leeds City Council,Childrens Services,18/04/2017,237.50,Headingley Enterprise And Arts Centre,Food & Drink,Supplies & Services
Leeds City Council,Childrens Services,28/04/2017,18125.00,Health For All (Leeds) Ltd,Services Rendered By Voluntary Sector,Supplies & Services
Leeds City Council,Childrens Services,28/04/2017,125.00,Health For All (Leeds) Ltd,Section 17,Supplies & Services
Leeds City Council,Childrens Services,06/04/2017,400.00,Leeds Federated Housing Association,Rents (non supported),Supplies & Services
Leeds City Council,Childrens Services,06/04/2017,398.32,Leeds Federated Housing Association,Rents (non supported),Supplies & Services
Leeds City Council,Childrens Services,07/04/2017,630.48,Leeds Federated Housing Association,Rents (non supported),Supplies & Services
Leeds City Council,Childrens Services,21/04/2017,414.00,Leeds Weekend Care Association,Services Rendered By Voluntary Sector,Supplies & Services
Leeds City Council,Childrens Services,13/04/2017,72.00,Leeds Weekend Care Association,Services Rendered By Voluntary Sector,Supplies & Services
Leeds City Council,Childrens Services,13/04/2017,108.00,Leeds Weekend Care Association,Services Rendered By Voluntary Sector,Supplies & Services
Leeds City Council,Childrens Services,13/04/2017,387.00,Leeds Weekend Care Association,Services Rendered By Voluntary Sector,Supplies & Services
Leeds City Council,Childrens Services,13/04/2017,126.00,Leeds Weekend Care Association,Services Rendered By Voluntary Sector,Supplies & Services
Leeds City Council,Childrens Services,21/04/2017,720.00,Leeds Weekend Care Association,Services Rendered By Voluntary Sector,Supplies & Services
Leeds City Council,Childrens Services,28/04/2017,70.00,Leeds Mencap Ltd,Other Hired And Contracted Services,Supplies & Services
Leeds City Council,Childrens Services,21/04/2017,63.00,Moorside Tenants And Residents,Conference Meetings,Supplies & Services
Leeds City Council,Childrens Services,13/04/2017,30.00,Morley Church Of The Nazerene,Conference Meetings,Supplies & Services
Leeds City Council,Childrens Services,13/04/2017,45.00,Morley Church Of The Nazerene,Conference Meetings,Supplies & Services
Leeds City Council,Childrens Services,21/04/2017,30.00,Morley Church Of The Nazerene,Conference Meetings,Supplies & Services
Leeds City Council,Childrens Services,28/04/2017,30.00,Morley Church Of The Nazerene,Conference Meetings,Supplies & Services
Leeds City Council,Childrens Services,04/04/2017,56.00,Oblong - Resources For Change,Conference Meetings,Supplies & Services
Leeds City Council,Childrens Services,05/04/2017,38.03,Oulton Institute,Conference Meetings,Supplies & Services
Leeds City Council,Childrens Services,13/04/2017,317.87,People Matters (Leeds) Ltd,Services Rendered By Voluntary Sector,Supplies & Services
Leeds City Council,Childrens Services,13/04/2017,267.68,People Matters (Leeds) Ltd,Services Rendered By Voluntary Sector,Supplies & Services
Leeds City Council,Childrens Services,13/04/2017,468.44,People Matters (Leeds) Ltd,Services Rendered By Voluntary Sector,Supplies & Services
Leeds City Council,Childrens Services,03/04/2017,81.00,Pac - Uk,Placement Support,Supplies & Services
Leeds City Council,Childrens Services,03/04/2017,1672.00,Pac - Uk,Placement Support,Supplies & Services
Leeds City Council,Childrens Services,03/04/2017,2112.20,Pac - Uk,Placement Support,Supplies & Services
Leeds City Council,Childrens Services,12/04/2017,940.50,Pac - Uk,Placement Support,Supplies & Services
Leeds City Council,Childrens Services,07/04/2017,1482.00,Palm Cove Society,Section 17,Supplies & Services
Leeds City Council,Childrens Services,04/04/2017,3120.04,Parallel Parents,Independent Fostering Agencies,Supplies & Services
Leeds City Council,Childrens Services,04/04/2017,1179.92,Parallel Parents,Independent Fostering Agencies,Supplies & Services
Leeds City Council,Childrens Services,20/04/2017,19800.00,Parents And Children Together,Interagency Adoptions,Supplies & Services
Leeds City Council,Childrens Services,06/04/2017,13.16,Path Yorkshire,Car & Motorcycle Allowances,Supplies & Services
Leeds City Council,Childrens Services,06/04/2017,36.90,Path Yorkshire,Car & Motorcycle Allowances,Supplies & Services
Leeds City Council,Childrens Services,06/04/2017,18.00,Path Yorkshire,Car & Motorcycle Allowances,Supplies & Services
Leeds City Council,Childrens Services,06/04/2017,26.10,Path Yorkshire,Car & Motorcycle Allowances,Supplies & Services
Leeds City Council,Childrens Services,06/04/2017,22.09,Path Yorkshire,Car & Motorcycle Allowances,Supplies & Services
Leeds City Council,Childrens Services,06/04/2017,1704.30,People In Action Leeds Uk,Services Rendered By Voluntary Sector,Supplies & Services
Leeds City Council,Childrens Services,26/04/2017,1196.00,People In Action Leeds Uk,Services Rendered By Voluntary Sector,Supplies & Services
Leeds City Council,Childrens Services,10/04/2017,576.00,Scope,Services Rendered By Voluntary Sector,Supplies & Services
Leeds City Council,Childrens Services,10/04/2017,512.00,Scope,Services Rendered By Voluntary Sector,Supplies & Services
Leeds City Council,Childrens Services,10/04/2017,336.00,Scope,Services Rendered By Voluntary Sector,Supplies & Services
Leeds City Council,Childrens Services,10/04/2017,384.00,Scope,Services Rendered By Voluntary Sector,Supplies & Services
Leeds City Council,Childrens Services,10/04/2017,336.00,Scope,Services Rendered By Voluntary Sector,Supplies & Services
Leeds City Council,Childrens Services,05/04/2017,29150.93,Scope,Services Rendered By Voluntary Sector,Supplies & Services
Leeds City Council,Childrens Services,05/04/2017,29150.93,Scope,Services Rendered By Voluntary Sector,Supplies & Services
Leeds City Council,Childrens Services,06/04/2017,45.00,Seacroft Methodist Church,Conference Meetings,Supplies & Services
Leeds City Council,Childrens Services,06/04/2017,45.00,Seacroft Methodist Church,Conference Meetings,Supplies & Services
Leeds City Council,Childrens Services,28/04/2017,14500.00,Shantona Womens Centre,Services Rendered By Voluntary Sector,Supplies & Services
Leeds City Council,Childrens Services,28/04/2017,270.00,Shantona Womens Centre,Section 17,Supplies & Services
Leeds City Council,Childrens Services,06/04/2017,973.31,St Annes Community Services,Rents (non supported),Supplies & Services
Leeds City Council,Childrens Services,06/04/2017,648.87,St Annes Community Services,Rents (non supported),Supplies & Services
Leeds City Council,Childrens Services,03/04/2017,77.90,St Chads Parish Centre,Placement Support,Supplies & Services
Leeds City Council,Childrens Services,28/04/2017,78.00,Signature,Conference Meetings,Supplies & Services
Leeds City Council,Childrens Services,18/04/2017,37.50,St Marys In The Wood Urc Morley,Conference Meetings,Supplies & Services
Leeds City Council,Childrens Services,06/04/2017,200.00,St.Cyprian With St James Church,Conference Meetings,Supplies & Services
Leeds City Council,Childrens Services,06/04/2017,2694.80,The Sanctuary Project Limited,Semi-Supported Independent Living,Supplies & Services
Leeds City Council,Childrens Services,28/04/2017,2438.80,The Sanctuary Project Limited,Semi-Supported Independent Living,Supplies & Services
Leeds City Council,Childrens Services,25/04/2017,3250.00,Unitas,Training & Development,Supplies & Services
Leeds City Council,Childrens Services,25/04/2017,3500.00,Unitas,Training & Development,Supplies & Services
Leeds City Council,Childrens Services,07/04/2017,175.00,Unity Enterprise,Conference Meetings,Supplies & Services
Leeds City Council,Childrens Services,13/04/2017,400.00,Yorkshire Youth & Music Ltd,General Amenity For Clients/Residents,Supplies & Services
Leeds City Council,Childrens Services,19/04/2017,300.00,Leeds Mind,Training Costs,Supplies & Services
Leeds City Council,Childrens Services,13/04/2017,15.44,Cash Lavender Walk - Child. Contact Ctr,Office Consumables,Supplies & Services
Leeds City Council,Childrens Services,13/04/2017,10.59,Cash Lavender Walk - Child. Contact Ctr,Food & Drink,Supplies & Services
Leeds City Council,Childrens Services,27/04/2017,49.27,Cash Leeds Independent Visitors Scheme,Food & Drink,Supplies & Services
Leeds City Council,Childrens Services,28/04/2017,239.60,Adoption Matters Northwest,Conference Meetings,Supplies & Services
Leeds City Council,Childrens Services,27/04/2017,1.67,Cash Leeds Independent Visitors Scheme,General Amenity For Clients/Residents,Supplies & Services
Leeds City Council,Childrens Services,27/04/2017,68.40,Nspcc Registered Charity,Public Transport Expenses,Supplies & Services
Leeds City Council,Childrens Services,28/04/2017,5557.00,Phoenix Dance Theatre,Services Rendered By Voluntary Sector,Supplies & Services
Leeds City Council,Childrens Services,28/04/2017,2945.00,Adolescent And Childrens Trust,Independent Fostering Agencies,Supplies & Services
Leeds City Council,Childrens Services,27/04/2017,30.00,Barnardos,Independent Fostering Agencies,Supplies & Services
Leeds City Council,Childrens Services,27/04/2017,992.00,The Sanctuary Project Limited,Semi-Supported Independent Living,Supplies & Services
Leeds City Council,Childrens Services,28/04/2017,1411.43,The Sanctuary Project Limited,Semi-Supported Independent Living,Supplies & Services
Leeds City Council,Childrens Services,28/04/2017,3040.00,The Sanctuary Project Limited,Semi-Supported Independent Living,Supplies & Services
Leeds City Council,Childrens Services,13/04/2017,339.49,Cash Lavender Walk - Child. Contact Ctr,Contact,Supplies & Services
Leeds City Council,Childrens Services,28/04/2017,100.00,Hunslet Club,Section 17,Supplies & Services
Leeds City Council,Childrens Services,27/04/2017,1675.17,Leeds Housing Concern,Rents (non supported),Supplies & Services
Leeds City Council,Childrens Services,13/04/2017,928.56,Yorkshire Housing Ltd,Rents (non supported),Supplies & Services
Leeds City Council,Childrens Services,13/04/2017,1508.91,Yorkshire Housing Ltd,Rents (non supported),Supplies & Services
Leeds City Council,Childrens Services,26/04/2017,5600.00,Breckenbrough School Ltd,SEN Placements,Supplies & Services
Leeds City Council,Childrens Services,26/04/2017,16000.00,Breckenbrough School Ltd,SEN Placements,Supplies & Services
Leeds City Council,Childrens Services,26/04/2017,16000.00,Breckenbrough School Ltd,SEN Placements,Supplies & Services
Leeds City Council,Childrens Services,26/04/2017,16000.00,Breckenbrough School Ltd,SEN Placements,Supplies & Services
Leeds City Council,Childrens Services,28/04/2017,7467.50,Hunslet Club,SEN Placements,Supplies & Services
Leeds City Council,Childrens Services,28/04/2017,94.60,Hunslet Club,SEN Placements,Supplies & Services
Leeds City Council,Citizens and Communities,21/04/2017,1330.00,Emmaus Leeds,Grant Related Expenditure,Supplies & Services
Leeds City Council,Citizens and Communities,06/04/2017,440.00,Emmaus Leeds,Grant Related Expenditure,Supplies & Services
Leeds City Council,Citizens and Communities,07/04/2017,30000.00,Fareshare Yorkshire Limited,Grant Related Expenditure,Supplies & Services
Leeds City Council,Citizens and Communities,13/04/2017,2501.00,Solace,Grant Related Expenditure,Supplies & Services
Leeds City Council,Citizens and Communities,13/04/2017,161.10,St Georges Centre Limited,Conference Meetings,Supplies & Services
Leeds City Council,Citizens and Communities,13/04/2017,100.00,St Vincent De Paul Society,Grant Related Expenditure,Supplies & Services
Leeds City Council,Citizens and Communities,13/04/2017,100.00,St Vincent De Paul Society,Grant Related Expenditure,Supplies & Services
Leeds City Council,Citizens and Communities,13/04/2017,100.00,St Vincent De Paul Society,Grant Related Expenditure,Supplies & Services
Leeds City Council,Citizens and Communities,13/04/2017,100.00,St Vincent De Paul Society,Grant Related Expenditure,Supplies & Services
Leeds City Council,Citizens and Communities,13/04/2017,100.00,St Vincent De Paul Society,Grant Related Expenditure,Supplies & Services
Leeds City Council,Citizens and Communities,13/04/2017,100.00,St Vincent De Paul Society,Grant Related Expenditure,Supplies & Services
Leeds City Council,Citizens and Communities,13/04/2017,100.00,St Vincent De Paul Society,Grant Related Expenditure,Supplies & Services
Leeds City Council,Citizens and Communities,13/04/2017,100.00,St Vincent De Paul Society,Grant Related Expenditure,Supplies & Services
Leeds City Council,Citizens and Communities,13/04/2017,100.00,St Vincent De Paul Society,Grant Related Expenditure,Supplies & Services
Leeds City Council,Citizens and Communities,13/04/2017,100.00,St Vincent De Paul Society,Grant Related Expenditure,Supplies & Services
Leeds City Council,Citizens and Communities,13/04/2017,100.00,St Vincent De Paul Society,Grant Related Expenditure,Supplies & Services
Leeds City Council,Citizens and Communities,13/04/2017,100.00,St Vincent De Paul Society,Grant Related Expenditure,Supplies & Services
Leeds City Council,Citizens and Communities,13/04/2017,100.00,St Vincent De Paul Society,Grant Related Expenditure,Supplies & Services
Leeds City Council,Citizens and Communities,13/04/2017,100.00,St Vincent De Paul Society,Grant Related Expenditure,Supplies & Services
Leeds City Council,Citizens and Communities,13/04/2017,100.00,St Vincent De Paul Society,Grant Related Expenditure,Supplies & Services
Leeds City Council,Citizens and Communities,13/04/2017,100.00,St Vincent De Paul Society,Grant Related Expenditure,Supplies & Services
Leeds City Council,Citizens and Communities,13/04/2017,100.00,St Vincent De Paul Society,Grant Related Expenditure,Supplies & Services
Leeds City Council,Citizens and Communities,07/04/2017,160.00,Sydney Bridge Project,Grant Related Expenditure,Supplies & Services
Leeds City Council,Citizens and Communities,28/04/2017,10.00,Sydney Bridge Project,Grant Related Expenditure,Supplies & Services
Leeds City Council,Citizens and Communities,28/04/2017,160.00,Sydney Bridge Project,Grant Related Expenditure,Supplies & Services
Leeds City Council,Citizens and Communities,28/04/2017,160.00,Sydney Bridge Project,Grant Related Expenditure,Supplies & Services
Leeds City Council,Citizens and Communities,28/04/2017,160.00,Sydney Bridge Project,Grant Related Expenditure,Supplies & Services
Leeds City Council,Citizens and Communities,28/04/2017,160.00,Sydney Bridge Project,Grant Related Expenditure,Supplies & Services
Leeds City Council,Citizens and Communities,28/04/2017,160.00,Sydney Bridge Project,Grant Related Expenditure,Supplies & Services
Leeds City Council,Citizens and Communities,24/04/2017,160.00,Sydney Bridge Project,Grant Related Expenditure,Supplies & Services
Leeds City Council,Citizens and Communities,07/04/2017,160.00,Sydney Bridge Project,Grant Related Expenditure,Supplies & Services
Leeds City Council,Citizens and Communities,07/04/2017,160.00,Sydney Bridge Project,Grant Related Expenditure,Supplies & Services
Leeds City Council,Citizens and Communities,07/04/2017,160.00,Sydney Bridge Project,Grant Related Expenditure,Supplies & Services
Leeds City Council,Citizens and Communities,18/04/2017,10.00,Sydney Bridge Project,Grant Related Expenditure,Supplies & Services
Leeds City Council,Citizens and Communities,07/04/2017,255.00,Sydney Bridge Project,Grant Related Expenditure,Supplies & Services
Leeds City Council,Citizens and Communities,07/04/2017,160.00,Sydney Bridge Project,Grant Related Expenditure,Supplies & Services
Leeds City Council,Citizens and Communities,13/04/2017,2173.75,Tcs Services Ltd,Grant Related Expenditure,Supplies & Services
Leeds City Council,Citizens and Communities,27/04/2017,2500.00,Lsdbp,Other Hired And Contracted Services,Supplies & Services
Leeds City Council,Citizens and Communities,27/04/2017,60.00,Lsdbp,Other Hired And Contracted Services,Supplies & Services
Leeds City Council,Citizens and Communities,28/04/2017,10.00,Sydney Bridge Project,Grant Related Expenditure,Supplies & Services
Leeds City Council,Citizens and Communities,28/04/2017,160.00,Sydney Bridge Project,Grant Related Expenditure,Supplies & Services
Leeds City Council,Citizens and Communities,28/04/2017,160.00,Sydney Bridge Project,Grant Related Expenditure,Supplies & Services
Leeds City Council,Citizens and Communities,28/04/2017,160.00,Sydney Bridge Project,Grant Related Expenditure,Supplies & Services
Leeds City Council,Citizens and Communities,28/04/2017,160.00,Sydney Bridge Project,Grant Related Expenditure,Supplies & Services
Leeds City Council,Citizens and Communities,28/04/2017,160.00,Sydney Bridge Project,Grant Related Expenditure,Supplies & Services
Leeds City Council,Citizens and Communities,28/04/2017,160.00,Sydney Bridge Project,Grant Related Expenditure,Supplies & Services
Leeds City Council,Citizens and Communities,28/04/2017,160.00,Sydney Bridge Project,Grant Related Expenditure,Supplies & Services
Leeds City Council,Citizens and Communities,28/04/2017,255.00,Sydney Bridge Project,Grant Related Expenditure,Supplies & Services
Leeds City Council,Citizens and Communities,07/04/2017,160.00,Sydney Bridge Project,Grant Related Expenditure,Supplies & Services
Leeds City Council,Citizens and Communities,07/04/2017,160.00,Sydney Bridge Project,Grant Related Expenditure,Supplies & Services
Leeds City Council,Citizens and Communities,07/04/2017,160.00,Sydney Bridge Project,Grant Related Expenditure,Supplies & Services
Leeds City Council,Citizens and Communities,07/04/2017,160.00,Sydney Bridge Project,Grant Related Expenditure,Supplies & Services
Leeds City Council,Citizens and Communities,07/04/2017,3288.80,Love Pudsey,Construction,Supplies & Services
Leeds City Council,Citizens and Communities,24/04/2017,4854.00,Rawdon Community Library,Furniture And Equipment,Supplies & Services
Leeds City Council,Citizens and Communities,28/04/2017,85.00,24th S W Scout Group,'Well Being' Large Grants Projects,Supplies & Services
Leeds City Council,Citizens and Communities,07/04/2017,350.00,Armley Helping Hands,Well Being Small Grants Projects,Supplies & Services
Leeds City Council,Citizens and Communities,06/04/2017,500.00,Armley Helping Hands,Well Being Small Grants Projects,Supplies & Services
Leeds City Council,Citizens and Communities,07/04/2017,995.00,Adel Baby And Toddler Group,Well Being Small Grants Projects,Supplies & Services
Leeds City Council,Citizens and Communities,28/04/2017,2041.93,Barca - Leeds,'Well Being' Large Grants Projects,Supplies & Services
Leeds City Council,Citizens and Communities,28/04/2017,1093.03,Barca - Leeds,'Well Being' Large Grants Projects,Supplies & Services
Leeds City Council,Citizens and Communities,26/04/2017,1792.72,Barca - Leeds,'Well Being' Large Grants Projects,Supplies & Services
Leeds City Council,Citizens and Communities,26/04/2017,513.12,Barca - Leeds,'Well Being' Large Grants Projects,Supplies & Services
Leeds City Council,Citizens and Communities,10/04/2017,2240.00,Boston Spa Bowling Club,'Well Being' Large Grants Projects,Supplies & Services
Leeds City Council,Citizens and Communities,18/04/2017,150.00,Bspc Trading Ltd,Food & Drink,Supplies & Services
Leeds City Council,Citizens and Communities,18/04/2017,155.00,Bspc Trading Ltd,Other Hired And Contracted Services,Supplies & Services
Leeds City Council,Citizens and Communities,06/04/2017,24.00,Bramley St Peters Pcc Halls Account,'Well Being' Large Grants Projects,Supplies & Services
Leeds City Council,Citizens and Communities,07/04/2017,954.25,Catch,'Well Being' Large Grants Projects,Supplies & Services
Leeds City Council,Citizens and Communities,06/04/2017,500.00,Calverley Project 2000,Well Being Small Grants Projects,Supplies & Services
Leeds City Council,Citizens and Communities,28/04/2017,1500.00,Care & Repair Leeds,'Well Being' Large Grants Projects,Supplies & Services
Leeds City Council,Citizens and Communities,28/04/2017,420.00,Care & Repair Leeds,'Well Being' Large Grants Projects,Supplies & Services
Leeds City Council,Citizens and Communities,28/04/2017,360.00,Care & Repair Leeds,'Well Being' Large Grants Projects,Supplies & Services
Leeds City Council,Citizens and Communities,27/04/2017,4675.00,Dazl,'Well Being' Large Grants Projects,Supplies & Services
Leeds City Council,Citizens and Communities,06/04/2017,1580.00,Dazl,'Well Being' Large Grants Projects,Supplies & Services
Leeds City Council,Citizens and Communities,27/04/2017,4290.00,Dazl,'Well Being' Large Grants Projects,Supplies & Services
Leeds City Council,Citizens and Communities,27/04/2017,1950.00,Friends Of Cross Flatts Park,'Well Being' Large Grants Projects,Supplies & Services
Leeds City Council,Citizens and Communities,05/04/2017,449.98,Friends Of Holbeck Social Group,Well Being Small Grants Projects,Supplies & Services
Leeds City Council,Citizens and Communities,28/04/2017,31.50,Guiseley (Aos) Theatre,Well Being Small Grants Projects,Supplies & Services
Leeds City Council,Citizens and Communities,11/04/2017,200.00,Headingley Litfest,'Well Being' Large Grants Projects,Supplies & Services
Leeds City Council,Citizens and Communities,13/04/2017,1800.00,Headingley Litfest,'Well Being' Large Grants Projects,Supplies & Services
Leeds City Council,Citizens and Communities,11/04/2017,1750.00,Headingley Litfest,'Well Being' Large Grants Projects,Supplies & Services
Leeds City Council,Citizens and Communities,27/04/2017,1000.00,Headingley Litfest,'Well Being' Large Grants Projects,Supplies & Services
Leeds City Council,Citizens and Communities,06/04/2017,115.00,Hunslet Methodist Church,'Well Being' Large Grants Projects,Supplies & Services
Leeds City Council,Citizens and Communities,21/04/2017,800.00,Hyde Park And Woodhouse Fc,'Well Being' Large Grants Projects,Supplies & Services
Leeds City Council,Citizens and Communities,04/04/2017,448.68,Leeds Development Education Centre Ltd,'Well Being' Large Grants Projects,Supplies & Services
Leeds City Council,Citizens and Communities,03/04/2017,5000.00,Leeds Muslim Youth Forum,'Well Being' Large Grants Projects,Supplies & Services
Leeds City Council,Citizens and Communities,13/04/2017,5000.00,New Wortley Community Association,'Well Being' Large Grants Projects,Supplies & Services
Leeds City Council,Citizens and Communities,07/04/2017,3358.00,Next Generation Arts,'Well Being' Large Grants Projects,Supplies & Services
Leeds City Council,Citizens and Communities,21/04/2017,75.00,Older Peoples Action In The Locality,'Well Being' Large Grants Projects,Supplies & Services
Leeds City Council,Citizens and Communities,07/04/2017,360.00,Old Farnley Community Association,'Well Being' Large Grants Projects,Supplies & Services
Leeds City Council,Citizens and Communities,05/04/2017,500.00,Otley & District Road Safety Committee,Well Being Small Grants Projects,Supplies & Services
Leeds City Council,Citizens and Communities,06/04/2017,3141.96,Path Yorkshire,'Well Being' Large Grants Projects,Supplies & Services
Leeds City Council,Citizens and Communities,13/04/2017,3969.00,Playful Anywhere Cic,'Well Being' Large Grants Projects,Supplies & Services
Leeds City Council,Citizens and Communities,27/04/2017,135.00,Rjc Productions Ltd,Publication And Promotion,Supplies & Services
Leeds City Council,Citizens and Communities,13/04/2017,5520.00,St Lukes Cares,'Well Being' Large Grants Projects,Supplies & Services
Leeds City Council,Citizens and Communities,07/04/2017,170.00,St Georges Centre Limited,Conference Meetings,Supplies & Services
Leeds City Council,Citizens and Communities,13/04/2017,581.30,St Georges Centre Limited,Hire of meeting rooms,Supplies & Services
Leeds City Council,Citizens and Communities,07/04/2017,50.00,Stanningley Sports & Amateur Rugby,'Well Being' Large Grants Projects,Supplies & Services
Leeds City Council,Citizens and Communities,26/04/2017,5680.00,Street Work Soccer Academy Ltd,'Well Being' Large Grants Projects,Supplies & Services
Leeds City Council,Citizens and Communities,26/04/2017,4375.00,Street Work Soccer Academy Ltd,'Well Being' Large Grants Projects,Supplies & Services
Leeds City Council,Citizens and Communities,07/04/2017,5801.00,The Yorkshire Cricket Foundation,'Well Being' Large Grants Projects,Supplies & Services
Leeds City Council,Citizens and Communities,05/04/2017,1500.00,Touchstone - Leeds,'Well Being' Large Grants Projects,Supplies & Services
Leeds City Council,Citizens and Communities,25/04/2017,10112.75,Wycas,Non-Recurring Grants,Supplies & Services
Leeds City Council,Citizens and Communities,20/04/2017,355.76,Prince Philip Centre Phab Club,Well Being Small Grants Projects,Supplies & Services
Leeds City Council,Citizens and Communities,20/04/2017,500.00,Richmond Hill Elderly Action,Well Being Small Grants Projects,Supplies & Services
Leeds City Council,Citizens and Communities,21/04/2017,2325.20,Chapeltown Development Trust,'Well Being' Large Grants Projects,Supplies & Services
Leeds City Council,Citizens and Communities,25/04/2017,52.00,The Cardigan Centre,'Well Being' Large Grants Projects,Supplies & Services
Leeds City Council,Citizens and Communities,21/04/2017,4497.84,The Conservation Volunteers,'Well Being' Large Grants Projects,Supplies & Services
Leeds City Council,Citizens and Communities,21/04/2017,3373.11,The Conservation Volunteers,'Well Being' Large Grants Projects,Supplies & Services
Leeds City Council,Citizens and Communities,18/04/2017,45.00,Leeds Mencap Ltd,Other Hired And Contracted Services,Supplies & Services
Leeds City Council,Citizens and Communities,03/04/2017,135.00,Aireborough Historical Society,Resaleable Materials,Supplies & Services
Leeds City Council,Citizens and Communities,13/04/2017,1453.60,Cards For Good Causes Ltd,Resaleable Materials,Supplies & Services
Leeds City Council,Citizens and Communities,13/04/2017,18.40,Eyfhs,Books & Audio-Visual Materials,Supplies & Services
Leeds City Council,Citizens and Communities,21/04/2017,40.00,J B Priestley Society,Books & Audio-Visual Materials,Supplies & Services
Leeds City Council,Citizens and Communities,21/04/2017,98.89,South Asian Arts-Uk,Other Hired And Contracted Services,Supplies & Services
Leeds City Council,Citizens and Communities,06/04/2017,12.50,Yahs Prehistory Research Section,Books & Audio-Visual Materials,Supplies & Services
Leeds City Council,Citizens and Communities,27/04/2017,43.60,Northern Ballet Theatre Limited,Other Hired And Contracted Services,Supplies & Services
Leeds City Council,City Development,13/04/2017,2500.00,Lwicct,Bought In Professional Services,Supplies & Services
Leeds City Council,City Development,28/04/2017,3493.83,West Yorkshire Properties Ltd,Grants To Businesses,Supplies & Services
Leeds City Council,City Development,06/04/2017,660.00,Wade'S Charity,Other Costs,Supplies & Services
Leeds City Council,City Development,07/04/2017,175.00,Rospa Enterprises Ltd,Training & Development,Supplies & Services
Leeds City Council,City Development,12/04/2017,1649.35,Henry Moore Institute,Other Hired And Contracted Services,Supplies & Services
Leeds City Council,City Development,07/04/2017,29.07,Leeds Civic Arts Guild,Other Income,Supplies & Services
Leeds City Council,City Development,07/04/2017,1281.00,Leeds Civic Arts Guild,"Admissions, Booking Fees & Ticket Sales",Supplies & Services
Leeds City Council,City Development,07/04/2017,53.38,Leeds Civic Arts Guild,Other cultural & rec fees & charges,Supplies & Services
Leeds City Council,City Development,07/04/2017,870.00,Leeds Civic Arts Guild,Arts/Sports Facility Hire,Supplies & Services
Leeds City Council,City Development,04/04/2017,300.00,Leeds University Union,Advertising,Supplies & Services
Leeds City Council,City Development,05/04/2017,750.00,Lumen Arts,Bought In Professional Services,Supplies & Services
Leeds City Council,City Development,07/04/2017,842.10,Northern Ballet Theatre Limited,Catering Service,Supplies & Services
Leeds City Council,City Development,07/04/2017,375.00,Northern Ballet Theatre Limited,Operational Materials,Supplies & Services
Leeds City Council,City Development,28/04/2017,100.00,Phoenix Dance Theatre,Conference Meetings,Supplies & Services
Leeds City Council,City Development,28/04/2017,2049.95,Phoenix Dance Theatre,External Hire -Occasional,Supplies & Services
Leeds City Council,City Development,07/04/2017,450.00,Stitch Up Cic,Bought In Professional Services,Supplies & Services
Leeds City Council,City Development,06/04/2017,2000.00,The Fairey Band,Other Hired And Contracted Services,Supplies & Services
Leeds City Council,City Development,27/04/2017,600.00,Wakefield Metropolitan Brass Band,Other Hired And Contracted Services,Supplies & Services
Leeds City Council,City Development,21/04/2017,3500.00,Yorkshire Dance Centre Trust Co Ltd,Other Hired And Contracted Services,Supplies & Services
Leeds City Council,City Development,18/04/2017,1900.00,Alchemy Anew,Non-Recurring Grants,Supplies & Services
Leeds City Council,City Development,18/04/2017,1900.00,Antioch Trust,Non-Recurring Grants,Supplies & Services
Leeds City Council,City Development,18/04/2017,1000.00,Antioch Trust,Non-Recurring Grants,Supplies & Services
Leeds City Council,City Development,18/04/2017,8208.00,Artlink West Yorkshire,Non-Recurring Grants,Supplies & Services
Leeds City Council,City Development,18/04/2017,1900.00,Arts @ Trinity Ltd,Non-Recurring Grants,Supplies & Services
Leeds City Council,City Development,18/04/2017,950.00,Assembly House Cic,Non-Recurring Grants,Supplies & Services
Leeds City Council,City Development,18/04/2017,34222.50,Black Health Initiative,Non-Recurring Grants,Supplies & Services
Leeds City Council,City Development,18/04/2017,1480.00,Christie Hill,Non-Recurring Grants,Supplies & Services
Leeds City Council,City Development,18/04/2017,1000.00,Collingham Music Association,Non-Recurring Grants,Supplies & Services
Leeds City Council,City Development,19/04/2017,500.00,Courthouse Project (Otley) Ltd,Non-Recurring Grants,Supplies & Services
Leeds City Council,City Development,18/04/2017,5771.50,Dazl,Non-Recurring Grants,Supplies & Services
Leeds City Council,City Development,18/04/2017,25650.00,East Street Arts,Non-Recurring Grants,Supplies & Services
Leeds City Council,City Development,18/04/2017,7695.00,Heads Together Productions Ltd,Non-Recurring Grants,Supplies & Services
Leeds City Council,City Development,18/04/2017,1900.00,Hyde Park Unity Day,Non-Recurring Grants,Supplies & Services
Leeds City Council,City Development,03/04/2017,10901.25,Interplay Theatre Trust,Non-Recurring Grants,Supplies & Services
Leeds City Council,City Development,18/04/2017,2850.00,Irish Arts Foundation,Non-Recurring Grants,Supplies & Services
Leeds City Council,City Development,18/04/2017,1900.00,Kirkstall Festival,Non-Recurring Grants,Supplies & Services
Leeds City Council,City Development,18/04/2017,1900.00,Leeds Childrens Circus,Non-Recurring Grants,Supplies & Services
Leeds City Council,City Development,18/04/2017,1900.00,Leeds Chinese Community Association Ltd,Non-Recurring Grants,Supplies & Services
Leeds City Council,City Development,18/04/2017,1000.00,Leeds Gilbert And Sullivan Society,Non-Recurring Grants,Supplies & Services
Leeds City Council,City Development,18/04/2017,1900.00,Leeds Mencap Ltd,Non-Recurring Grants,Supplies & Services
Leeds City Council,City Development,24/04/2017,15000.00,Leeds Pride,Non-Recurring Grants,Supplies & Services
Leeds City Council,City Development,18/04/2017,3800.00,Lifeforce Productions,Non-Recurring Grants,Supplies & Services
Leeds City Council,City Development,26/04/2017,2300.00,Little London Arts,Non-Recurring Grants,Supplies & Services
Leeds City Council,City Development,18/04/2017,3230.00,Lumen Arts,Non-Recurring Grants,Supplies & Services
Leeds City Council,City Development,24/04/2017,1900.00,Morley Literature Festival,Non-Recurring Grants,Supplies & Services
Leeds City Council,City Development,18/04/2017,6156.00,Northern School Of Contemporary,Non-Recurring Grants,Supplies & Services
Leeds City Council,City Development,19/04/2017,350.00,Owen Clements,Non-Recurring Grants,Supplies & Services
Leeds City Council,City Development,28/04/2017,15000.00,Pyramid Of Arts,Non-Recurring Grants,Supplies & Services
Leeds City Council,City Development,18/04/2017,5130.00,Red Ladder Theatre Co Ltd,Non-Recurring Grants,Supplies & Services
Leeds City Council,City Development,18/04/2017,10687.50,Rjc Productions Ltd,Non-Recurring Grants,Supplies & Services
Leeds City Council,City Development,18/04/2017,4560.00,Skippko Arts Team,Non-Recurring Grants,Supplies & Services
Leeds City Council,City Development,18/04/2017,14107.50,South Asian Arts-Uk,Non-Recurring Grants,Supplies & Services
Leeds City Council,City Development,18/04/2017,3040.00,Space2 Leeds,Non-Recurring Grants,Supplies & Services
Leeds City Council,City Development,18/04/2017,5130.00,St Patrick'S Day Parade,Non-Recurring Grants,Supplies & Services
Leeds City Council,City Development,18/04/2017,6840.00,Theatre Company Blah Blah Blah,Non-Recurring Grants,Supplies & Services
Leeds City Council,City Development,18/04/2017,1900.00,Tutti Frutti Productions,Non-Recurring Grants,Supplies & Services
Leeds City Council,City Development,18/04/2017,1900.00,Unlimited Theatre,Non-Recurring Grants,Supplies & Services
Leeds City Council,City Development,10/04/2017,2000.00,West Yorkshire Playhouse,Non-Recurring Grants,Supplies & Services
Leeds City Council,City Development,19/04/2017,18000.00,Yorkshire Sculpture Park,Non-Recurring Grants,Supplies & Services
Leeds City Council,City Development,18/04/2017,1900.00,Youth Theatres Leeds,Non-Recurring Grants,Supplies & Services
Leeds City Council,City Development,19/04/2017,190665.00,Northern Ballet Theatre Limited,Recurring & Major Grants Projects,Supplies & Services
Leeds City Council,City Development,19/04/2017,436050.00,Opera North Ltd,Recurring & Major Grants Projects,Supplies & Services
Leeds City Council,City Development,19/04/2017,55575.00,Phoenix Dance Theatre,Recurring & Major Grants Projects,Supplies & Services
Leeds City Council,City Development,03/04/2017,538650.00,West Yorkshire Playhouse,Recurring & Major Grants Projects,Supplies & Services
Leeds City Council,City Development,18/04/2017,44460.00,Yorkshire Dance Centre Trust Co Ltd,Recurring & Major Grants Projects,Supplies & Services
Leeds City Council,City Development,28/04/2017,175.00,Leeds Parish Church Choir Tours,Other Hired And Contracted Services,Supplies & Services
Leeds City Council,City Development,20/04/2017,225.00,South Asian Arts-Uk,Other Hired And Contracted Services,Supplies & Services
Leeds City Council,City Development,20/04/2017,2900.00,Opera North Ltd,Arts/Sports Facility Hire,Supplies & Services
Leeds City Council,City Development,20/04/2017,2466.08,Opera North Ltd,Other cultural & rec fees & charges,Supplies & Services
Leeds City Council,City Development,20/04/2017,13353.75,Opera North Ltd,"Admissions, Booking Fees & Ticket Sales",Supplies & Services
Leeds City Council,City Development,28/04/2017,224.58,St Peters Singers,"Admissions, Booking Fees & Ticket Sales",Supplies & Services
Leeds City Council,City Development,20/04/2017,500.00,Opera North Ltd,Advertising,Supplies & Services
Leeds City Council,City Development,20/04/2017,534.15,Opera North Ltd,Other Income,Supplies & Services
Leeds City Council,City Development,19/04/2017,300.00,Danby Rovers,Other Hired And Contracted Services,Supplies & Services
Leeds City Council,City Development,28/04/2017,540.00,Kirklees Active Leisure Trust,Other Hired And Contracted Services,Supplies & Services
Leeds City Council,City Development,19/04/2017,680.00,Leeds City Ac,Other Hired And Contracted Services,Supplies & Services
Leeds City Council,City Development,28/04/2017,110.00,Oulton Institute,Other Hired And Contracted Services,Supplies & Services
Leeds City Council,City Development,28/04/2017,2185.00,Phoenix Dance Theatre,Other Hired And Contracted Services,Supplies & Services
Leeds City Council,City Development,05/04/2017,75.00,The Works Skatepark Charity,Other Hired And Contracted Services,Supplies & Services
Leeds City Council,City Development,03/04/2017,315.00,The Yorkshire Cricket Foundation,Other Hired And Contracted Services,Supplies & Services
Leeds City Council,City Development,12/04/2017,12000.00,Yorkshire Sport Foundation,Bought In Professional Services,Supplies & Services
Leeds City Council,City Development,10/04/2017,1815.00,Hamara (Hlc),Other Hired And Contracted Services,Supplies & Services
Leeds City Council,City Development,21/04/2017,1815.00,Hamara (Hlc),Other Hired And Contracted Services,Supplies & Services
Leeds City Council,City Development,24/04/2017,700.00,Neighbourhood Elders Team,Other Hired And Contracted Services,Supplies & Services
Leeds City Council,City Development,20/04/2017,2000.00,The Works Skatepark Charity,Other Hired And Contracted Services,Supplies & Services
Leeds City Council,Civic Enterprise Leeds,07/04/2017,7000.00,Leeds Black Elders Association,Services Rendered By Voluntary Sector,Supplies & Services
Leeds City Council,Civic Enterprise Leeds,07/04/2017,136.50,Organic Dales,Food & Drink,Supplies & Services
Leeds City Council,Civic Enterprise Leeds,07/04/2017,93.50,Organic Dales,Food & Drink,Supplies & Services
Leeds City Council,Civic Enterprise Leeds,07/04/2017,135.80,Organic Dales,Food & Drink,Supplies & Services
Leeds City Council,Civic Enterprise Leeds,25/04/2017,474.45,Leeds Alternative Travel,Private Hire,Supplies & Services
Leeds City Council,Environment & Housing,13/04/2017,23750.00,Victim Support,Other Hired And Contracted Services,Supplies & Services
Leeds City Council,Environment & Housing,13/04/2017,5000.00,Care & Repair Leeds,Other Costs,Supplies & Services
Leeds City Council,Environment & Housing,06/04/2017,2052.00,Home Group Limited,Construction,Supplies & Services
Leeds City Council,Environment & Housing,28/04/2017,1813.50,Care & Repair Leeds,Construction,Supplies & Services
Leeds City Council,Environment & Housing,28/04/2017,783.60,Care & Repair Leeds,Construction,Supplies & Services
Leeds City Council,Environment & Housing,27/04/2017,2340.00,Care & Repair Leeds,Construction,Supplies & Services
Leeds City Council,Environment & Housing,20/04/2017,3828.00,Care & Repair Leeds,Construction,Supplies & Services
Leeds City Council,Environment & Housing,20/04/2017,2052.00,Chevin Housing Association Ltd,Construction,Supplies & Services
Leeds City Council,Environment & Housing,21/04/2017,3756.19,Yorkshire Housing,Construction,Supplies & Services
Leeds City Council,Environment & Housing,07/04/2017,7700.00,Care & Repair Leeds,Construction,Supplies & Services
Leeds City Council,Environment & Housing,07/04/2017,6000.00,Care & Repair Leeds,Construction,Supplies & Services
Leeds City Council,Environment & Housing,13/04/2017,5624.60,Care & Repair Leeds,Construction,Supplies & Services
Leeds City Council,Environment & Housing,13/04/2017,7105.00,Care & Repair Leeds,Construction,Supplies & Services
Leeds City Council,Environment & Housing,13/04/2017,1300.00,Care & Repair Leeds,Construction,Supplies & Services
Leeds City Council,Environment & Housing,13/04/2017,23851.40,Care & Repair Leeds,Construction,Supplies & Services
Leeds City Council,Environment & Housing,13/04/2017,5356.43,Care & Repair Leeds,Construction,Supplies & Services
Leeds City Council,Environment & Housing,13/04/2017,1163.33,Care & Repair Leeds,Construction,Supplies & Services
Leeds City Council,Environment & Housing,13/04/2017,17901.00,Care & Repair Leeds,Construction,Supplies & Services
Leeds City Council,Environment & Housing,13/04/2017,19666.67,Care & Repair Leeds,Construction,Supplies & Services
Leeds City Council,Environment & Housing,13/04/2017,4266.66,Care & Repair Leeds,Construction,Supplies & Services
Leeds City Council,Environment & Housing,26/04/2017,1072.96,Care & Repair Leeds,Construction,Supplies & Services
Leeds City Council,Environment & Housing,26/04/2017,12229.60,Care & Repair Leeds,Construction,Supplies & Services
Leeds City Council,Environment & Housing,03/04/2017,42250.00,Canopy Housing Project,Internal Fees,Supplies & Services
Leeds City Council,Environment & Housing,03/04/2017,64688.57,Gipsil,Internal Fees,Supplies & Services
Leeds City Council,Environment & Housing,05/04/2017,5000.00,Gotts Park Golf Club Community Interest,Non-Recurring Grants,Supplies & Services
Leeds City Council,Environment & Housing,13/04/2017,500.00,Arboricultural Association,Training & Development,Supplies & Services
Leeds City Council,Environment & Housing,13/04/2017,235.54,Anchor Trust,Supporting Ppl - Block Gross Chargeable,Supplies & Services
Leeds City Council,Environment & Housing,13/04/2017,956.57,Connect Housing Association Limited,Supporting Ppl - Block Gross Chargeable,Supplies & Services
Leeds City Council,Environment & Housing,13/04/2017,405.77,Habinteg,Supporting Ppl - Block Gross Chargeable,Supplies & Services
Leeds City Council,Environment & Housing,13/04/2017,312.69,Headrow Housing Group,Supporting Ppl - Block Gross Chargeable,Supplies & Services
Leeds City Council,Environment & Housing,13/04/2017,156.73,Leeds Federated Housing Association,Supporting Ppl - Block Gross Chargeable,Supplies & Services
Leeds City Council,Environment & Housing,13/04/2017,530.74,Leeds Jewish Housing Association Limited,Supporting Ppl - Block Gross Chargeable,Supplies & Services
Leeds City Council,Environment & Housing,13/04/2017,194.14,Mha Care Group/Methodist Homes Ha,Supporting Ppl - Block Gross Chargeable,Supplies & Services
Leeds City Council,Environment & Housing,13/04/2017,123.43,Yorkshire Housing Ltd,Supporting Ppl - Block Gross Chargeable,Supplies & Services
Leeds City Council,Environment & Housing,13/04/2017,3098.46,Leeds Housing Concern,Supporting People - Block Subsidy,Supplies & Services
Leeds City Council,Environment & Housing,28/04/2017,6127.25,Catholic Care,Supporting Ppl - Block Gross Chargeable,Supplies & Services
Leeds City Council,Environment & Housing,13/04/2017,9193.95,Connect Housing Association Limited,Supporting Ppl - Block Gross Chargeable,Supplies & Services
Leeds City Council,Environment & Housing,13/04/2017,11187.93,Foundation,Supporting Ppl - Block Gross Chargeable,Supplies & Services
Leeds City Council,Environment & Housing,26/04/2017,38000.00,Gipsil,Supporting Ppl - Block Gross Chargeable,Supplies & Services
Leeds City Council,Environment & Housing,26/04/2017,70291.50,Gipsil,Supporting Ppl - Block Gross Chargeable,Supplies & Services
Leeds City Council,Environment & Housing,26/04/2017,927937.50,Gipsil,Supporting Ppl - Block Gross Chargeable,Supplies & Services
Leeds City Council,Environment & Housing,26/04/2017,352755.00,Gipsil,Supporting Ppl - Block Gross Chargeable,Supplies & Services
Leeds City Council,Environment & Housing,24/04/2017,117432.00,Gipsil,Supporting Ppl - Block Gross Chargeable,Supplies & Services
Leeds City Council,Environment & Housing,13/04/2017,6143.23,Home Group (Stonham),Supporting Ppl - Block Gross Chargeable,Supplies & Services
Leeds City Council,Environment & Housing,13/04/2017,9689.15,Leeds Action To Create Homes Ltd,Supporting Ppl - Block Gross Chargeable,Supplies & Services
Leeds City Council,Environment & Housing,28/04/2017,43803.25,Leeds Housing Concern,Supporting Ppl - Block Gross Chargeable,Supplies & Services
Leeds City Council,Environment & Housing,13/04/2017,8564.12,Leeds Housing Concern,Supporting Ppl - Block Gross Chargeable,Supplies & Services
Leeds City Council,Environment & Housing,13/04/2017,26256.10,Leeds Housing Concern,Supporting Ppl - Block Gross Chargeable,Supplies & Services
Leeds City Council,Environment & Housing,13/04/2017,15199.47,Leeds Housing Concern,Supporting Ppl - Block Gross Chargeable,Supplies & Services
Leeds City Council,Environment & Housing,13/04/2017,18797.75,Riverside Care & Support,Supporting Ppl - Block Gross Chargeable,Supplies & Services
Leeds City Council,Environment & Housing,13/04/2017,5460.07,St Georges Crypt,Supporting Ppl - Block Gross Chargeable,Supplies & Services
Leeds City Council,Environment & Housing,13/04/2017,8444.03,Touchstone - Leeds,Supporting Ppl - Block Gross Chargeable,Supplies & Services
Leeds City Council,Environment & Housing,13/04/2017,10000.00,Unipol,Other Hired And Contracted Services,Supplies & Services
Leeds City Council,Environment & Housing,26/04/2017,95.00,Empty Homes Network,*** No Description ***,Supplies & Services
Leeds City Council,Environment & Housing,13/04/2017,3562.50,Barnardos,Non-Recurring Grants,Supplies & Services
Leeds City Council,Environment & Housing,06/04/2017,2817.00,St Georges Crypt,Grant Related Expenditure,Supplies & Services
Leeds City Council,Environment & Housing,19/04/2017,673.72,Leeds Housing Concern,Other Hired And Contracted Services,Supplies & Services
Leeds City Council,Environment & Housing,04/04/2017,7500.00,Hyde Park Source,Other Costs,Supplies & Services
Leeds City Council,Environment & Housing,04/04/2017,9000.00,Hyde Park Source,Other Costs,Supplies & Services
Leeds City Council,Environment & Housing,11/04/2017,300.00,Hyde Park Source,Other Costs,Supplies & Services
Leeds City Council,Environment & Housing,07/04/2017,10072.57,Seagulls Re-Use Ltd,Recycling & Reuse Charges,Supplies & Services
Leeds City Council,Public Health,13/04/2017,2748.00,Cgl,Computer Software & Equipment,Supplies & Services
Leeds City Council,Public Health,05/04/2017,2200.00,Arch Initiatives,Public Health Commissioned Services,Supplies & Services
Leeds City Council,Public Health,21/04/2017,402.00,City Health Partnership Cic,Public Health Commissioned Services,Supplies & Services
Leeds City Council,Public Health,07/04/2017,3978.00,Developing Initiatives For Support In,Services Rendered By Voluntary Sector,Supplies & Services
Leeds City Council,Public Health,12/04/2017,4211.66,Leeds Ohas,Services Rendered By Voluntary Sector,Supplies & Services
Leeds City Council,Public Health,20/04/2017,3567.00,Locala Community Partnership C.I.C.,Public Health Commissioned Services,Supplies & Services
Leeds City Council,Public Health,13/04/2017,3573.00,Locala Community Partnership C.I.C.,Public Health Commissioned Services,Supplies & Services
Leeds City Council,Public Health,06/04/2017,400.00,Stanningley Sports And Amateur,Hire of meeting rooms,Supplies & Services
Leeds City Council,Public Health,05/04/2017,9820.25,Touchstone - Leeds,Services Rendered By Voluntary Sector,Supplies & Services
Leeds City Council,Public Health,05/04/2017,13000.00,Touchstone - Leeds,Services Rendered By Voluntary Sector,Supplies & Services
Leeds City Council,Public Health,28/04/2017,2394.00,Yorkshire Mesmac,Public Health Commissioned Services,Supplies & Services
Leeds City Council,Public Health,28/04/2017,1472.00,Yorkshire Mesmac,Public Health Commissioned Services,Supplies & Services
Leeds City Council,Public Health,28/04/2017,19630.00,Dazl,Services Rendered By Voluntary Sector,Supplies & Services
Leeds City Council,Public Health,19/04/2017,1959932.50,Developing Initiatives For Support In,Services Rendered By Voluntary Sector,Supplies & Services
Leeds City Council,Public Health,11/04/2017,17375.00,Health For All (Leeds) Ltd,Services Rendered By Voluntary Sector,Supplies & Services
Leeds City Council,Public Health,10/04/2017,42215.00,Health For All (Leeds) Ltd,Services Rendered By Voluntary Sector,Supplies & Services
Leeds City Council,Public Health,10/04/2017,30982.00,Health For All (Leeds) Ltd,Services Rendered By Voluntary Sector,Supplies & Services
Leeds City Council,Public Health,28/04/2017,12500.00,Leeds Irish Health & Homes,Services Rendered By Voluntary Sector,Supplies & Services
Leeds City Council,Strategic Accounts,04/04/2017,481.71,Allerton Bywater Primary School,Payments/Recharges,Supplies & Services
Leeds City Council,Strategic Accounts,03/04/2017,500.00,Artforms,Non-Recurring Grants,Supplies & Services
Leeds City Council,Strategic Accounts,03/04/2017,400.00,Calverley Village Guide Association,Non-Recurring Grants,Supplies & Services
Leeds City Council,Strategic Accounts,03/04/2017,185.00,Friends Of Gledhow Valley Woods,Non-Recurring Grants,Supplies & Services
Leeds City Council,Strategic Accounts,03/04/2017,229.00,Friends Of Allerton Grange,Non-Recurring Grants,Supplies & Services
Leeds City Council,Strategic Accounts,03/04/2017,385.00,Friends Of Parkinsons Park,Non-Recurring Grants,Supplies & Services
Leeds City Council,Strategic Accounts,10/04/2017,150.00,Inclusive & Active Group,Non-Recurring Grants,Supplies & Services
Leeds City Council,Strategic Accounts,10/04/2017,200.00,Kidz & Co,Non-Recurring Grants,Supplies & Services
Leeds City Council,Strategic Accounts,10/04/2017,695.00,Kippax United Tots,Non-Recurring Grants,Supplies & Services
Leeds City Council,Strategic Accounts,10/04/2017,335.52,Leeds North And West Foodbank,Non-Recurring Grants,Supplies & Services
Leeds City Council,Strategic Accounts,03/04/2017,150.00,Leeds Swahili Cultural Community,Non-Recurring Grants,Supplies & Services
Leeds City Council,Strategic Accounts,03/04/2017,900.00,North Leeds Bowling Club,Non-Recurring Grants,Supplies & Services
Leeds City Council,Strategic Accounts,10/04/2017,900.00,North Leeds Bowling Club,Non-Recurring Grants,Supplies & Services
Leeds City Council,Strategic Accounts,03/04/2017,250.00,Otley Lions,Non-Recurring Grants,Supplies & Services
Leeds City Council,Strategic Accounts,10/04/2017,150.00,Swillington Welfare,Non-Recurring Grants,Supplies & Services
Leeds City Council,Strategic Accounts,10/04/2017,500.00,The 58 Centre,Non-Recurring Grants,Supplies & Services
Leeds City Council,Strategic Accounts,10/04/2017,250.00,Woodkirk Valley Fc,Non-Recurring Grants,Supplies & Services
Leeds City Council,Strategic Accounts,19/04/2017,300.00,21st Leeds Guides,Non-Recurring Grants,Supplies & Services
Leeds City Council,Strategic Accounts,10/04/2017,69.30,2nd Adel Guides,Non-Recurring Grants,Supplies & Services
Leeds City Council,Strategic Accounts,25/04/2017,150.00,Adel Baby And Toddler Group,Non-Recurring Grants,Supplies & Services
Leeds City Council,Strategic Accounts,27/04/2017,296.00,Adel War Memorial Association,Non-Recurring Grants,Supplies & Services
Leeds City Council,Strategic Accounts,27/04/2017,1620.00,Angel Of Youths,Non-Recurring Grants,Supplies & Services
Leeds City Council,Strategic Accounts,10/04/2017,750.00,Beeston Festival,Non-Recurring Grants,Supplies & Services
Leeds City Council,Strategic Accounts,27/04/2017,290.00,Bramhope Royal British Legion,Non-Recurring Grants,Supplies & Services
Leeds City Council,Strategic Accounts,25/04/2017,200.00,Courthouse Project (Otley) Ltd,Non-Recurring Grants,Supplies & Services
Leeds City Council,Strategic Accounts,25/04/2017,200.00,East Ardsley Luncheon Club,Non-Recurring Grants,Supplies & Services
Leeds City Council,Strategic Accounts,27/04/2017,200.00,East End Park Bowling Club,Non-Recurring Grants,Supplies & Services
Leeds City Council,Strategic Accounts,27/04/2017,100.00,East Leeds Comets Majorette Troupe,Non-Recurring Grants,Supplies & Services
Leeds City Council,Strategic Accounts,10/04/2017,450.00,Farsley Business Forum,Non-Recurring Grants,Supplies & Services
Leeds City Council,Strategic Accounts,19/04/2017,154.14,Farsley Business Forum,Non-Recurring Grants,Supplies & Services
Leeds City Council,Strategic Accounts,19/04/2017,250.00,For Disability Mobility,Non-Recurring Grants,Supplies & Services
Leeds City Council,Strategic Accounts,27/04/2017,200.00,Garforth Rangers,Non-Recurring Grants,Supplies & Services
Leeds City Council,Strategic Accounts,10/04/2017,200.00,Garforth Villa Jfc,Non-Recurring Grants,Supplies & Services
Leeds City Council,Strategic Accounts,27/04/2017,300.00,Gilbert & Sandford Road,Non-Recurring Grants,Supplies & Services
Leeds City Council,Strategic Accounts,10/04/2017,300.00,Harehills Irish Men'S Group,Non-Recurring Grants,Supplies & Services
Leeds City Council,Strategic Accounts,19/04/2017,110.00,Headingley Veterans Social Fund,Non-Recurring Grants,Supplies & Services
Leeds City Council,Strategic Accounts,10/04/2017,250.00,Holy Trinity Church Rothwell,Non-Recurring Grants,Supplies & Services
Leeds City Council,Strategic Accounts,19/04/2017,200.00,Kaanz Badminton Club,Non-Recurring Grants,Supplies & Services
Leeds City Council,Strategic Accounts,21/04/2017,200.00,Kaanz Badminton Club,Non-Recurring Grants,Supplies & Services
Leeds City Council,Strategic Accounts,26/04/2017,400.00,Kaanz Badminton Club,Non-Recurring Grants,Supplies & Services
Leeds City Council,Strategic Accounts,19/04/2017,100.00,Leeds Baby Bank,Non-Recurring Grants,Supplies & Services
Leeds City Council,Strategic Accounts,10/04/2017,300.00,Leeds Christian Community Trust,Non-Recurring Grants,Supplies & Services
Leeds City Council,Strategic Accounts,19/04/2017,100.00,Leeds Hunters Rufc,Non-Recurring Grants,Supplies & Services
Leeds City Council,Strategic Accounts,25/04/2017,150.00,Leeds Palestinian Film Festival,Non-Recurring Grants,Supplies & Services
Leeds City Council,Strategic Accounts,26/04/2017,200.00,Leeds West Indian Centre Womens Group,Non-Recurring Grants,Supplies & Services
Leeds City Council,Strategic Accounts,19/04/2017,150.00,Morley Central Methodist Church,Non-Recurring Grants,Supplies & Services
Leeds City Council,Strategic Accounts,10/04/2017,400.00,Morley Music Society,Non-Recurring Grants,Supplies & Services
Leeds City Council,Strategic Accounts,25/04/2017,200.00,Morley Womens Institute,Non-Recurring Grants,Supplies & Services
Leeds City Council,Strategic Accounts,19/04/2017,500.00,New Armely Bowling Club,Non-Recurring Grants,Supplies & Services
Leeds City Council,Strategic Accounts,27/04/2017,600.00,Pudsey Carnival Committee,Non-Recurring Grants,Supplies & Services
Leeds City Council,Strategic Accounts,25/04/2017,336.00,Pudsey In Bloom,Non-Recurring Grants,Supplies & Services
Leeds City Council,Strategic Accounts,10/04/2017,50.00,Saxton Gardens Residents Association,Non-Recurring Grants,Supplies & Services
Leeds City Council,Strategic Accounts,19/04/2017,300.00,Saxton Gardens Residents Association,Non-Recurring Grants,Supplies & Services
Leeds City Council,Strategic Accounts,27/04/2017,150.00,Scholes In Bloom,Non-Recurring Grants,Supplies & Services
Leeds City Council,Strategic Accounts,25/04/2017,200.00,Sherburn Court Friday Social Club,Non-Recurring Grants,Supplies & Services
Leeds City Council,Strategic Accounts,10/04/2017,500.00,Shire Oak Leeds District Scouts,Non-Recurring Grants,Supplies & Services
Leeds City Council,Strategic Accounts,10/04/2017,150.00,Time Out Rothwell,Non-Recurring Grants,Supplies & Services
Leeds City Council,Strategic Accounts,10/04/2017,200.00,Tingley Tara (Tenants And Residents),Non-Recurring Grants,Supplies & Services
Leeds City Council,Strategic Accounts,19/04/2017,100.00,Winthorpe Residents Association,Non-Recurring Grants,Supplies & Services
Leeds City Council,Strategic Landlord,28/04/2017,125.00,Hunslet Methodist Church,Hospitality,Supplies & Services
Leeds City Council,Strategic Landlord,13/04/2017,140.00,Leeds Alternative Travel,Miscellaneous Transport Related Costs,Supplies & Services
Leeds City Council,Strategic Landlord,11/04/2017,200.00,Rycroft High Rise Association,Grants To Voluntary Organisations,Supplies & Services
Leeds City Council,Strategic Landlord,04/04/2017,300.00,St Augustines Court Residents,Grants To Voluntary Organisations,Supplies & Services
Leeds City Council,Strategic Landlord,26/04/2017,21964.49,The West Yorkshire Crc Ltd,Grants To Voluntary Organisations,Supplies & Services
Leeds City Council,Strategic Landlord,10/04/2017,40.00,Voluntary Action-Leeds,Training & Development,Supplies & Services
Leeds City Council,Strategic Landlord,07/04/2017,50.00,Yorkshire Housing Ltd,Other Hired And Contracted Services,Supplies & Services
Leeds City Council,Strategic Landlord,18/04/2017,40.00,Voluntary Action-Leeds,Training & Development,Supplies & Services
Leeds City Council,Strategic Landlord,07/04/2017,8537.50,Community Links Ltd,Other Hired And Contracted Services,Supplies & Services
Leeds City Council,Strategic Landlord,05/04/2017,200.00,Barncroft Residents Association,Grants To Voluntary Organisations,Supplies & Services
Leeds City Council,Strategic Landlord,26/04/2017,3070.00,Black Health Initiative,Grants To Voluntary Organisations,Supplies & Services
Leeds City Council,Strategic Landlord,26/04/2017,1104.35,Chapeltown Community Netball,Grants To Voluntary Organisations,Supplies & Services
Leeds City Council,Strategic Landlord,26/04/2017,2960.00,Hope Kids Club,Grants To Voluntary Organisations,Supplies & Services
Leeds City Council,Strategic Landlord,11/04/2017,1250.00,Interact Church & Community Partnership,Grants To Voluntary Organisations,Supplies & Services
Leeds City Council,Strategic Landlord,18/04/2017,780.62,Meanwood Valley Urban Farm,Grants To Voluntary Organisations,Supplies & Services
Leeds City Council,Strategic Landlord,13/04/2017,1002.00,Moortown Community Group,Grants To Voluntary Organisations,Supplies & Services
Leeds City Council,Strategic Landlord,05/04/2017,100.00,Queensview Residents Association,Grants To Voluntary Organisations,Supplies & Services
Leeds City Council,Strategic Landlord,10/04/2017,200.00,St Augustines Court Residents,Grants To Voluntary Organisations,Supplies & Services
Leeds City Council,Strategic Landlord,03/04/2017,1670.03,Care & Repair Leeds,General Maintenance,Supplies & Services
Leeds City Council,Strategic Landlord,03/04/2017,210.00,Care & Repair Leeds,General Maintenance,Supplies & Services
Leeds City Council,Strategic Landlord,19/04/2017,1748.39,Care & Repair Leeds,General Maintenance,Supplies & Services
Leeds City Council,Strategic Landlord,26/04/2017,1862.98,Care & Repair Leeds,General Maintenance,Supplies & Services
Leeds City Council,Strategic Landlord,28/04/2017,2823.60,Care & Repair Leeds,General Maintenance,Supplies & Services
Leeds City Council as Accountable Body,Social Services Pooled Budgets,28/04/2017,9894.18,Advonet,Other Agency Services,Supplies & Services
Leeds City Council as Accountable Body,Social Services Pooled Budgets,28/04/2017,2722.80,Affinity Trust,Home Care,Supplies & Services
Leeds City Council as Accountable Body,Social Services Pooled Budgets,28/04/2017,1560.00,Affinity Trust,Home Care,Supplies & Services
Leeds City Council as Accountable Body,Social Services Pooled Budgets,28/04/2017,742.86,Affinity Trust,Home Care,Supplies & Services
Leeds City Council as Accountable Body,Social Services Pooled Budgets,28/04/2017,1050.00,Affinity Trust,Home Care,Supplies & Services
Leeds City Council as Accountable Body,Social Services Pooled Budgets,28/04/2017,440.98,Affinity Trust,Home Care,Supplies & Services
Leeds City Council as Accountable Body,Social Services Pooled Budgets,28/04/2017,511.36,Affinity Trust,Home Care,Supplies & Services
Leeds City Council as Accountable Body,Social Services Pooled Budgets,28/04/2017,255.68,Affinity Trust,Home Care,Supplies & Services
Leeds City Council as Accountable Body,Social Services Pooled Budgets,28/04/2017,941.92,Affinity Trust,Home Care,Supplies & Services
Leeds City Council as Accountable Body,Social Services Pooled Budgets,28/04/2017,204.32,Affinity Trust,Home Care,Supplies & Services
Leeds City Council as Accountable Body,Social Services Pooled Budgets,28/04/2017,255.68,Affinity Trust,Home Care,Supplies & Services
Leeds City Council as Accountable Body,Social Services Pooled Budgets,28/04/2017,2924.34,Affinity Trust,Home Care,Supplies & Services
Leeds City Council as Accountable Body,Social Services Pooled Budgets,28/04/2017,1731.09,Affinity Trust,Home Care,Supplies & Services
Leeds City Council as Accountable Body,Social Services Pooled Budgets,28/04/2017,991.98,Affinity Trust,Home Care,Supplies & Services
Leeds City Council as Accountable Body,Social Services Pooled Budgets,28/04/2017,3283.70,Affinity Trust,Home Care,Supplies & Services
Leeds City Council as Accountable Body,Social Services Pooled Budgets,28/04/2017,525.72,Affinity Trust,Home Care,Supplies & Services
Leeds City Council as Accountable Body,Social Services Pooled Budgets,28/04/2017,1421.62,Affinity Trust,Home Care,Supplies & Services
Leeds City Council as Accountable Body,Social Services Pooled Budgets,28/04/2017,402.24,Affinity Trust,Home Care,Supplies & Services
Leeds City Council as Accountable Body,Social Services Pooled Budgets,28/04/2017,1270.08,Affinity Trust,Home Care,Supplies & Services
Leeds City Council as Accountable Body,Social Services Pooled Budgets,28/04/2017,1278.63,Affinity Trust,Home Care,Supplies & Services
Leeds City Council as Accountable Body,Social Services Pooled Budgets,28/04/2017,1005.60,Affinity Trust,Home Care,Supplies & Services
Leeds City Council as Accountable Body,Social Services Pooled Budgets,28/04/2017,360.00,Affinity Trust,Home Care,Supplies & Services
Leeds City Council as Accountable Body,Social Services Pooled Budgets,28/04/2017,518.80,Affinity Trust,Home Care,Supplies & Services
Leeds City Council as Accountable Body,Social Services Pooled Budgets,28/04/2017,301.68,Affinity Trust,Home Care,Supplies & Services
Leeds City Council as Accountable Body,Social Services Pooled Budgets,28/04/2017,416.64,Affinity Trust,Day Centre,Supplies & Services
Leeds City Council as Accountable Body,Social Services Pooled Budgets,28/04/2017,1440.00,Affinity Trust,Day Centre,Supplies & Services
Leeds City Council as Accountable Body,Social Services Pooled Budgets,28/04/2017,780.66,Affinity Trust,Day Centre,Supplies & Services
Leeds City Council as Accountable Body,Social Services Pooled Budgets,28/04/2017,838.00,Affinity Trust,Day Centre,Supplies & Services
Leeds City Council as Accountable Body,Social Services Pooled Budgets,28/04/2017,3306.85,Affinity Trust,Day Centre,Supplies & Services
Leeds City Council as Accountable Body,Social Services Pooled Budgets,28/04/2017,648.95,Affinity Trust,Day Centre,Supplies & Services
Leeds City Council as Accountable Body,Social Services Pooled Budgets,28/04/2017,2346.40,Affinity Trust,Day Centre,Supplies & Services
Leeds City Council as Accountable Body,Social Services Pooled Budgets,28/04/2017,112.31,Affinity Trust,Day Centre,Supplies & Services
Leeds City Council as Accountable Body,Social Services Pooled Budgets,05/04/2017,1106.16,Affinity Trust,Home Care,Supplies & Services
Leeds City Council as Accountable Body,Social Services Pooled Budgets,05/04/2017,1106.16,Affinity Trust,Home Care,Supplies & Services
Leeds City Council as Accountable Body,Social Services Pooled Budgets,28/04/2017,966.79,Affinity Trust,Home Care,Supplies & Services
Leeds City Council as Accountable Body,Social Services Pooled Budgets,28/04/2017,1150.56,Affinity Trust,Home Care,Supplies & Services
Leeds City Council as Accountable Body,Social Services Pooled Budgets,28/04/2017,1118.60,Affinity Trust,Home Care,Supplies & Services
Leeds City Council as Accountable Body,Social Services Pooled Budgets,28/04/2017,408.00,Affinity Trust,Home Care,Supplies & Services
Leeds City Council as Accountable Body,Social Services Pooled Budgets,28/04/2017,639.20,Affinity Trust,Home Care,Supplies & Services
Leeds City Council as Accountable Body,Social Services Pooled Budgets,28/04/2017,383.52,Affinity Trust,Home Care,Supplies & Services
Leeds City Council as Accountable Body,Social Services Pooled Budgets,28/04/2017,1518.10,Affinity Trust,Home Care,Supplies & Services
Leeds City Council as Accountable Body,Social Services Pooled Budgets,28/04/2017,1211.04,Affinity Trust,Home Care,Supplies & Services
Leeds City Council as Accountable Body,Social Services Pooled Budgets,28/04/2017,1518.00,Affinity Trust,Home Care,Supplies & Services
Leeds City Council as Accountable Body,Social Services Pooled Budgets,28/04/2017,767.04,Affinity Trust,Home Care,Supplies & Services
Leeds City Council as Accountable Body,Social Services Pooled Budgets,28/04/2017,816.00,Affinity Trust,Home Care,Supplies & Services
Leeds City Council as Accountable Body,Social Services Pooled Budgets,28/04/2017,447.44,Affinity Trust,Home Care,Supplies & Services
Leeds City Council as Accountable Body,Social Services Pooled Budgets,28/04/2017,1342.32,Affinity Trust,Home Care,Supplies & Services
Leeds City Council as Accountable Body,Social Services Pooled Budgets,28/04/2017,300.00,Affinity Trust,Home Care,Supplies & Services
Leeds City Council as Accountable Body,Social Services Pooled Budgets,18/04/2017,3703.19,Angels Housekeeping Cic Ltd,Home Care,Supplies & Services
Leeds City Council as Accountable Body,Social Services Pooled Budgets,05/04/2017,892.80,St Annes Community Services,Home Care,Supplies & Services
Leeds City Council as Accountable Body,Social Services Pooled Budgets,12/04/2017,32558.26,Aspire Services (Leeds) Limited,Home Care,Supplies & Services
Leeds City Council as Accountable Body,Social Services Pooled Budgets,28/04/2017,32751.44,Aspire Services (Leeds) Limited,Home Care,Supplies & Services
Leeds City Council as Accountable Body,Social Services Pooled Budgets,28/04/2017,33568.74,Aspire Services (Leeds) Limited,Home Care,Supplies & Services
Leeds City Council as Accountable Body,Social Services Pooled Budgets,28/04/2017,32974.34,Aspire Services (Leeds) Limited,Home Care,Supplies & Services
Leeds City Council as Accountable Body,Social Services Pooled Budgets,12/04/2017,337.50,The Conservation Volunteers,Day Centre,Supplies & Services
Leeds City Council as Accountable Body,Social Services Pooled Budgets,12/04/2017,337.50,The Conservation Volunteers,Day Centre,Supplies & Services
Leeds City Council as Accountable Body,Social Services Pooled Budgets,12/04/2017,337.50,The Conservation Volunteers,Day Centre,Supplies & Services
Leeds City Council as Accountable Body,Social Services Pooled Budgets,12/04/2017,337.50,The Conservation Volunteers,Day Centre,Supplies & Services
Leeds City Council as Accountable Body,Social Services Pooled Budgets,12/04/2017,337.50,The Conservation Volunteers,Day Centre,Supplies & Services
Leeds City Council as Accountable Body,Social Services Pooled Budgets,11/04/2017,1624.00,The Camphill Village Trust Ltd,Home Care,Supplies & Services
Leeds City Council as Accountable Body,Social Services Pooled Budgets,12/04/2017,11515.00,The David Lewis Centre,Residential,Supplies & Services
Leeds City Council as Accountable Body,Social Services Pooled Budgets,12/04/2017,11515.00,The David Lewis Centre,Residential,Supplies & Services
Leeds City Council as Accountable Body,Social Services Pooled Budgets,12/04/2017,11515.00,The David Lewis Centre,Residential,Supplies & Services
Leeds City Council as Accountable Body,Social Services Pooled Budgets,10/04/2017,2790.00,Hamara (Hlc),Day Centre,Supplies & Services
Leeds City Council as Accountable Body,Social Services Pooled Budgets,10/04/2017,1050.00,Hamara (Hlc),Day Centre,Supplies & Services
Leeds City Council as Accountable Body,Social Services Pooled Budgets,10/04/2017,1050.00,Hamara (Hlc),Day Centre,Supplies & Services
Leeds City Council as Accountable Body,Social Services Pooled Budgets,21/04/2017,350.00,Hamara (Hlc),Day Centre,Supplies & Services
Leeds City Council as Accountable Body,Social Services Pooled Budgets,10/04/2017,1050.00,Hamara (Hlc),Day Centre,Supplies & Services
Leeds City Council as Accountable Body,Social Services Pooled Budgets,10/04/2017,1750.00,Hamara (Hlc),Day Centre,Supplies & Services
Leeds City Council as Accountable Body,Social Services Pooled Budgets,10/04/2017,700.00,Hamara (Hlc),Day Centre,Supplies & Services
Leeds City Council as Accountable Body,Social Services Pooled Budgets,10/04/2017,1050.00,Hamara (Hlc),Day Centre,Supplies & Services
Leeds City Council as Accountable Body,Social Services Pooled Budgets,12/04/2017,2265.00,Hamara (Hlc),Day Centre,Supplies & Services
Leeds City Council as Accountable Body,Social Services Pooled Budgets,10/04/2017,2250.00,Hamara (Hlc),Day Centre,Supplies & Services
Leeds City Council as Accountable Body,Social Services Pooled Budgets,12/04/2017,350.00,Hamara (Hlc),Day Centre,Supplies & Services
Leeds City Council as Accountable Body,Social Services Pooled Budgets,10/04/2017,1050.00,Hamara (Hlc),Day Centre,Supplies & Services
Leeds City Council as Accountable Body,Social Services Pooled Budgets,10/04/2017,1050.00,Hamara (Hlc),Day Centre,Supplies & Services
Leeds City Council as Accountable Body,Social Services Pooled Budgets,10/04/2017,1554.00,Hamara (Hlc),Day Centre,Supplies & Services
Leeds City Council as Accountable Body,Social Services Pooled Budgets,10/04/2017,350.00,Hamara (Hlc),Day Centre,Supplies & Services
Leeds City Council as Accountable Body,Social Services Pooled Budgets,12/04/2017,2970.00,Hamara (Hlc),Day Centre,Supplies & Services
Leeds City Council as Accountable Body,Social Services Pooled Budgets,07/04/2017,2800.00,Hamara (Hlc),Day Centre,Supplies & Services
Leeds City Council as Accountable Body,Social Services Pooled Budgets,12/04/2017,1120.00,Hamara (Hlc),Day Centre,Supplies & Services
Leeds City Council as Accountable Body,Social Services Pooled Budgets,07/04/2017,2486.40,Hamara (Hlc),Day Centre,Supplies & Services
Leeds City Council as Accountable Body,Social Services Pooled Budgets,07/04/2017,3624.00,Hamara (Hlc),Day Centre,Supplies & Services
Leeds City Council as Accountable Body,Social Services Pooled Budgets,07/04/2017,1680.00,Hamara (Hlc),Day Centre,Supplies & Services
Leeds City Council as Accountable Body,Social Services Pooled Budgets,04/04/2017,12000.00,Hamara (Hlc),Day Centre,Supplies & Services
Leeds City Council as Accountable Body,Social Services Pooled Budgets,10/04/2017,1050.00,Hamara (Hlc),Other Agency Services,Supplies & Services
Leeds City Council as Accountable Body,Social Services Pooled Budgets,10/04/2017,1400.00,Hamara (Hlc),Other Agency Services,Supplies & Services
Leeds City Council as Accountable Body,Social Services Pooled Budgets,12/04/2017,472.98,Harrogate Skills 4  Living Centre,Day Centre,Supplies & Services
Leeds City Council as Accountable Body,Social Services Pooled Budgets,12/04/2017,188.01,Harrogate Skills 4  Living Centre,Day Centre,Supplies & Services
Leeds City Council as Accountable Body,Social Services Pooled Budgets,07/04/2017,163.34,Harrogate Skills 4  Living Centre,Day Centre,Supplies & Services
Leeds City Council as Accountable Body,Social Services Pooled Budgets,07/04/2017,81.67,Harrogate Skills 4  Living Centre,Day Centre,Supplies & Services
Leeds City Council as Accountable Body,Social Services Pooled Budgets,06/04/2017,595.00,Henshaws Society For Blind People,Day Centre,Supplies & Services
Leeds City Council as Accountable Body,Social Services Pooled Budgets,28/04/2017,12611.66,Henshaws Society For Blind People,Day Centre,Supplies & Services
Leeds City Council as Accountable Body,Social Services Pooled Budgets,10/04/2017,3078.00,Hf Trust Ltd,Home Care,Supplies & Services
Leeds City Council as Accountable Body,Social Services Pooled Budgets,04/04/2017,649.00,Hf Trust Ltd,Home Care,Supplies & Services
Leeds City Council as Accountable Body,Social Services Pooled Budgets,10/04/2017,1755.25,Hf Trust Ltd,Home Care,Supplies & Services
Leeds City Council as Accountable Body,Social Services Pooled Budgets,05/04/2017,2724.00,Hf Trust Ltd,Home Care,Supplies & Services
Leeds City Council as Accountable Body,Social Services Pooled Budgets,21/04/2017,287.52,Hf Trust Ltd,Home Care,Supplies & Services
Leeds City Council as Accountable Body,Social Services Pooled Budgets,10/04/2017,3078.00,Hf Trust Ltd,Home Care,Supplies & Services
Leeds City Council as Accountable Body,Social Services Pooled Budgets,21/04/2017,287.52,Hf Trust Ltd,Home Care,Supplies & Services
Leeds City Council as Accountable Body,Social Services Pooled Budgets,10/04/2017,3078.00,Hf Trust Ltd,Home Care,Supplies & Services
Leeds City Council as Accountable Body,Social Services Pooled Budgets,13/04/2017,318.00,Horticap Limited,Day Centre,Supplies & Services
Leeds City Council as Accountable Body,Social Services Pooled Budgets,03/04/2017,486.00,Horticap Limited,Day Centre,Supplies & Services
Leeds City Council as Accountable Body,Social Services Pooled Budgets,03/04/2017,636.00,Horticap Limited,Day Centre,Supplies & Services
Leeds City Council as Accountable Body,Social Services Pooled Budgets,03/04/2017,96.00,Horticap Limited,Day Centre,Supplies & Services
Leeds City Council as Accountable Body,Social Services Pooled Budgets,13/04/2017,367.00,Horticap Limited,Day Centre,Supplies & Services
Leeds City Council as Accountable Body,Social Services Pooled Budgets,13/04/2017,159.00,Horticap Limited,Day Centre,Supplies & Services
Leeds City Council as Accountable Body,Social Services Pooled Budgets,03/04/2017,216.00,Horticap Limited,Day Centre,Supplies & Services
Leeds City Council as Accountable Body,Social Services Pooled Budgets,13/04/2017,318.00,Horticap Limited,Day Centre,Supplies & Services
Leeds City Council as Accountable Body,Social Services Pooled Budgets,03/04/2017,486.00,Horticap Limited,Day Centre,Supplies & Services
Leeds City Council as Accountable Body,Social Services Pooled Budgets,03/04/2017,636.00,Horticap Limited,Day Centre,Supplies & Services
Leeds City Council as Accountable Body,Social Services Pooled Budgets,03/04/2017,96.00,Horticap Limited,Day Centre,Supplies & Services
Leeds City Council as Accountable Body,Social Services Pooled Budgets,03/04/2017,367.00,Horticap Limited,Day Centre,Supplies & Services
Leeds City Council as Accountable Body,Social Services Pooled Budgets,03/04/2017,159.00,Horticap Limited,Day Centre,Supplies & Services
Leeds City Council as Accountable Body,Social Services Pooled Budgets,03/04/2017,216.00,Horticap Limited,Day Centre,Supplies & Services
Leeds City Council as Accountable Body,Social Services Pooled Budgets,07/04/2017,112.00,Leep1,Day Centre,Supplies & Services
Leeds City Council as Accountable Body,Social Services Pooled Budgets,07/04/2017,112.00,Leep1,Day Centre,Supplies & Services
Leeds City Council as Accountable Body,Social Services Pooled Budgets,03/04/2017,140.00,Leep1,Day Centre,Supplies & Services
Leeds City Council as Accountable Body,Social Services Pooled Budgets,03/04/2017,112.00,Leep1,Day Centre,Supplies & Services
Leeds City Council as Accountable Body,Social Services Pooled Budgets,03/04/2017,112.00,Leep1,Day Centre,Supplies & Services
Leeds City Council as Accountable Body,Social Services Pooled Budgets,03/04/2017,140.00,Leep1,Day Centre,Supplies & Services
Leeds City Council as Accountable Body,Social Services Pooled Budgets,03/04/2017,112.00,Leep1,Day Centre,Supplies & Services
Leeds City Council as Accountable Body,Social Services Pooled Budgets,07/04/2017,56.00,Leep1,Day Centre,Supplies & Services
Leeds City Council as Accountable Body,Social Services Pooled Budgets,07/04/2017,210.00,Leep1,Day Centre,Supplies & Services
Leeds City Council as Accountable Body,Social Services Pooled Budgets,07/04/2017,588.00,Leep1,Day Centre,Supplies & Services
Leeds City Council as Accountable Body,Social Services Pooled Budgets,07/04/2017,100.00,Leep1,Day Centre,Supplies & Services
Leeds City Council as Accountable Body,Social Services Pooled Budgets,07/04/2017,1176.00,Leep1,Day Centre,Supplies & Services
Leeds City Council as Accountable Body,Social Services Pooled Budgets,07/04/2017,84.00,Leep1,Day Centre,Supplies & Services
Leeds City Council as Accountable Body,Social Services Pooled Budgets,07/04/2017,112.00,Leep1,Day Centre,Supplies & Services
Leeds City Council as Accountable Body,Social Services Pooled Budgets,07/04/2017,168.00,Leep1,Day Centre,Supplies & Services
Leeds City Council as Accountable Body,Social Services Pooled Budgets,07/04/2017,56.00,Leep1,Day Centre,Supplies & Services
Leeds City Council as Accountable Body,Social Services Pooled Budgets,07/04/2017,112.00,Leep1,Day Centre,Supplies & Services
Leeds City Council as Accountable Body,Social Services Pooled Budgets,07/04/2017,168.00,Leep1,Day Centre,Supplies & Services
Leeds City Council as Accountable Body,Social Services Pooled Budgets,07/04/2017,140.00,Leep1,Day Centre,Supplies & Services
Leeds City Council as Accountable Body,Social Services Pooled Budgets,07/04/2017,112.00,Leep1,Day Centre,Supplies & Services
Leeds City Council as Accountable Body,Social Services Pooled Budgets,07/04/2017,112.00,Leep1,Day Centre,Supplies & Services
Leeds City Council as Accountable Body,Social Services Pooled Budgets,07/04/2017,112.00,Leep1,Day Centre,Supplies & Services
Leeds City Council as Accountable Body,Social Services Pooled Budgets,07/04/2017,56.00,Leep1,Day Centre,Supplies & Services
Leeds City Council as Accountable Body,Social Services Pooled Budgets,13/04/2017,111513.28,Leeds Autism Services,Day Centre,Supplies & Services
Leeds City Council as Accountable Body,Social Services Pooled Budgets,13/04/2017,331.20,Leeds Autism Services,Day Centre,Supplies & Services
Leeds City Council as Accountable Body,Social Services Pooled Budgets,13/04/2017,136.00,Leeds Autism Services,Day Centre,Supplies & Services
Leeds City Council as Accountable Body,Social Services Pooled Budgets,03/04/2017,1519.80,Leeds Federated Housing Association,Home Care,Supplies & Services
Leeds City Council as Accountable Body,Social Services Pooled Budgets,03/04/2017,21277.20,Leeds Federated Housing Association,Home Care,Supplies & Services
Leeds City Council as Accountable Body,Social Services Pooled Budgets,07/04/2017,1265.40,Linkage Community Trust,Home Care,Supplies & Services
Leeds City Council as Accountable Body,Social Services Pooled Budgets,07/04/2017,1212.75,Linkage Community Trust,Home Care,Supplies & Services
Leeds City Council as Accountable Body,Social Services Pooled Budgets,03/04/2017,1265.40,Linkage Community Trust,Home Care,Supplies & Services
Leeds City Council as Accountable Body,Social Services Pooled Budgets,12/04/2017,225.00,Northern Ballet Theatre Limited,Day Centre,Supplies & Services
Leeds City Council as Accountable Body,Social Services Pooled Budgets,12/04/2017,225.00,Northern Ballet Theatre Limited,Day Centre,Supplies & Services
Leeds City Council as Accountable Body,Social Services Pooled Budgets,12/04/2017,225.00,Northern Ballet Theatre Limited,Day Centre,Supplies & Services
Leeds City Council as Accountable Body,Social Services Pooled Budgets,12/04/2017,225.00,Northern Ballet Theatre Limited,Day Centre,Supplies & Services
Leeds City Council as Accountable Body,Social Services Pooled Budgets,12/04/2017,225.00,Northern Ballet Theatre Limited,Day Centre,Supplies & Services
Leeds City Council as Accountable Body,Social Services Pooled Budgets,12/04/2017,225.00,Northern Ballet Theatre Limited,Day Centre,Supplies & Services
Leeds City Council as Accountable Body,Social Services Pooled Budgets,12/04/2017,225.00,Northern Ballet Theatre Limited,Day Centre,Supplies & Services
Leeds City Council as Accountable Body,Social Services Pooled Budgets,12/04/2017,180.00,Northern Ballet Theatre Limited,Day Centre,Supplies & Services
Leeds City Council as Accountable Body,Social Services Pooled Budgets,12/04/2017,270.00,Northern Ballet Theatre Limited,Day Centre,Supplies & Services
Leeds City Council as Accountable Body,Social Services Pooled Budgets,12/04/2017,225.00,Northern Ballet Theatre Limited,Day Centre,Supplies & Services
Leeds City Council as Accountable Body,Social Services Pooled Budgets,10/04/2017,1318.18,Pennine Camphill Community,Day Centre,Supplies & Services
Leeds City Council as Accountable Body,Social Services Pooled Budgets,13/04/2017,1102.05,People In Action Leeds Uk,Home Care,Supplies & Services
Leeds City Council as Accountable Body,Social Services Pooled Budgets,13/04/2017,239.20,People In Action Leeds Uk,Home Care,Supplies & Services
Leeds City Council as Accountable Body,Social Services Pooled Budgets,13/04/2017,620.45,People In Action Leeds Uk,Sheltered Accommodation,Supplies & Services
Leeds City Council as Accountable Body,Social Services Pooled Budgets,11/04/2017,175.00,Purple Patch Arts,Day Centre,Supplies & Services
Leeds City Council as Accountable Body,Social Services Pooled Budgets,11/04/2017,140.00,Purple Patch Arts,Day Centre,Supplies & Services
Leeds City Council as Accountable Body,Social Services Pooled Budgets,07/04/2017,140.00,Purple Patch Arts,Day Centre,Supplies & Services
Leeds City Council as Accountable Body,Social Services Pooled Budgets,11/04/2017,455.00,Purple Patch Arts,Day Centre,Supplies & Services
Leeds City Council as Accountable Body,Social Services Pooled Budgets,07/04/2017,105.00,Purple Patch Arts,Day Centre,Supplies & Services
Leeds City Council as Accountable Body,Social Services Pooled Budgets,07/04/2017,210.00,Purple Patch Arts,Day Centre,Supplies & Services
Leeds City Council as Accountable Body,Social Services Pooled Budgets,07/04/2017,70.00,Purple Patch Arts,Day Centre,Supplies & Services
Leeds City Council as Accountable Body,Social Services Pooled Budgets,07/04/2017,105.00,Purple Patch Arts,Day Centre,Supplies & Services
Leeds City Council as Accountable Body,Social Services Pooled Budgets,07/04/2017,105.00,Purple Patch Arts,Day Centre,Supplies & Services
Leeds City Council as Accountable Body,Social Services Pooled Budgets,07/04/2017,70.00,Purple Patch Arts,Day Centre,Supplies & Services
Leeds City Council as Accountable Body,Social Services Pooled Budgets,07/04/2017,70.00,Purple Patch Arts,Day Centre,Supplies & Services
Leeds City Council as Accountable Body,Social Services Pooled Budgets,07/04/2017,70.00,Purple Patch Arts,Day Centre,Supplies & Services
Leeds City Council as Accountable Body,Social Services Pooled Budgets,07/04/2017,105.00,Purple Patch Arts,Day Centre,Supplies & Services
Leeds City Council as Accountable Body,Social Services Pooled Budgets,07/04/2017,70.00,Purple Patch Arts,Day Centre,Supplies & Services
Leeds City Council as Accountable Body,Social Services Pooled Budgets,07/04/2017,105.00,Purple Patch Arts,Day Centre,Supplies & Services
Leeds City Council as Accountable Body,Social Services Pooled Budgets,11/04/2017,140.00,Purple Patch Arts,Day Centre,Supplies & Services
Leeds City Council as Accountable Body,Social Services Pooled Budgets,11/04/2017,140.00,Purple Patch Arts,Day Centre,Supplies & Services
Leeds City Council as Accountable Body,Social Services Pooled Budgets,11/04/2017,140.00,Purple Patch Arts,Day Centre,Supplies & Services
Leeds City Council as Accountable Body,Social Services Pooled Budgets,11/04/2017,140.00,Purple Patch Arts,Day Centre,Supplies & Services
Leeds City Council as Accountable Body,Social Services Pooled Budgets,07/04/2017,140.00,Purple Patch Arts,Day Centre,Supplies & Services
Leeds City Council as Accountable Body,Social Services Pooled Budgets,11/04/2017,175.00,Purple Patch Arts,Day Centre,Supplies & Services
Leeds City Council as Accountable Body,Social Services Pooled Budgets,11/04/2017,175.00,Purple Patch Arts,Day Centre,Supplies & Services
Leeds City Council as Accountable Body,Social Services Pooled Budgets,11/04/2017,140.00,Purple Patch Arts,Day Centre,Supplies & Services
Leeds City Council as Accountable Body,Social Services Pooled Budgets,11/04/2017,175.00,Purple Patch Arts,Day Centre,Supplies & Services
Leeds City Council as Accountable Body,Social Services Pooled Budgets,11/04/2017,140.00,Purple Patch Arts,Day Centre,Supplies & Services
Leeds City Council as Accountable Body,Social Services Pooled Budgets,07/04/2017,175.00,Purple Patch Arts,Day Centre,Supplies & Services
Leeds City Council as Accountable Body,Social Services Pooled Budgets,07/04/2017,280.00,Purple Patch Arts,Day Centre,Supplies & Services
Leeds City Council as Accountable Body,Social Services Pooled Budgets,07/04/2017,70.00,Purple Patch Arts,Home Care,Supplies & Services
Leeds City Council as Accountable Body,Social Services Pooled Budgets,07/04/2017,140.00,Purple Patch Arts,Home Care,Supplies & Services
Leeds City Council as Accountable Body,Social Services Pooled Budgets,07/04/2017,70.00,Purple Patch Arts,Home Care,Supplies & Services
Leeds City Council as Accountable Body,Social Services Pooled Budgets,11/04/2017,175.00,Purple Patch Arts,Home Care,Supplies & Services
Leeds City Council as Accountable Body,Social Services Pooled Budgets,07/04/2017,175.00,Purple Patch Arts,Day Centre,Supplies & Services
Leeds City Council as Accountable Body,Social Services Pooled Budgets,07/04/2017,175.00,Purple Patch Arts,Day Centre,Supplies & Services
Leeds City Council as Accountable Body,Social Services Pooled Budgets,07/04/2017,175.00,Purple Patch Arts,Day Centre,Supplies & Services
Leeds City Council as Accountable Body,Social Services Pooled Budgets,07/04/2017,175.00,Purple Patch Arts,Day Centre,Supplies & Services
Leeds City Council as Accountable Body,Social Services Pooled Budgets,07/04/2017,175.00,Purple Patch Arts,Day Centre,Supplies & Services
Leeds City Council as Accountable Body,Social Services Pooled Budgets,07/04/2017,280.00,Purple Patch Arts,Day Centre,Supplies & Services
Leeds City Council as Accountable Body,Social Services Pooled Budgets,07/04/2017,70.00,Purple Patch Arts,Day Centre,Supplies & Services
Leeds City Council as Accountable Body,Social Services Pooled Budgets,07/04/2017,70.00,Purple Patch Arts,Day Centre,Supplies & Services
Leeds City Council as Accountable Body,Social Services Pooled Budgets,07/04/2017,70.00,Purple Patch Arts,Day Centre,Supplies & Services
Leeds City Council as Accountable Body,Social Services Pooled Budgets,07/04/2017,70.00,Purple Patch Arts,Day Centre,Supplies & Services
Leeds City Council as Accountable Body,Social Services Pooled Budgets,07/04/2017,420.00,Purple Patch Arts,Day Centre,Supplies & Services
Leeds City Council as Accountable Body,Social Services Pooled Budgets,07/04/2017,140.00,Purple Patch Arts,Day Centre,Supplies & Services
Leeds City Council as Accountable Body,Social Services Pooled Budgets,07/04/2017,140.00,Purple Patch Arts,Day Centre,Supplies & Services
Leeds City Council as Accountable Body,Social Services Pooled Budgets,07/04/2017,140.00,Purple Patch Arts,Day Centre,Supplies & Services
Leeds City Council as Accountable Body,Social Services Pooled Budgets,07/04/2017,140.00,Purple Patch Arts,Day Centre,Supplies & Services
Leeds City Council as Accountable Body,Social Services Pooled Budgets,07/04/2017,140.00,Purple Patch Arts,Day Centre,Supplies & Services
Leeds City Council as Accountable Body,Social Services Pooled Budgets,07/04/2017,105.00,Purple Patch Arts,Day Centre,Supplies & Services
Leeds City Council as Accountable Body,Social Services Pooled Budgets,07/04/2017,70.00,Purple Patch Arts,Day Centre,Supplies & Services
Leeds City Council as Accountable Body,Social Services Pooled Budgets,07/04/2017,105.00,Purple Patch Arts,Day Centre,Supplies & Services
Leeds City Council as Accountable Body,Social Services Pooled Budgets,07/04/2017,105.00,Purple Patch Arts,Day Centre,Supplies & Services
Leeds City Council as Accountable Body,Social Services Pooled Budgets,07/04/2017,245.00,Purple Patch Arts,Day Centre,Supplies & Services
Leeds City Council as Accountable Body,Social Services Pooled Budgets,07/04/2017,70.00,Purple Patch Arts,Day Centre,Supplies & Services
Leeds City Council as Accountable Body,Social Services Pooled Budgets,03/04/2017,280.00,Purple Patch Arts,Day Centre,Supplies & Services
Leeds City Council as Accountable Body,Social Services Pooled Budgets,03/04/2017,140.00,Purple Patch Arts,Day Centre,Supplies & Services
Leeds City Council as Accountable Body,Social Services Pooled Budgets,03/04/2017,140.00,Purple Patch Arts,Day Centre,Supplies & Services
Leeds City Council as Accountable Body,Social Services Pooled Budgets,07/04/2017,140.00,Purple Patch Arts,Day Centre,Supplies & Services
Leeds City Council as Accountable Body,Social Services Pooled Budgets,07/04/2017,140.00,Purple Patch Arts,Day Centre,Supplies & Services
Leeds City Council as Accountable Body,Social Services Pooled Budgets,07/04/2017,140.00,Purple Patch Arts,Day Centre,Supplies & Services
Leeds City Council as Accountable Body,Social Services Pooled Budgets,07/04/2017,140.00,Purple Patch Arts,Day Centre,Supplies & Services
Leeds City Council as Accountable Body,Social Services Pooled Budgets,07/04/2017,140.00,Purple Patch Arts,Day Centre,Supplies & Services
Leeds City Council as Accountable Body,Social Services Pooled Budgets,07/04/2017,140.00,Purple Patch Arts,Day Centre,Supplies & Services
Leeds City Council as Accountable Body,Social Services Pooled Budgets,07/04/2017,140.00,Purple Patch Arts,Day Centre,Supplies & Services
Leeds City Council as Accountable Body,Social Services Pooled Budgets,12/04/2017,412.00,Pyramid Of Arts,Day Centre,Supplies & Services
Leeds City Council as Accountable Body,Social Services Pooled Budgets,12/04/2017,432.00,Pyramid Of Arts,Day Centre,Supplies & Services
Leeds City Council as Accountable Body,Social Services Pooled Budgets,12/04/2017,280.00,Pyramid Of Arts,Day Centre,Supplies & Services
Leeds City Council as Accountable Body,Social Services Pooled Budgets,12/04/2017,216.00,Pyramid Of Arts,Day Centre,Supplies & Services
Leeds City Council as Accountable Body,Social Services Pooled Budgets,12/04/2017,280.00,Pyramid Of Arts,Day Centre,Supplies & Services
Leeds City Council as Accountable Body,Social Services Pooled Budgets,12/04/2017,515.00,Pyramid Of Arts,Day Centre,Supplies & Services
Leeds City Council as Accountable Body,Social Services Pooled Budgets,12/04/2017,864.00,Pyramid Of Arts,Day Centre,Supplies & Services
Leeds City Council as Accountable Body,Social Services Pooled Budgets,12/04/2017,103.00,Pyramid Of Arts,Day Centre,Supplies & Services
Leeds City Council as Accountable Body,Social Services Pooled Budgets,12/04/2017,432.00,Pyramid Of Arts,Day Centre,Supplies & Services
Leeds City Council as Accountable Body,Social Services Pooled Budgets,12/04/2017,490.00,Pyramid Of Arts,Day Centre,Supplies & Services
Leeds City Council as Accountable Body,Social Services Pooled Budgets,13/04/2017,5199.66,Pyramid Of Arts,Other Agency Services,Supplies & Services
Leeds City Council as Accountable Body,Social Services Pooled Budgets,03/04/2017,23268.46,Real Life Options,Home Care,Supplies & Services
Leeds City Council as Accountable Body,Social Services Pooled Budgets,06/04/2017,379.12,Ripon Community Link,Day Centre,Supplies & Services
Leeds City Council as Accountable Body,Social Services Pooled Budgets,06/04/2017,568.68,Ripon Community Link,Day Centre,Supplies & Services
Leeds City Council as Accountable Body,Social Services Pooled Budgets,07/04/2017,2200.00,Ripon Community Link,Day Centre,Supplies & Services
Leeds City Council as Accountable Body,Social Services Pooled Budgets,12/04/2017,521.29,Ripon Community Link,Day Centre,Supplies & Services
Leeds City Council as Accountable Body,Social Services Pooled Budgets,07/04/2017,2090.00,Ripon Community Link,Day Centre,Supplies & Services
Leeds City Council as Accountable Body,Social Services Pooled Budgets,13/04/2017,28445.18,Royal Mencap Society,Other Agency Services,Supplies & Services
Leeds City Council as Accountable Body,Social Services Pooled Budgets,05/04/2017,1152.00,Scope,Home Care,Supplies & Services
Leeds City Council as Accountable Body,Social Services Pooled Budgets,12/04/2017,2785.52,Sense,Day Centre,Supplies & Services
Leeds City Council as Accountable Body,Social Services Pooled Budgets,12/04/2017,2785.52,Sense,Day Centre,Supplies & Services
Leeds City Council as Accountable Body,Social Services Pooled Budgets,12/04/2017,2785.52,Sense,Day Centre,Supplies & Services
Leeds City Council as Accountable Body,Social Services Pooled Budgets,03/04/2017,1120.00,Sense,Day Centre,Supplies & Services
Leeds City Council as Accountable Body,Social Services Pooled Budgets,03/04/2017,2702.40,Sense,Day Centre,Supplies & Services
Leeds City Council as Accountable Body,Social Services Pooled Budgets,13/04/2017,5571.04,Sense,Day Centre,Supplies & Services
Leeds City Council as Accountable Body,Social Services Pooled Budgets,12/04/2017,2785.52,Sense,Day Centre,Supplies & Services
Leeds City Council as Accountable Body,Social Services Pooled Budgets,12/04/2017,2785.52,Sense,Day Centre,Supplies & Services
Leeds City Council as Accountable Body,Social Services Pooled Budgets,12/04/2017,2785.52,Sense,Day Centre,Supplies & Services
Leeds City Council as Accountable Body,Social Services Pooled Budgets,12/04/2017,2785.52,Sense,Day Centre,Supplies & Services
Leeds City Council as Accountable Body,Social Services Pooled Budgets,12/04/2017,2785.52,Sense,Day Centre,Supplies & Services
Leeds City Council as Accountable Body,Social Services Pooled Budgets,11/04/2017,1834.96,United Response,Day Centre,Supplies & Services
Leeds City Council as Accountable Body,Social Services Pooled Budgets,11/04/2017,1473.00,United Response,Home Care,Supplies & Services
Leeds City Council as Accountable Body,Social Services Pooled Budgets,11/04/2017,1428.36,United Response,Home Care,Supplies & Services
Leeds City Council as Accountable Body,Social Services Pooled Budgets,11/04/2017,114.90,United Response,Home Care,Supplies & Services
Leeds City Council as Accountable Body,Social Services Pooled Budgets,28/04/2017,5197.60,United Response,Residential,Supplies & Services
Leeds City Council as Accountable Body,Social Services Pooled Budgets,28/04/2017,2972.32,United Response,Residential,Supplies & Services
Leeds City Council as Accountable Body,Social Services Pooled Budgets,12/04/2017,419.36,Rcl Walled Garden Scheme,Day Centre,Supplies & Services
Leeds City Council as Accountable Body,Social Services Pooled Budgets,12/04/2017,34.47,Wilf Ward Family Trust,Residential,Supplies & Services
Leeds City Council as Accountable Body,Social Services Pooled Budgets,12/04/2017,91.92,Wilf Ward Family Trust,Residential,Supplies & Services
Leeds City Council as Accountable Body,Social Services Pooled Budgets,12/04/2017,80.43,Wilf Ward Family Trust,Residential,Supplies & Services
Leeds City Council as Accountable Body,Social Services Pooled Budgets,12/04/2017,18.64,Wilf Ward Family Trust,Residential,Supplies & Services
Leeds City Council as Accountable Body,Social Services Pooled Budgets,12/04/2017,37.28,Wilf Ward Family Trust,Residential,Supplies & Services
Leeds City Council as Accountable Body,Social Services Pooled Budgets,12/04/2017,80.43,Wilf Ward Family Trust,Residential,Supplies & Services
Leeds City Council as Accountable Body,Social Services Pooled Budgets,12/04/2017,27.96,Wilf Ward Family Trust,Residential,Supplies & Services
Leeds City Council as Accountable Body,Social Services Pooled Budgets,12/04/2017,37.28,Wilf Ward Family Trust,Residential,Supplies & Services
Leeds City Council as Accountable Body,Social Services Pooled Budgets,12/04/2017,27.96,Wilf Ward Family Trust,Residential,Supplies & Services
Leeds City Council as Accountable Body,Social Services Pooled Budgets,12/04/2017,37.28,Wilf Ward Family Trust,Residential,Supplies & Services
Leeds City Council as Accountable Body,Social Services Pooled Budgets,12/04/2017,80.43,Wilf Ward Family Trust,Residential,Supplies & Services
Leeds City Council as Accountable Body,Social Services Pooled Budgets,12/04/2017,80.43,Wilf Ward Family Trust,Residential,Supplies & Services
Leeds City Council as Accountable Body,Social Services Pooled Budgets,12/04/2017,45.96,Wilf Ward Family Trust,Residential,Supplies & Services
Leeds City Council as Accountable Body,Social Services Pooled Budgets,12/04/2017,22.98,Wilf Ward Family Trust,Residential,Supplies & Services
Leeds City Council as Accountable Body,Social Services Pooled Budgets,12/04/2017,27.96,Wilf Ward Family Trust,Residential,Supplies & Services
Leeds City Council as Accountable Body,Social Services Pooled Budgets,12/04/2017,49177.80,Wilf Ward Family Trust,Residential,Supplies & Services
Leeds City Council as Accountable Body,Social Services Pooled Budgets,12/04/2017,45.96,Wilf Ward Family Trust,Residential,Supplies & Services
Leeds City Council as Accountable Body,Social Services Pooled Budgets,12/04/2017,37.28,Wilf Ward Family Trust,Residential,Supplies & Services
Leeds City Council as Accountable Body,Social Services Pooled Budgets,12/04/2017,37.28,Wilf Ward Family Trust,Residential,Supplies & Services
Leeds City Council as Accountable Body,Social Services Pooled Budgets,12/04/2017,65.24,Wilf Ward Family Trust,Residential,Supplies & Services
Leeds City Council as Accountable Body,Social Services Pooled Budgets,12/04/2017,9.32,Wilf Ward Family Trust,Residential,Supplies & Services
Leeds City Council as Accountable Body,Social Services Pooled Budgets,21/04/2017,9.32,Wilf Ward Family Trust,Residential,Supplies & Services
Leeds City Council as Accountable Body,Social Services Pooled Budgets,12/04/2017,103.41,Wilf Ward Family Trust,Residential,Supplies & Services
Leeds City Council as Accountable Body,Social Services Pooled Budgets,24/04/2017,49177.80,Wilf Ward Family Trust,Residential,Supplies & Services
Leeds City Council as Accountable Body,Social Services Pooled Budgets,28/04/2017,18.64,Wilf Ward Family Trust,Residential,Supplies & Services
Leeds City Council as Accountable Body,Social Services Pooled Budgets,28/04/2017,68.94,Wilf Ward Family Trust,Residential,Supplies & Services
Leeds City Council as Accountable Body,Social Services Pooled Budgets,28/04/2017,80.43,Wilf Ward Family Trust,Residential,Supplies & Services
Leeds City Council as Accountable Body,Social Services Pooled Budgets,12/04/2017,5639.80,Wilf Ward Family Trust,Home Care,Supplies & Services
Leeds City Council as Accountable Body,Social Services Pooled Budgets,12/04/2017,5611.92,Wilf Ward Family Trust,Home Care,Supplies & Services
Leeds City Council as Accountable Body,Social Services Pooled Budgets,12/04/2017,7584.52,Wilf Ward Family Trust,Home Care,Supplies & Services
Leeds City Council as Accountable Body,Social Services Pooled Budgets,12/04/2017,5460.00,Wilf Ward Family Trust,Home Care,Supplies & Services
Leeds City Council as Accountable Body,Social Services Pooled Budgets,12/04/2017,5079.80,Wilf Ward Family Trust,Home Care,Supplies & Services
Leeds City Council as Accountable Body,Social Services Pooled Budgets,12/04/2017,5051.92,Wilf Ward Family Trust,Home Care,Supplies & Services
Leeds City Council as Accountable Body,Social Services Pooled Budgets,12/04/2017,5460.00,Wilf Ward Family Trust,Home Care,Supplies & Services
Leeds City Council as Accountable Body,Social Services Pooled Budgets,12/04/2017,5079.80,Wilf Ward Family Trust,Home Care,Supplies & Services
Leeds City Council as Accountable Body,Social Services Pooled Budgets,12/04/2017,5051.92,Wilf Ward Family Trust,Home Care,Supplies & Services
Leeds City Council as Accountable Body,Social Services Pooled Budgets,12/04/2017,5460.00,Wilf Ward Family Trust,Home Care,Supplies & Services
Leeds City Council as Accountable Body,Social Services Pooled Budgets,12/04/2017,5611.92,Wilf Ward Family Trust,Home Care,Supplies & Services
Leeds City Council as Accountable Body,Social Services Pooled Budgets,12/04/2017,5639.80,Wilf Ward Family Trust,Home Care,Supplies & Services
Leeds City Council as Accountable Body,Social Services Pooled Budgets,12/04/2017,5460.00,Wilf Ward Family Trust,Home Care,Supplies & Services
Leeds City Council as Accountable Body,Social Services Pooled Budgets,12/04/2017,34.47,Wilf Ward Family Trust,Residential,Supplies & Services
Leeds City Council as Accountable Body,Social Services Pooled Budgets,12/04/2017,9.32,Wilf Ward Family Trust,Residential,Supplies & Services
Leeds City Council as Accountable Body,Social Services Pooled Budgets,12/04/2017,18.64,Wilf Ward Family Trust,Residential,Supplies & Services
Leeds City Council as Accountable Body,Social Services Pooled Budgets,12/04/2017,27.96,Wilf Ward Family Trust,Residential,Supplies & Services
Leeds City Council as Accountable Body,Social Services Pooled Budgets,12/04/2017,80.43,Wilf Ward Family Trust,Residential,Supplies & Services
Leeds City Council as Accountable Body,Social Services Pooled Budgets,12/04/2017,9.32,Wilf Ward Family Trust,Residential,Supplies & Services
Leeds City Council as Accountable Body,Social Services Pooled Budgets,12/04/2017,80.43,Wilf Ward Family Trust,Residential,Supplies & Services
Leeds City Council as Accountable Body,Social Services Pooled Budgets,12/04/2017,45.96,Wilf Ward Family Trust,Residential,Supplies & Services
Leeds City Council as Accountable Body,Social Services Pooled Budgets,12/04/2017,80.43,Wilf Ward Family Trust,Residential,Supplies & Services
Leeds City Council as Accountable Body,Social Services Pooled Budgets,12/04/2017,80.43,Wilf Ward Family Trust,Residential,Supplies & Services
Leeds City Council as Accountable Body,Social Services Pooled Budgets,12/04/2017,228.20,Wilf Ward Family Trust,Residential,Supplies & Services
Leeds City Council as Accountable Body,Social Services Pooled Budgets,12/04/2017,5079.80,Wilf Ward Family Trust,Home Care,Supplies & Services
Leeds City Council as Accountable Body,Social Services Pooled Budgets,12/04/2017,5051.92,Wilf Ward Family Trust,Home Care,Supplies & Services
Leeds City Council as Accountable Body,Social Services Pooled Budgets,12/04/2017,5079.80,Wilf Ward Family Trust,Home Care,Supplies & Services
Leeds City Council as Accountable Body,Social Services Pooled Budgets,28/04/2017,1027.68,Advonet,Other Agency Services,Supplies & Services
Leeds City Council as Accountable Body,Social Services Pooled Budgets,28/04/2017,1124.33,Advonet,Other Agency Services,Supplies & Services
Leeds City Council as Accountable Body,Social Services Pooled Budgets,28/04/2017,970.08,Advonet,Other Agency Services,Supplies & Services
Leeds City Council as Accountable Body,Social Services Pooled Budgets,20/04/2017,1294.38,Affinity Trust,Home Care,Supplies & Services
Leeds City Council as Accountable Body,Social Services Pooled Budgets,20/04/2017,1211.04,Affinity Trust,Home Care,Supplies & Services
Leeds City Council as Accountable Body,Social Services Pooled Budgets,20/04/2017,1386.00,Affinity Trust,Home Care,Supplies & Services
Leeds City Council as Accountable Body,Social Services Pooled Budgets,20/04/2017,767.04,Affinity Trust,Home Care,Supplies & Services
Leeds City Council as Accountable Body,Social Services Pooled Budgets,20/04/2017,714.00,Affinity Trust,Home Care,Supplies & Services
Leeds City Council as Accountable Body,Social Services Pooled Budgets,28/04/2017,255.68,Affinity Trust,Home Care,Supplies & Services
Leeds City Council as Accountable Body,Social Services Pooled Budgets,20/04/2017,1070.66,Affinity Trust,Home Care,Supplies & Services
Leeds City Council as Accountable Body,Social Services Pooled Budgets,20/04/2017,300.00,Affinity Trust,Home Care,Supplies & Services
Leeds City Council as Accountable Body,Social Services Pooled Budgets,20/04/2017,902.87,Affinity Trust,Home Care,Supplies & Services
Leeds City Council as Accountable Body,Social Services Pooled Budgets,20/04/2017,982.77,Affinity Trust,Home Care,Supplies & Services
Leeds City Council as Accountable Body,Social Services Pooled Budgets,20/04/2017,267.58,Affinity Trust,Home Care,Supplies & Services
Leeds City Council as Accountable Body,Social Services Pooled Budgets,28/04/2017,75.00,Affinity Trust,Home Care,Supplies & Services
Leeds City Council as Accountable Body,Social Services Pooled Budgets,28/04/2017,287.64,Affinity Trust,Home Care,Supplies & Services
Leeds City Council as Accountable Body,Social Services Pooled Budgets,20/04/2017,1342.32,Affinity Trust,Home Care,Supplies & Services
Leeds City Council as Accountable Body,Social Services Pooled Budgets,20/04/2017,300.00,Affinity Trust,Home Care,Supplies & Services
Leeds City Council as Accountable Body,Social Services Pooled Budgets,20/04/2017,1258.43,Affinity Trust,Home Care,Supplies & Services
Leeds City Council as Accountable Body,Social Services Pooled Budgets,20/04/2017,990.76,Affinity Trust,Home Care,Supplies & Services
Leeds City Council as Accountable Body,Social Services Pooled Budgets,28/04/2017,1206.72,Affinity Trust,Home Care,Supplies & Services
Leeds City Council as Accountable Body,Social Services Pooled Budgets,28/04/2017,301.68,Affinity Trust,Home Care,Supplies & Services
Leeds City Council as Accountable Body,Social Services Pooled Budgets,20/04/2017,270.00,Affinity Trust,Home Care,Supplies & Services
Leeds City Council as Accountable Body,Social Services Pooled Budgets,20/04/2017,921.80,Affinity Trust,Home Care,Supplies & Services
Leeds City Council as Accountable Body,Social Services Pooled Budgets,20/04/2017,901.98,Affinity Trust,Home Care,Supplies & Services
Leeds City Council as Accountable Body,Social Services Pooled Budgets,20/04/2017,965.62,Affinity Trust,Home Care,Supplies & Services
Leeds City Council as Accountable Body,Social Services Pooled Budgets,20/04/2017,553.08,Affinity Trust,Home Care,Supplies & Services
Leeds City Council as Accountable Body,Social Services Pooled Budgets,20/04/2017,1007.00,Affinity Trust,Home Care,Supplies & Services
Leeds City Council as Accountable Body,Social Services Pooled Budgets,20/04/2017,404.40,Affinity Trust,Home Care,Supplies & Services
Leeds City Council as Accountable Body,Social Services Pooled Budgets,20/04/2017,2435.79,Affinity Trust,Home Care,Supplies & Services
Leeds City Council as Accountable Body,Social Services Pooled Budgets,20/04/2017,736.65,Affinity Trust,Home Care,Supplies & Services
Leeds City Council as Accountable Body,Social Services Pooled Budgets,20/04/2017,495.38,Affinity Trust,Home Care,Supplies & Services
Leeds City Council as Accountable Body,Social Services Pooled Budgets,20/04/2017,255.68,Affinity Trust,Home Care,Supplies & Services
Leeds City Council as Accountable Body,Social Services Pooled Budgets,28/04/2017,941.92,Affinity Trust,Home Care,Supplies & Services
Leeds City Council as Accountable Body,Social Services Pooled Budgets,28/04/2017,408.64,Affinity Trust,Home Care,Supplies & Services
Leeds City Council as Accountable Body,Social Services Pooled Budgets,20/04/2017,383.52,Affinity Trust,Home Care,Supplies & Services
Leeds City Council as Accountable Body,Social Services Pooled Budgets,20/04/2017,2940.32,Affinity Trust,Home Care,Supplies & Services
Leeds City Council as Accountable Body,Social Services Pooled Budgets,20/04/2017,1006.74,Affinity Trust,Home Care,Supplies & Services
Leeds City Council as Accountable Body,Social Services Pooled Budgets,20/04/2017,204.00,Affinity Trust,Home Care,Supplies & Services
Leeds City Council as Accountable Body,Social Services Pooled Budgets,20/04/2017,639.20,Affinity Trust,Home Care,Supplies & Services
Leeds City Council as Accountable Body,Social Services Pooled Budgets,20/04/2017,1246.44,Affinity Trust,Home Care,Supplies & Services
Leeds City Council as Accountable Body,Social Services Pooled Budgets,20/04/2017,1211.04,Affinity Trust,Home Care,Supplies & Services
Leeds City Council as Accountable Body,Social Services Pooled Budgets,20/04/2017,1518.00,Affinity Trust,Home Care,Supplies & Services
Leeds City Council as Accountable Body,Social Services Pooled Budgets,20/04/2017,767.04,Affinity Trust,Home Care,Supplies & Services
Leeds City Council as Accountable Body,Social Services Pooled Budgets,20/04/2017,714.00,Affinity Trust,Home Care,Supplies & Services
Leeds City Council as Accountable Body,Social Services Pooled Budgets,28/04/2017,1111.32,Affinity Trust,Day Centre,Supplies & Services
Leeds City Council as Accountable Body,Social Services Pooled Budgets,28/04/2017,1994.44,Affinity Trust,Day Centre,Supplies & Services
Leeds City Council as Accountable Body,Social Services Pooled Budgets,28/04/2017,404.42,Affinity Trust,Day Centre,Supplies & Services
Leeds City Council as Accountable Body,Social Services Pooled Budgets,20/04/2017,2511.03,Affinity Trust,Day Centre,Supplies & Services
Leeds City Council as Accountable Body,Social Services Pooled Budgets,20/04/2017,469.28,Affinity Trust,Day Centre,Supplies & Services
Leeds City Council as Accountable Body,Social Services Pooled Budgets,20/04/2017,312.48,Affinity Trust,Day Centre,Supplies & Services
Leeds City Council as Accountable Body,Social Services Pooled Budgets,28/04/2017,2346.40,Affinity Trust,Day Centre,Supplies & Services
Leeds City Council as Accountable Body,Social Services Pooled Budgets,28/04/2017,714.78,Affinity Trust,Day Centre,Supplies & Services
Leeds City Council as Accountable Body,Social Services Pooled Budgets,20/04/2017,2701.45,Affinity Trust,Day Centre,Supplies & Services
Leeds City Council as Accountable Body,Social Services Pooled Budgets,20/04/2017,871.52,Affinity Trust,Day Centre,Supplies & Services
Leeds City Council as Accountable Body,Social Services Pooled Budgets,28/04/2017,1234.62,Affinity Trust,Day Centre,Supplies & Services
Leeds City Council as Accountable Body,Social Services Pooled Budgets,20/04/2017,1440.00,Affinity Trust,Day Centre,Supplies & Services
Leeds City Council as Accountable Body,Social Services Pooled Budgets,20/04/2017,416.64,Affinity Trust,Day Centre,Supplies & Services
Leeds City Council as Accountable Body,Social Services Pooled Budgets,20/04/2017,838.00,Affinity Trust,Home Care,Supplies & Services
Leeds City Council as Accountable Body,Social Services Pooled Budgets,20/04/2017,1726.65,Affinity Trust,Home Care,Supplies & Services
Leeds City Council as Accountable Body,Social Services Pooled Budgets,20/04/2017,1077.77,Affinity Trust,Home Care,Supplies & Services
Leeds City Council as Accountable Body,Social Services Pooled Budgets,20/04/2017,703.92,Affinity Trust,Home Care,Supplies & Services
Leeds City Council as Accountable Body,Social Services Pooled Budgets,20/04/2017,1273.86,Affinity Trust,Home Care,Supplies & Services
Leeds City Council as Accountable Body,Social Services Pooled Budgets,20/04/2017,525.72,Affinity Trust,Home Care,Supplies & Services
Leeds City Council as Accountable Body,Social Services Pooled Budgets,20/04/2017,1532.40,Affinity Trust,Home Care,Supplies & Services
Leeds City Council as Accountable Body,Social Services Pooled Budgets,28/04/2017,2752.80,Affinity Trust,Home Care,Supplies & Services
Leeds City Council as Accountable Body,Social Services Pooled Budgets,28/04/2017,1050.00,Affinity Trust,Home Care,Supplies & Services
Leeds City Council as Accountable Body,Social Services Pooled Budgets,20/04/2017,2940.23,Affinity Trust,Home Care,Supplies & Services
Leeds City Council as Accountable Body,Social Services Pooled Budgets,20/04/2017,1006.65,Affinity Trust,Home Care,Supplies & Services
Leeds City Council as Accountable Body,Social Services Pooled Budgets,20/04/2017,1560.00,Affinity Trust,Home Care,Supplies & Services
Leeds City Council as Accountable Body,Social Services Pooled Budgets,28/04/2017,767.97,Affinity Trust,Home Care,Supplies & Services
Leeds City Council as Accountable Body,Social Services Pooled Budgets,20/04/2017,2276.60,Affinity Trust,Home Care,Supplies & Services
Leeds City Council as Accountable Body,Social Services Pooled Budgets,28/04/2017,824.18,Affinity Trust,Home Care,Supplies & Services
Leeds City Council as Accountable Body,Social Services Pooled Budgets,28/04/2017,306.48,Affinity Trust,Home Care,Supplies & Services
Leeds City Council as Accountable Body,Social Services Pooled Budgets,20/04/2017,383.52,Affinity Trust,Home Care,Supplies & Services
Leeds City Council as Accountable Body,Social Services Pooled Budgets,20/04/2017,2508.86,Affinity Trust,Home Care,Supplies & Services
Leeds City Council as Accountable Body,Social Services Pooled Budgets,20/04/2017,383.52,Affinity Trust,Home Care,Supplies & Services
Leeds City Council as Accountable Body,Social Services Pooled Budgets,24/04/2017,5516.16,Anchor Trust,Nursing Home,Supplies & Services
Leeds City Council as Accountable Body,Social Services Pooled Budgets,24/04/2017,5455.54,Anchor Trust,Nursing Home,Supplies & Services
Leeds City Council as Accountable Body,Social Services Pooled Budgets,11/04/2017,66626.16,St Annes Shelter & Housing Action,Home Care,Supplies & Services
Leeds City Council as Accountable Body,Social Services Pooled Budgets,20/04/2017,314.60,St Annes Community Services,Home Care,Supplies & Services
Leeds City Council as Accountable Body,Social Services Pooled Budgets,20/04/2017,732.46,St Annes Community Services,Home Care,Supplies & Services
Leeds City Council as Accountable Body,Social Services Pooled Budgets,05/04/2017,1603171.30,Aspire Services (Leeds) Limited,Home Care,Supplies & Services
Leeds City Council as Accountable Body,Social Services Pooled Budgets,21/04/2017,1332.20,Adult Placement Services,Sheltered Accommodation,Supplies & Services
Leeds City Council as Accountable Body,Social Services Pooled Budgets,21/04/2017,805.74,Adult Placement Services,Sheltered Accommodation,Supplies & Services
Leeds City Council as Accountable Body,Social Services Pooled Budgets,26/04/2017,1000.00,Better Action For Families,"Fees To ""Carers""",Supplies & Services
Leeds City Council as Accountable Body,Social Services Pooled Budgets,03/04/2017,18746.25,Connect In The North,Day Centre - Learning Disabil,Supplies & Services
Leeds City Council as Accountable Body,Social Services Pooled Budgets,11/04/2017,4038.96,Community Integrated Care,Home Care,Supplies & Services
Leeds City Council as Accountable Body,Social Services Pooled Budgets,20/04/2017,367.50,Henshaws Society For Blind People,Day Centre,Supplies & Services
Leeds City Council as Accountable Body,Social Services Pooled Budgets,20/04/2017,280.00,Henshaws Society For Blind People,Day Centre,Supplies & Services
Leeds City Council as Accountable Body,Social Services Pooled Budgets,20/04/2017,280.00,Henshaws Society For Blind People,Day Centre,Supplies & Services
Leeds City Council as Accountable Body,Social Services Pooled Budgets,20/04/2017,175.00,Henshaws Society For Blind People,Day Centre,Supplies & Services
Leeds City Council as Accountable Body,Social Services Pooled Budgets,20/04/2017,385.00,Henshaws Society For Blind People,Day Centre,Supplies & Services
Leeds City Council as Accountable Body,Social Services Pooled Budgets,20/04/2017,630.00,Henshaws Society For Blind People,Day Centre,Supplies & Services
Leeds City Council as Accountable Body,Social Services Pooled Budgets,20/04/2017,472.50,Henshaws Society For Blind People,Day Centre,Supplies & Services
Leeds City Council as Accountable Body,Social Services Pooled Budgets,20/04/2017,630.00,Henshaws Society For Blind People,Day Centre,Supplies & Services
Leeds City Council as Accountable Body,Social Services Pooled Budgets,20/04/2017,595.00,Henshaws Society For Blind People,Day Centre,Supplies & Services
Leeds City Council as Accountable Body,Social Services Pooled Budgets,20/04/2017,770.00,Henshaws Society For Blind People,Young Peoples Training,Supplies & Services
Leeds City Council as Accountable Body,Social Services Pooled Budgets,20/04/2017,350.00,Henshaws Society For Blind People,Day Centre,Supplies & Services
Leeds City Council as Accountable Body,Social Services Pooled Budgets,20/04/2017,385.00,Henshaws Society For Blind People,Day Centre,Supplies & Services
Leeds City Council as Accountable Body,Social Services Pooled Budgets,20/04/2017,350.00,Henshaws Society For Blind People,Day Centre,Supplies & Services
Leeds City Council as Accountable Body,Social Services Pooled Budgets,20/04/2017,455.00,Henshaws Society For Blind People,Day Centre,Supplies & Services
Leeds City Council as Accountable Body,Social Services Pooled Budgets,20/04/2017,847.00,Henshaws Society For Blind People,Day Centre,Supplies & Services
Leeds City Council as Accountable Body,Social Services Pooled Budgets,20/04/2017,385.00,Henshaws Society For Blind People,Day Centre,Supplies & Services
Leeds City Council as Accountable Body,Social Services Pooled Budgets,20/04/2017,210.00,Henshaws Society For Blind People,Day Centre,Supplies & Services
Leeds City Council as Accountable Body,Social Services Pooled Budgets,20/04/2017,455.00,Henshaws Society For Blind People,Day Centre,Supplies & Services
Leeds City Council as Accountable Body,Social Services Pooled Budgets,20/04/2017,630.00,Henshaws Society For Blind People,Day Centre,Supplies & Services
Leeds City Council as Accountable Body,Social Services Pooled Budgets,11/04/2017,17836.75,Hf Trust Ltd,Home Care,Supplies & Services
Leeds City Council as Accountable Body,Social Services Pooled Budgets,20/04/2017,6013.48,Hf Trust Ltd,Home Care,Supplies & Services
Leeds City Council as Accountable Body,Social Services Pooled Budgets,20/04/2017,1032.52,Hf Trust Ltd,Home Care,Supplies & Services
Leeds City Council as Accountable Body,Social Services Pooled Budgets,20/04/2017,1032.52,Hf Trust Ltd,Home Care,Supplies & Services
Leeds City Council as Accountable Body,Social Services Pooled Budgets,20/04/2017,1778.80,Hf Trust Ltd,Home Care,Supplies & Services
Leeds City Council as Accountable Body,Social Services Pooled Budgets,20/04/2017,295.00,Hf Trust Ltd,Home Care,Supplies & Services
Leeds City Council as Accountable Body,Social Services Pooled Budgets,18/04/2017,1032.52,Hf Trust Ltd,Home Care,Supplies & Services
Leeds City Council as Accountable Body,Social Services Pooled Budgets,18/04/2017,1032.52,Hf Trust Ltd,Home Care,Supplies & Services
Leeds City Council as Accountable Body,Social Services Pooled Budgets,18/04/2017,295.00,Hf Trust Ltd,Home Care,Supplies & Services
Leeds City Council as Accountable Body,Social Services Pooled Budgets,18/04/2017,973.50,Hf Trust Ltd,Home Care,Supplies & Services
Leeds City Council as Accountable Body,Social Services Pooled Budgets,18/04/2017,413.00,Hf Trust Ltd,Home Care,Supplies & Services
Leeds City Council as Accountable Body,Social Services Pooled Budgets,19/04/2017,5706.68,Hf Trust Ltd,Home Care,Supplies & Services
Leeds City Council as Accountable Body,Social Services Pooled Budgets,18/04/2017,1032.52,Hf Trust Ltd,Home Care,Supplies & Services
Leeds City Council as Accountable Body,Social Services Pooled Budgets,18/04/2017,1032.52,Hf Trust Ltd,Home Care,Supplies & Services
Leeds City Council as Accountable Body,Social Services Pooled Budgets,18/04/2017,295.00,Hf Trust Ltd,Home Care,Supplies & Services
Leeds City Council as Accountable Body,Social Services Pooled Budgets,20/04/2017,112.00,Leep1,Day Centre,Supplies & Services
Leeds City Council as Accountable Body,Social Services Pooled Budgets,20/04/2017,112.00,Leep1,Day Centre,Supplies & Services
Leeds City Council as Accountable Body,Social Services Pooled Budgets,20/04/2017,112.00,Leep1,Day Centre,Supplies & Services
Leeds City Council as Accountable Body,Social Services Pooled Budgets,20/04/2017,112.00,Leep1,Day Centre,Supplies & Services
Leeds City Council as Accountable Body,Social Services Pooled Budgets,20/04/2017,112.00,Leep1,Day Centre,Supplies & Services
Leeds City Council as Accountable Body,Social Services Pooled Budgets,20/04/2017,112.00,Leep1,Day Centre,Supplies & Services
Leeds City Council as Accountable Body,Social Services Pooled Budgets,20/04/2017,140.00,Leep1,Day Centre,Supplies & Services
Leeds City Council as Accountable Body,Social Services Pooled Budgets,20/04/2017,112.00,Leep1,Day Centre,Supplies & Services
Leeds City Council as Accountable Body,Social Services Pooled Budgets,20/04/2017,140.00,Leep1,Day Centre,Supplies & Services
Leeds City Council as Accountable Body,Social Services Pooled Budgets,20/04/2017,300.00,Leep1,Day Centre,Supplies & Services
Leeds City Council as Accountable Body,Social Services Pooled Budgets,20/04/2017,210.00,Leep1,Day Centre,Supplies & Services
Leeds City Council as Accountable Body,Social Services Pooled Budgets,20/04/2017,175.00,Leep1,Day Centre,Supplies & Services
Leeds City Council as Accountable Body,Social Services Pooled Budgets,20/04/2017,56.00,Leep1,Day Centre,Supplies & Services
Leeds City Council as Accountable Body,Social Services Pooled Budgets,20/04/2017,210.00,Leep1,Day Centre,Supplies & Services
Leeds City Council as Accountable Body,Social Services Pooled Budgets,20/04/2017,588.00,Leep1,Day Centre,Supplies & Services
Leeds City Council as Accountable Body,Social Services Pooled Budgets,20/04/2017,240.00,Leep1,Day Centre,Supplies & Services
Leeds City Council as Accountable Body,Social Services Pooled Budgets,20/04/2017,100.00,Leep1,Day Centre,Supplies & Services
Leeds City Council as Accountable Body,Social Services Pooled Budgets,20/04/2017,112.00,Leep1,Day Centre,Supplies & Services
Leeds City Council as Accountable Body,Social Services Pooled Budgets,20/04/2017,240.00,Leep1,Day Centre,Supplies & Services
Leeds City Council as Accountable Body,Social Services Pooled Budgets,20/04/2017,168.00,Leep1,Day Centre,Supplies & Services
Leeds City Council as Accountable Body,Social Services Pooled Budgets,20/04/2017,56.00,Leep1,Day Centre,Supplies & Services
Leeds City Council as Accountable Body,Social Services Pooled Budgets,20/04/2017,168.00,Leep1,Day Centre,Supplies & Services
Leeds City Council as Accountable Body,Social Services Pooled Budgets,20/04/2017,504.00,Leep1,Day Centre,Supplies & Services
Leeds City Council as Accountable Body,Social Services Pooled Budgets,20/04/2017,240.00,Leep1,Day Centre,Supplies & Services
Leeds City Council as Accountable Body,Social Services Pooled Budgets,11/04/2017,11485.18,Leeds Federated Housing Association,Home Care,Supplies & Services
Leeds City Council as Accountable Body,Social Services Pooled Budgets,18/04/2017,576.00,Leeds Jewish Welfare Board,Home Care,Supplies & Services
Leeds City Council as Accountable Body,Social Services Pooled Budgets,18/04/2017,576.00,Leeds Jewish Welfare Board,Home Care,Supplies & Services
Leeds City Council as Accountable Body,Social Services Pooled Budgets,18/04/2017,1142.00,Leeds Jewish Welfare Board,Home Care,Supplies & Services
Leeds City Council as Accountable Body,Social Services Pooled Budgets,18/04/2017,792.00,Leeds Jewish Welfare Board,Home Care,Supplies & Services
Leeds City Council as Accountable Body,Social Services Pooled Budgets,18/04/2017,342.00,Leeds Jewish Welfare Board,Home Care,Supplies & Services
Leeds City Council as Accountable Body,Social Services Pooled Budgets,07/04/2017,1265.40,Linkage Community Trust,Home Care,Supplies & Services
Leeds City Council as Accountable Body,Social Services Pooled Budgets,11/04/2017,1933.20,Mencap,Home Care,Supplies & Services
Leeds City Council as Accountable Body,Social Services Pooled Budgets,13/04/2017,580.00,People In Action Leeds Uk,Home Care,Supplies & Services
Leeds City Council as Accountable Body,Social Services Pooled Budgets,13/04/2017,348.00,People In Action Leeds Uk,Home Care,Supplies & Services
Leeds City Council as Accountable Body,Social Services Pooled Budgets,13/04/2017,426.08,People In Action Leeds Uk,Home Care,Supplies & Services
Leeds City Council as Accountable Body,Social Services Pooled Budgets,13/04/2017,493.35,People In Action Leeds Uk,Home Care,Supplies & Services
Leeds City Council as Accountable Body,Social Services Pooled Budgets,13/04/2017,652.50,People In Action Leeds Uk,Home Care,Supplies & Services
Leeds City Council as Accountable Body,Social Services Pooled Budgets,13/04/2017,311.75,People In Action Leeds Uk,Home Care,Supplies & Services
Leeds City Council as Accountable Body,Social Services Pooled Budgets,18/04/2017,340.00,Pyramid Of Arts,Day Centre,Supplies & Services
Leeds City Council as Accountable Body,Social Services Pooled Budgets,28/04/2017,2240.00,Sense,Day Centre,Supplies & Services
Leeds City Council as Accountable Body,Social Services Pooled Budgets,20/04/2017,4617.04,Sense,Day Centre,Supplies & Services
Leeds City Council as Accountable Body,Social Services Pooled Budgets,20/04/2017,2240.00,Sense,Day Centre,Supplies & Services
Leeds City Council as Accountable Body,Social Services Pooled Budgets,20/04/2017,2702.40,Sense,Day Centre,Supplies & Services
Leeds City Council as Accountable Body,Social Services Pooled Budgets,27/04/2017,609.04,Specialist Autism Services,Day Centre,Supplies & Services
Leeds City Council as Accountable Body,Social Services Pooled Budgets,27/04/2017,1867.56,Specialist Autism Services,Day Centre,Supplies & Services
Leeds City Council as Accountable Body,Social Services Pooled Budgets,27/04/2017,304.52,Specialist Autism Services,Day Centre,Supplies & Services
Leeds City Council as Accountable Body,Social Services Pooled Budgets,27/04/2017,160.00,Specialist Autism Services,Day Centre,Supplies & Services
Leeds City Council as Accountable Body,Social Services Pooled Budgets,27/04/2017,304.52,Specialist Autism Services,Day Centre,Supplies & Services
Leeds City Council as Accountable Body,Social Services Pooled Budgets,27/04/2017,304.52,Specialist Autism Services,Day Centre,Supplies & Services
Leeds City Council as Accountable Body,Social Services Pooled Budgets,27/04/2017,1676.76,Specialist Autism Services,Day Centre,Supplies & Services
Leeds City Council as Accountable Body,Social Services Pooled Budgets,27/04/2017,2490.08,Specialist Autism Services,Day Centre,Supplies & Services
Leeds City Council as Accountable Body,Social Services Pooled Budgets,27/04/2017,2794.60,Specialist Autism Services,Day Centre,Supplies & Services
Leeds City Council as Accountable Body,Social Services Pooled Budgets,27/04/2017,2794.60,Specialist Autism Services,Day Centre,Supplies & Services
Leeds City Council as Accountable Body,Social Services Pooled Budgets,27/04/2017,1680.00,Specialist Autism Services,Day Centre,Supplies & Services
Leeds City Council as Accountable Body,Social Services Pooled Budgets,27/04/2017,609.04,Specialist Autism Services,Day Centre,Supplies & Services
Leeds City Council as Accountable Body,Social Services Pooled Budgets,27/04/2017,1245.04,Specialist Autism Services,Day Centre,Supplies & Services
Leeds City Council as Accountable Body,Social Services Pooled Budgets,27/04/2017,913.56,Specialist Autism Services,Day Centre,Supplies & Services
Leeds City Council as Accountable Body,Social Services Pooled Budgets,27/04/2017,609.04,Specialist Autism Services,Day Centre,Supplies & Services
Leeds City Council as Accountable Body,Social Services Pooled Budgets,27/04/2017,913.56,Specialist Autism Services,Day Centre,Supplies & Services
Leeds City Council as Accountable Body,Social Services Pooled Budgets,27/04/2017,304.52,Specialist Autism Services,Day Centre,Supplies & Services
Leeds City Council as Accountable Body,Social Services Pooled Budgets,27/04/2017,660.00,Specialist Autism Services,Day Centre,Supplies & Services
Leeds City Council as Accountable Body,Social Services Pooled Budgets,27/04/2017,304.52,Specialist Autism Services,Day Centre,Supplies & Services
Leeds City Council as Accountable Body,Social Services Pooled Budgets,27/04/2017,380.65,Specialist Autism Services,Day Centre,Supplies & Services
Leeds City Council as Accountable Body,Social Services Pooled Budgets,19/04/2017,304.52,Specialist Autism Services,Day Centre,Supplies & Services
Leeds City Council as Accountable Body,Social Services Pooled Budgets,27/04/2017,380.65,Specialist Autism Services,Day Centre,Supplies & Services
Leeds City Council as Accountable Body,Social Services Pooled Budgets,11/04/2017,1406.44,United Response,Home Care,Supplies & Services
Leeds City Council as Accountable Body,Social Services Pooled Budgets,28/04/2017,419.36,Rcl Walled Garden Scheme,Day Centre,Supplies & Services
